Workbook

Sheet 1. INFORMACION ACUMULADA
A1: Anexo contractual de la vigencia 2022
A2: 1- INFORMACION GENERAL | V2: 2- INFORMACION FINANCIERA | AC2: 3 - PLAZOS | AI2: 4. CESION | AM2: 5. ESTADO | AN2: 6. % Avance y/o cumplimiento
A3: Número Contrato | B3: Año | C3: Número de proceso contractual SECOP | D3: Link proceso SECOP | E3: Tipo de contrato | F3: Modalidad de Selección | G3: Procedimiento o causal | H3: Objeto | I3: Afectación | J3: Plan de Desarrollo Distrital | K3: Número Programa | L3: Equivalencia número de programa | M3: Propósito | N3: Número Proyecto | O3: Número de proponentes | P3: Número de Identificación del contratista (Cédula o NIT sin puntos, comas ni caracteres especiales y sin digito de verificación) | Q3: Nombre del contratista (según el caso: nombres y apellidos o Razón social y Tipo societario) | R3: Naturaleza Jurídica | S3: Número de Identificación del integrante del Consorcio o U.T. (Cédula o NIT sin puntos, comas ni caracteres especiales y sin digito de verificación) | T3: Nombre del Integrante del Consorcio o U.T. y Tipo societario (Según el caso: nombres y apellidos o razón social y tipo societario) | U3: % Participación (indicar solo el numero del porcentaje, sin caracteres especiales) | V3: Vigencias futuras | W3: Valor Inicial del contrato | X3: Valor total reducciones (En valor negativo) | Y3: Número de adiciones | Z3: Valor total de adiciones | AA3: Valor Final | AB3: Giros (Valor en pesos) | AC3: Fecha de suscripción (DD/MM/AAAA) | AD3: Fecha de inicio (DD/MM/AAAA) | AE3: Fecha de terminación (DD/MM/AAAA) | AF3: Plazo en días | AG3: Número de prórrogas | AH3: Prorroga en días | AI3: Número de Identificación del cesionario (NIT sin digito de verificación) | AJ3: Nombre cesionario | AK3: Fecha cesión (DD/MM/AAAA) | AL3: Valor cesión | AM3: Estado | AN3: % Avance y/o Cumplimiento
A4: FDLSC-CO-368-2022 | B4: 2022 | C4: FDLSC-LP-001-2022 | D4: https://community.secop.gov.co/Public/Tendering/OpportunityDetail/Index?noticeUID=CO1.NTC.2892957&isFromPublicArea=True&isModal=False | E4: Obra pública | F4: Licitación pública | G4: No aplica | H4: CONTRATAR A PRECIOS UNITARIOS, LAS OBRAS DE CONSTRUCCIÓN DE PARQUES VECINALES Y/O BOLSILLO DE LA LOCALIDAD DE SAN CRISTOBAL EN LA CIUDAD DE BOGOTÁ D.C, DE CONFORMIDAD CON LOS ESTUDIOS Y DISEÑOS ARQUITECTONICOS Y DE INGENERIA PRODUCTO DEL CONTRATO 278 DE 201 | I4: Inversión | J4: Un nuevo contrato social y ambiental para la Bogotá del Siglo XXI | K4: 33 | L4: =IF(ISERROR(VLOOKUP(K4,#REF!,2,FALSE))," ",VLOOKUP(K4,#REF!,2,FALSE)) ->  | M4: =IF(ISERROR(VLOOKUP(K4,#REF!,3,FALSE))," ",VLOOKUP(K4,#REF!,3,FALSE)) ->  | N4: 1863 | O4: 4 | P4: 900351236 | Q4: ESTUDIOS E INGENIERIA SAS | R4: Persona Jurídica | T4: N/A | U4: N/A | W4: 14900820381 | X4: 0 | Y4: 0 | Z4: 0 | AA4: =+W4+X4+Z4 -> 14900820381 | AB4: 4470246114 | AC4: 2022-05-31 | AD4: 2022-06-23 | AE4: 2023-08-22 | AF4: 420 | AG4: 0 | AH4: 0 | AM4: En ejecución | AN4: =IF(ISERROR(AB4/AA4),"-",(AB4/AA4)) -> 0.3
B5: 2022 | E5: Otros gastos | H5: INGRESO VITAL PARA SAN CRISTÓBAL TRANSFERENCIAS | I5: Inversión | J5: Un nuevo contrato social y ambiental para la Bogotá del Siglo XXI | K5: 1 | L5: =IF(ISERROR(VLOOKUP(K5,#REF!,2,FALSE))," ",VLOOKUP(K5,#REF!,2,FALSE)) ->  | M5: =IF(ISERROR(VLOOKUP(K5,#REF!,3,FALSE))," ",VLOOKUP(K5,#REF!,3,FALSE)) ->  | N5: 1852 | O5: 0 | W5: 7722000000 | X5: 0 | Y5: 0 | Z5: 0 | AA5: =+W5+X5+Z5 -> 7722000000 | AB5: 7649994845 | AN5: =IF(ISERROR(AB5/AA5),"-",(AB5/AA5)) -> 0.9906753231
B6: 2022 | E6: Otros gastos | H6: TRANSFERENCIAS SISTEMA BOGOTA SOLIDARIA | I6: Inversión | J6: Un nuevo contrato social y ambiental para la Bogotá del Siglo XXI | K6: 1 | L6: =IF(ISERROR(VLOOKUP(K6,#REF!,2,FALSE))," ",VLOOKUP(K6,#REF!,2,FALSE)) ->  | M6: =IF(ISERROR(VLOOKUP(K6,#REF!,3,FALSE))," ",VLOOKUP(K6,#REF!,3,FALSE)) ->  | N6: 1852 | O6: 0 | W6: 6189025000 | X6: 0 | Y6: 0 | Z6: 0 | AA6: =+W6+X6+Z6 -> 6189025000 | AB6: 6189025000 | AN6: =IF(ISERROR(AB6/AA6),"-",(AB6/AA6)) -> 1
A7: FDLSC-CVNI-407-2022 | B7: 2022 | C7: FDLSC-CD-246-2022 | D7: https://community.secop.gov.co/Public/Tendering/OpportunityDetail/Index?noticeUID=CO1.NTC.3195701&isFromPublicArea=True&isModal=true&asPopupView=true | E7: Convenios/Contratos interadministrativos | F7: Contratación directa | G7: Contratos interadministrativos | H7: AUNAR ESFUERZOS TÉCNICOS, ADMINISTRATIVOS, JURÍDICOS Y FINANCIEROS ENTRE LA AGENCIA DISTRITAL PARA LA EDUCACIÓN SUPERIOR, LA CIENCIA Y LA TECNOLOGÍA - ATENEA Y EL FONDO DE DESARROLLO LOCAL DE SAN CRISTÓBAL PARA LA IMPLEMENTACIÓN DE UN NUEVO MODELO INCLUSIVO, EFICIENTE Y FLEXIBLE PARA EL ACCESO Y LA PERMANENCIA DE LAS Y LOS JÓVENES EGRESADOS DE INSTITUCIONES DE EDUCACIÓN MEDIA A PROGRAMAS DE EDUCACIÓN SUPERIOR Y POSMEDIA. EL APORTE POR PARTE DE LA AGENCIA ATENEA SE VERÁ REFLEJADO EN BRINDAR TODA LA CAPACIDAD TÉCNICA, ADMINISTRATIVA, JURÍDICA, TALENTO HUMANO Y DE LAS ACTIVIDADES OPERATIVAS Y DE EJECUCIÓN PROPIAS DEL PROGRAMA PARA EL BUEN DESARROLLO DEL OBJETO DEL CONVENIO, CON EL FIN DE LLEVAR A CABO LA IMPLEMENTACIÓN DE UN NUEVO MODELO INCLUSIVO, EFICIENTE Y FLEXIBLE PARA EL ACCESO Y LA PERMANENCIA, TENIENDO EN CUENTA, LA NATURALEZA DESDE SU CREACIÓN, REALIZANDO EL EFECTIVO CONTROL Y SEGUIMIENTO. | I7: Inversión | J7: Un nuevo contrato social y ambiental para la Bogotá del Siglo XXI | K7: 17 | L7: =IF(ISERROR(VLOOKUP(K7,#REF!,2,FALSE))," ",VLOOKUP(K7,#REF!,2,FALSE)) ->  | M7: =IF(ISERROR(VLOOKUP(K7,#REF!,3,FALSE))," ",VLOOKUP(K7,#REF!,3,FALSE)) ->  | N7: 1792 | O7: 0 | P7: 901508361 | Q7: AGENCIA DISTRITAL PARA LA EDUCACION SUPERIOR, LA CIENCIA Y LA TECNOLOGÍA "ATENEA" | R7: Persona Jurídica | T7: N/A | U7: N/A | W7: 5426161000 | X7: 0 | Y7: 0 | Z7: 0 | AA7: =+W7+X7+Z7 -> 5426161000 | AB7: 5426161000 | AC7: 2022-08-26 | AD7: 2022-08-26 | AE7: 2029-12-31 | AF7: 2280 | AG7: 0 | AH7: 0 | AM7: En ejecución | AN7: =IF(ISERROR(AB7/AA7),"-",(AB7/AA7)) -> 1
A8: 5962020 | B8: 2020 | C8: FDLSC-LP-002-2020 | D8: https://community.secop.gov.co/Public/Tendering/OpportunityDetail/Index?noticeUID=CO1.NTC.1542157&isFromPublicArea=True&isModal=False | E8: Obra pública | F8: Licitación pública | G8: No aplica | H8: REALIZAR LAS OBRAS DE CONSERVACIÓN DE LA MALLA VIAL Y ESPACIO PÚBLICO ASOCIADO EN LA LOCALIDAD DE SAN CRISTÓBAL, BOGOTÁ, D.C. A TRAVÉS DEL SISTEMA DE PRECIOS UNITARIOS FIJOS, SIN FORMULA DE REAJUSTE Y A MONTO AGOTABLE | I8: Inversión | J8: Un nuevo contrato social y ambiental para la Bogotá del Siglo XXI | K8: 49 | L8: =IF(ISERROR(VLOOKUP(K8,#REF!,2,FALSE))," ",VLOOKUP(K8,#REF!,2,FALSE)) ->  | M8: =IF(ISERROR(VLOOKUP(K8,#REF!,3,FALSE))," ",VLOOKUP(K8,#REF!,3,FALSE)) ->  | N8: 1871 | O8: 53 | P8: 901461394 | Q8: CONSORCIO GAMA GALAN DQ | R8: Consorcio | S8: 901252604 | T8: DQ INVERSIONES SAS | U8: 0.5 | W8: 0 | X8: 0 | Y8: 1 | Z8: 3174761759 | AA8: =+W8+X8+Z8 -> 3174761759 | AB8: 1661347115 | AC8: 2022-02-14 | AD8: 2021-03-15 | AE8: 2022-06-14 | AF8: 450 | AG8: 1 | AH8: 120 | AM8: Terminado | AN8: =IF(ISERROR(AB8/AA8),"-",(AB8/AA8)) -> 0.5232982003
A9: FDLSC-CVNI-450-2022 | B9: 2022 | C9: FDLSC-CD-224-2022 | D9: https://community.secop.gov.co/Public/Tendering/OpportunityDetail/Index?noticeUID=CO1.NTC.3144275&isFromPublicArea=True&isModal=true&asPopupView=true | E9: Convenios/Contratos interadministrativos | F9: Contratación directa | G9: Contratos interadministrativos | H9: AUNAR ESFUERZOS ADMINISTRATIVOS, TÉCNICOS, LOGISTICOS Y FINANCIEROS ENTRE PROPAÍS Y EL FONDO DE DESARROLLO LOCAL DE SAN CRISTOBAL PARA LA CONSOLIDACIÓN Y FORTALECIMIENTO ECONÓMICO DE LAS MICROEMPRESAS A TRAVÉS DEL PROGRAMA MICROEMPRESA LOCAL 3.0 Y DE LOS EMPRENDIMIENTOS A TRAVES DEL PROGRAMA BOGOTA PRODUCTIVA LOCAL | I9: Inversión | J9: Un nuevo contrato social y ambiental para la Bogotá del Siglo XXI | K9: 6 | L9: =IF(ISERROR(VLOOKUP(K9,#REF!,2,FALSE))," ",VLOOKUP(K9,#REF!,2,FALSE)) ->  | M9: =IF(ISERROR(VLOOKUP(K9,#REF!,3,FALSE))," ",VLOOKUP(K9,#REF!,3,FALSE)) ->  | N9: 1865 | O9: 0 | P9: 800250713 | Q9: CORPORACIÓN PARA EL DESARROLLO DE LAS MICROEMPRESAS | R9: Persona Jurídica | T9: N/A | U9: N/A | W9: 2588552604 | X9: 0 | Y9: 0 | Z9: 0 | AA9: =+W9+X9+Z9 -> 2588552604 | AB9: 862850868 | AC9: 2022-08-17 | AD9: 2022-09-12 | AE9: 2023-06-11 | AF9: 270 | AG9: 0 | AH9: 0 | AM9: En ejecución | AN9: =IF(ISERROR(AB9/AA9),"-",(AB9/AA9)) -> 0.3333333333
A10: 524 | B10: 2021 | C10: FDLSC-SASI-004-2021 | D10: https://community.secop.gov.co/Public/Tendering/OpportunityDetail/Index?noticeUID=CO1.NTC.2436185&isFromPublicArea=True&isModal=true&asPopupView=true | E10: Compraventa de bienes muebles | F10: Selección abreviada | G10: Subasta inversa | H10: CONTRATAR LA PRESTACIÓN DEL SERVICIO DE MANTENIMIENTO PREVENTIVO, MANTENIMIENTO CORRECTIVO CON EL SUMINISTRO Y CAMBIO DE REPUESTOS DE LAS IMPRESORAS Y ESCÁNERES QUE HACEN PARTE DE LA PLATAFORMA TECNOLÓGICA DE LA ALCALDÍA LOCAL DE SAN CRISTÓBAL Y LA JUNTA ADMINISTRADORA LOCAL. | I10: Inversión | J10: Un nuevo contrato social y ambiental para la Bogotá del Siglo XXI | K10: 12 | L10: =IF(ISERROR(VLOOKUP(K10,#REF!,2,FALSE))," ",VLOOKUP(K10,#REF!,2,FALSE)) ->  | M10: =IF(ISERROR(VLOOKUP(K10,#REF!,3,FALSE))," ",VLOOKUP(K10,#REF!,3,FALSE)) ->  | N10: 1724 | O10: 13 | P10: 830005066 | Q10: SECURITY VIDEO EQUIPMENT SAS | R10: Persona Jurídica | S10: N/A | T10: N/A | U10: N/A | W10: 1510216764 | X10: 0 | Y10: 1 | Z10: 140520236 | AA10: =+W10+X10+Z10 -> 1650737000 | AB10: 1650731023 | AC10: 2022-10-12 | AD10: 2022-03-14 | AE10: 2022-11-14 | AF10: 120 | AG10: 0 | AH10: 0 | AM10: Terminado | AN10: =IF(ISERROR(AB10/AA10),"-",(AB10/AA10)) -> 0.9999963792
A11: FDLSC-CSU-373-2022 | B11: 2022 | C11: FDLSC-SASI-002-2022 | D11: https://community.secop.gov.co/Public/Tendering/OpportunityDetail/Index?noticeUID=CO1.NTC.2935631&isFromPublicArea=True&isModal=False | E11: Suministro | F11: Selección abreviada | G11: Subasta inversa | H11: CONTRATA EL SUMINISTRO DE MATERIALES ASFALTICOS, DE BASE Y SUB-BASE GRANULAR, DISPOSICIÓN FINAL DE ESCOMBROS Y DEMÁS ELEMENTOS REQUERIDOS PARA LA REHABILITACIÓN, MANTENIMIENTO DE LA MALLA VIAL, ESPACIO PÚBLICO Y CICLO-INFRAESTRUCTURA DE LA LOCALIDAD DE SAN CRISTOBAL, A MONTO AGOTABLE | I11: Inversión | J11: Un nuevo contrato social y ambiental para la Bogotá del Siglo XXI | K11: 49 | L11: =IF(ISERROR(VLOOKUP(K11,#REF!,2,FALSE))," ",VLOOKUP(K11,#REF!,2,FALSE)) ->  | M11: =IF(ISERROR(VLOOKUP(K11,#REF!,3,FALSE))," ",VLOOKUP(K11,#REF!,3,FALSE)) ->  | N11: 1871 | O11: 2 | P11: 830073703 | Q11: PAVIOBRAS SAS | R11: Persona Jurídica | T11: N/A | U11: N/A | W11: 1270087103 | X11: 0 | Y11: 1 | Z11: 373650548 | AA11: =+W11+X11+Z11 -> 1643737651 | AB11: 550720226 | AC11: 2022-07-06 | AD11: 2022-07-08 | AE11: 2023-04-07 | AF11: 270 | AG11: 0 | AH11: 0 | AM11: En ejecución | AN11: =IF(ISERROR(AB11/AA11),"-",(AB11/AA11)) -> 0.3350414378
A12: FDLSC-CVNI-668-2022 | B12: 2022 | C12: FDLSC-CD-352-2022 | D12: https://community.secop.gov.co/Public/Tendering/OpportunityDetail/Index?noticeUID=CO1.NTC.3686568&isFromPublicArea=True&isModal=true&asPopupView=true | E12: Convenios/Contratos interadministrativos | F12: Contratación directa | G12: Contratos interadministrativos | H12: AUNAR ESFUERZOS, TÉCNICOS, ADMINISTRATIVOS Y FINANCIEROS PARA DESARROLLAR ACTIVIDADES DE PROYECTOS DE INVERSIÓN DEL FONDO DE DESARROLLO LOCAL DE SAN CRISTÓBAL RELACIONADOS CON TEMÁTICAS SOCIALES QUE IMPACTAN DIRECTAMENTE LA COMUNIDAD DE LA LOCALIDAD | I12: Inversión | J12: Un nuevo contrato social y ambiental para la Bogotá del Siglo XXI | K12: 6 | L12: =IF(ISERROR(VLOOKUP(K12,#REF!,2,FALSE))," ",VLOOKUP(K12,#REF!,2,FALSE)) ->  | M12: =IF(ISERROR(VLOOKUP(K12,#REF!,3,FALSE))," ",VLOOKUP(K12,#REF!,3,FALSE)) ->  | N12: 1811 | O12: 0 | P12: 901100455 | Q12: ALIANZA PÚBLICA PARA EL DESARROLLO INTEGRAL – ALDESARROLLO | R12: Persona Jurídica | T12: N/A | U12: N/A | W12: 1581669475 | X12: 0 | Y12: 0 | Z12: 0 | AA12: =+W12+X12+Z12 -> 1581669475 | AB12: 0 | AC12: 2022-12-29 | AF12: 240 | AM12: Celebrado o por iniciar | AN12: =IF(ISERROR(AB12/AA12),"-",(AB12/AA12)) -> 0
A13: FDLSC-CTOI-667-2022 | B13: 2022 | C13: FDLSC-CD-351-2022 | D13: https://community.secop.gov.co/Public/Tendering/OpportunityDetail/Index?noticeUID=CO1.NTC.3686363&isFromPublicArea=True&isModal=true&asPopupView=true | E13: Convenios/Contratos interadministrativos | F13: Contratación directa | G13: Contratos interadministrativos | H13: REALIZAR LAS ACCIONES TÉCNICAS, JURÍDICAS Y FINANCIERAS NECESARIAS PARA LA GESTIÓN DE LOS PROYECTOS DE INVERSIÓN DEL FONDO DE DESARROLLO LOCAL DE SAN CRISTÓBAL RELACIONADOS CON ESTÍMULOS, EMOLUMENTOS Y FORTALECIMIENTO DE ORGANIZACIONES DE LA LOCALIDAD, ASÍ COMO LAS DEMÁS ACTIVIDADES REQUERIDAS EN SU DESARROLLO QUE SE ENMARCAN EN LOS CRITERIOS DE ELEGIBILIDAD Y MARCO NORMATIVO VINCULANTE DE CADA COMPONENTE | I13: Inversión | J13: Un nuevo contrato social y ambiental para la Bogotá del Siglo XXI | K13: 6 | L13: =IF(ISERROR(VLOOKUP(K13,#REF!,2,FALSE))," ",VLOOKUP(K13,#REF!,2,FALSE)) ->  | M13: =IF(ISERROR(VLOOKUP(K13,#REF!,3,FALSE))," ",VLOOKUP(K13,#REF!,3,FALSE)) ->  | N13: 1865 | O13: 0 | P13: 899999316 | Q13: EMPRESA NACIONAL PROMOTORA DEL DESARROLLO TERRITORIAL - ENTERRITORIO | R13: Persona Jurídica | T13: N/A | U13: N/A | W13: 1515173164 | X13: 0 | Y13: 0 | Z13: 0 | AA13: =+W13+X13+Z13 -> 1515173164 | AB13: 0 | AC13: 2022-12-29 | AF13: 240 | AM13: Celebrado o por iniciar | AN13: =IF(ISERROR(AB13/AA13),"-",(AB13/AA13)) -> 0
A14: FDLSC-CPS-621-2022 | B14: 2022 | C14: FDLSC-LP-005-2022 | D14: https://community.secop.gov.co/Public/Tendering/OpportunityDetail/Index?noticeUID=CO1.NTC.3458576&isFromPublicArea=True&isModal=true&asPopupView=true | E14: Contratos de prestación de servicios | F14: Licitación pública | G14: No aplica | H14: CONTRATAR LA PRESTACION DE SERVICIOS DE SALUD, PARA APORTAR A LA CALIDAD DE VIDA DE GRUPOS POBLACIONALES, COMUNIDAD CON DISCAPACIDAD, CUIDADORES Y CUIDADORAS, HABITANTES EN LA LOCALIDAD DE SAN CRISTÓBAL, A TRAVÉS DE LA IMPLEMENTACIÓN DE ACCIONES COMPLEMENTARIAS EN SALUD Y PREVENCIÓN DEL EMBARAZO ADOLESCENTE | I14: Inversión | J14: Un nuevo contrato social y ambiental para la Bogotá del Siglo XXI | K14: 6 | L14: =IF(ISERROR(VLOOKUP(K14,#REF!,2,FALSE))," ",VLOOKUP(K14,#REF!,2,FALSE)) ->  | M14: =IF(ISERROR(VLOOKUP(K14,#REF!,3,FALSE))," ",VLOOKUP(K14,#REF!,3,FALSE)) ->  | N14: 1843 | O14: 2 | P14: 900521780 | Q14: B2 NETWORKS SAS | R14: Persona Jurídica | T14: N/A | U14: N/A | W14: 1465154000 | X14: 0 | Y14: 0 | Z14: 0 | AA14: =+W14+X14+Z14 -> 1465154000 | AB14: 0 | AC14: 2022-12-16 | AF14: 50 | AM14: Celebrado o por iniciar | AN14: =IF(ISERROR(AB14/AA14),"-",(AB14/AA14)) -> 0
A15: FDLSC-INTV-367-2022 | B15: 2022 | C15: FDLSC-CMA-002-2022 | D15: https://community.secop.gov.co/Public/Tendering/OpportunityDetail/Index?noticeUID=CO1.NTC.2923330&isFromPublicArea=True&isModal=False | E15: Interventoría | F15: Concurso de méritos | G15: No aplica | H15: REALIZAR LA INTERVENTORIA TECNICA, ADMINISTRATIVA, FINANCIERA, JURIDICA, SOCIAL, AMBIENTAL Y SST AL CONTRATO QUE TIENE COMO OBJETO CONTRATAR A PRECIOS UNITARIOS, LAS OBRAS DE CONSTRUCCIÓN DE PARQUES VECINALES Y/O BOLSILLO DE LA LOCALIDAD DE SAN CRISTOBAL EN LA CIUDAD DE BOGOTÁ D.C, DE CONFORMIDAD CON LOS ESTUDIOS Y DISEÑOS ARQUITECTONICOS | I15: Inversión | J15: Un nuevo contrato social y ambiental para la Bogotá del Siglo XXI | K15: 33 | L15: =IF(ISERROR(VLOOKUP(K15,#REF!,2,FALSE))," ",VLOOKUP(K15,#REF!,2,FALSE)) ->  | M15: =IF(ISERROR(VLOOKUP(K15,#REF!,3,FALSE))," ",VLOOKUP(K15,#REF!,3,FALSE)) ->  | N15: 1863 | O15: 2 | P15: 901601348 | Q15: CONSORCIO PARQUES SC | R15: Consorcio | S15: 519764583 | T15: SANDRA MONICA CARDOZO ROJAS | U15: 0.5 | W15: 1415771295 | X15: 0 | Y15: 0 | Z15: 0 | AA15: =+W15+X15+Z15 -> 1415771295 | AB15: 161802432 | AC15: 2022-06-01 | AD15: 2022-04-22 | AE15: 2023-08-22 | AF15: 420 | AG15: 0 | AH15: 0 | AM15: En ejecución | AN15: =IF(ISERROR(AB15/AA15),"-",(AB15/AA15)) -> 0.1142857131
A16: FDLSC-CTOI-667-2022 | B16: 2022 | C16: FDLSC-CD-351-2022 | D16: https://community.secop.gov.co/Public/Tendering/OpportunityDetail/Index?noticeUID=CO1.NTC.3686363&isFromPublicArea=True&isModal=true&asPopupView=true | E16: Convenios/Contratos interadministrativos | F16: Contratación directa | G16: Contratos interadministrativos | H16: REALIZAR LAS ACCIONES TÉCNICAS, JURÍDICAS Y FINANCIERAS NECESARIAS PARA LA GESTIÓN DE LOS PROYECTOS DE INVERSIÓN DEL FONDO DE DESARROLLO LOCAL DE SAN CRISTÓBAL RELACIONADOS CON ESTÍMULOS, EMOLUMENTOS Y FORTALECIMIENTO DE ORGANIZACIONES DE LA LOCALIDAD, ASÍ COMO LAS DEMÁS ACTIVIDADES REQUERIDAS EN SU DESARROLLO QUE SE ENMARCAN EN LOS CRITERIOS DE ELEGIBILIDAD Y MARCO NORMATIVO VINCULANTE DE CADA COMPONENTE | I16: Inversión | J16: Un nuevo contrato social y ambiental para la Bogotá del Siglo XXI | K16: 55 | L16: =IF(ISERROR(VLOOKUP(K16,#REF!,2,FALSE))," ",VLOOKUP(K16,#REF!,2,FALSE)) ->  | M16: =IF(ISERROR(VLOOKUP(K16,#REF!,3,FALSE))," ",VLOOKUP(K16,#REF!,3,FALSE)) ->  | N16: 1872 | O16: 0 | P16: 899999316 | Q16: EMPRESA NACIONAL PROMOTORA DEL DESARROLLO TERRITORIAL - ENTERRITORIO | R16: Persona Jurídica | T16: N/A | U16: N/A | W16: 1352716500 | X16: 0 | Y16: 0 | Z16: 0 | AA16: =+W16+X16+Z16 -> 1352716500 | AB16: 0 | AC16: 2022-12-29 | AF16: 240 | AM16: Celebrado o por iniciar | AN16: =IF(ISERROR(AB16/AA16),"-",(AB16/AA16)) -> 0
A17: FDLSC-COP-378-2022 | B17: 2022 | C17: FDLSC-LP-003-2022 | D17: https://community.secop.gov.co/Public/Tendering/OpportunityDetail/Index?noticeUID=CO1.NTC.2980638&isFromPublicArea=True&isModal=False | E17: Obra pública | F17: Licitación pública | G17: No aplica | H17: EJECUTAR A MONTO AGOTABLE POR EL SISTEMA DE PRECIOS UNITARIOS FIJOS SIN FÓRMULA DE REAJUSTE LAS OBRAS Y ACTIVIDADES PARA LA CONSERVACIÓN DE PUENTES VEHICULARES Y/O PEATONALES DE LA LOCALIDAD DE SAN CRISTÓBAL.” | I17: Inversión | J17: Un nuevo contrato social y ambiental para la Bogotá del Siglo XXI | K17: 49 | L17: =IF(ISERROR(VLOOKUP(K17,#REF!,2,FALSE))," ",VLOOKUP(K17,#REF!,2,FALSE)) ->  | M17: =IF(ISERROR(VLOOKUP(K17,#REF!,3,FALSE))," ",VLOOKUP(K17,#REF!,3,FALSE)) ->  | N17: 1871 | O17: 5 | P17: 900128706 | Q17: INGENIERIA Y DESARROLLO URBANISTICO SAS | R17: Persona Jurídica | T17: N/A | U17: N/A | W17: 821487273 | X17: 0 | Y17: 1 | Z17: 355411028 | AA17: =+W17+X17+Z17 -> 1176898301 | AB17: 739335228 | AC17: 2022-07-22 | AD17: 2022-08-03 | AE17: 2023-02-02 | AF17: 135 | AG17: 1 | AH17: 45 | AM17: En ejecución | AN17: =IF(ISERROR(AB17/AA17),"-",(AB17/AA17)) -> 0.6282065556
A18: 525 | B18: 2021 | C18: FDLSC-SASI-005-2021 | D18: https://community.secop.gov.co/Public/Tendering/OpportunityDetail/Index?noticeUID=CO1.NTC.2438947&isFromPublicArea=True&isModal=true&asPopupView=true | E18: Compraventa de bienes muebles | F18: Selección abreviada | G18: Subasta inversa | H18: CONTRATAR A MONTO AGOTABLE LA ADQUISICIÓN Y DISTRIBUCIÓN DE ELEMENTOS PEDAGÓGICOS Y DIDÁCTICOS, PARA FORTALECER EL PROCESO FORMATIVO DE LOS ESTUDIANTES DE LAS IED DE SAN CRISTÓBAL, EN EL MARCO DEL PROYECTO 1790 "SAN CRISTÓBAL FORTALECE LA EDUCACIÓN. | I18: Inversión | J18: Un nuevo contrato social y ambiental para la Bogotá del Siglo XXI | K18: 14 | L18: =IF(ISERROR(VLOOKUP(K18,#REF!,2,FALSE))," ",VLOOKUP(K18,#REF!,2,FALSE)) ->  | M18: =IF(ISERROR(VLOOKUP(K18,#REF!,3,FALSE))," ",VLOOKUP(K18,#REF!,3,FALSE)) ->  | N18: 1790 | O18: 10 | P18: 830016004 | Q18: REDCOMPUTO LIMITADA | R18: Persona Jurídica | S18: N/A | T18: N/A | U18: N/A | W18: 804023000 | X18: =-10 -> -10 | Y18: 1 | Z18: 364869096 | AA18: =+W18+X18+Z18 -> 1168892086 | AB18: 804022990 | AC18: 2022-11-15 | AD18: 2022-03-18 | AE18: 2022-12-15 | AF18: 105 | AG18: 1 | AH18: 17 | AM18: Terminado | AN18: =IF(ISERROR(AB18/AA18),"-",(AB18/AA18)) -> 0.6878504865
A19: FDLSC-CPS-551-2022 | B19: 2022 | C19: FDLSC-LP-004-2022 | D19: https://community.secop.gov.co/Public/Tendering/OpportunityDetail/Index?noticeUID=CO1.NTC.3274245&isFromPublicArea=True&isModal=true&asPopupView=true | E19: Contratos de prestación de servicios | F19: Licitación pública | G19: No aplica | H19: PRESTAR LOS SERVICIOS PARA BRINDAR ATENCIÓN A PERSONAS CON DISCAPACIDAD Y/O CUIDADORES CON EL OTORGAMIENTO DE DISPOSITIVOS DE ASISTENCIA PERSONAL-AYUDAS TÉCNICAS NO INCLUIDAS EN EL PLAN DE BENEFICIOS EN SALUD, EN LA LOCALIDAD DE SAN CRISTÓBAL. | I19: Inversión | J19: Un nuevo contrato social y ambiental para la Bogotá del Siglo XXI | K19: 6 | L19: =IF(ISERROR(VLOOKUP(K19,#REF!,2,FALSE))," ",VLOOKUP(K19,#REF!,2,FALSE)) ->  | M19: =IF(ISERROR(VLOOKUP(K19,#REF!,3,FALSE))," ",VLOOKUP(K19,#REF!,3,FALSE)) ->  | N19: 1843 | O19: 1 | P19: 900259168 | Q19: TU SALUD H&G SAS | R19: Persona Jurídica | T19: N/A | U19: N/A | W19: 1159785000 | X19: 0 | Y19: 0 | Z19: 0 | AA19: =+W19+X19+Z19 -> 1159785000 | AB19: 0 | AC19: 2022-10-25 | AD19: 2022-11-10 | AE19: 2023-08-09 | AF19: 270 | AG19: 0 | AH19: 0 | AM19: En ejecución | AN19: =IF(ISERROR(AB19/AA19),"-",(AB19/AA19)) -> 0
A20: FDLSC-CVNI-668-2022 | B20: 2022 | C20: FDLSC-CD-352-2022 | D20: https://community.secop.gov.co/Public/Tendering/OpportunityDetail/Index?noticeUID=CO1.NTC.3686568&isFromPublicArea=True&isModal=true&asPopupView=true | E20: Convenios/Contratos interadministrativos | F20: Contratación directa | G20: Contratos interadministrativos | H20: AUNAR ESFUERZOS, TÉCNICOS, ADMINISTRATIVOS Y FINANCIEROS PARA DESARROLLAR ACTIVIDADES DE PROYECTOS DE INVERSIÓN DEL FONDO DE DESARROLLO LOCAL DE SAN CRISTÓBAL RELACIONADOS CON TEMÁTICAS SOCIALES QUE IMPACTAN DIRECTAMENTE LA COMUNIDAD DE LA LOCALIDAD | I20: Inversión | J20: Un nuevo contrato social y ambiental para la Bogotá del Siglo XXI | K20: 40 | L20: =IF(ISERROR(VLOOKUP(K20,#REF!,2,FALSE))," ",VLOOKUP(K20,#REF!,2,FALSE)) ->  | M20: =IF(ISERROR(VLOOKUP(K20,#REF!,3,FALSE))," ",VLOOKUP(K20,#REF!,3,FALSE)) ->  | N20: 1870 | O20: 0 | P20: 901100455 | Q20: ALIANZA PÚBLICA PARA EL DESARROLLO INTEGRAL – ALDESARROLLO | R20: Persona Jurídica | T20: N/A | U20: N/A | W20: 1150656901 | X20: 0 | Y20: 0 | Z20: 0 | AA20: =+W20+X20+Z20 -> 1150656901 | AB20: 0 | AC20: 2022-12-29 | AF20: 240 | AM20: Celebrado o por iniciar | AN20: =IF(ISERROR(AB20/AA20),"-",(AB20/AA20)) -> 0
A21: FDLSC-CTOI-667-2022 | B21: 2022 | C21: FDLSC-CD-351-2022 | D21: https://community.secop.gov.co/Public/Tendering/OpportunityDetail/Index?noticeUID=CO1.NTC.3686363&isFromPublicArea=True&isModal=true&asPopupView=true | E21: Convenios/Contratos interadministrativos | F21: Contratación directa | G21: Contratos interadministrativos | H21: REALIZAR LAS ACCIONES TÉCNICAS, JURÍDICAS Y FINANCIERAS NECESARIAS PARA LA GESTIÓN DE LOS PROYECTOS DE INVERSIÓN DEL FONDO DE DESARROLLO LOCAL DE SAN CRISTÓBAL RELACIONADOS CON ESTÍMULOS, EMOLUMENTOS Y FORTALECIMIENTO DE ORGANIZACIONES DE LA LOCALIDAD, ASÍ COMO LAS DEMÁS ACTIVIDADES REQUERIDAS EN SU DESARROLLO QUE SE ENMARCAN EN LOS CRITERIOS DE ELEGIBILIDAD Y MARCO NORMATIVO VINCULANTE DE CADA COMPONENTE | I21: Inversión | J21: Un nuevo contrato social y ambiental para la Bogotá del Siglo XXI | K21: 21 | L21: =IF(ISERROR(VLOOKUP(K21,#REF!,2,FALSE))," ",VLOOKUP(K21,#REF!,2,FALSE)) ->  | M21: =IF(ISERROR(VLOOKUP(K21,#REF!,3,FALSE))," ",VLOOKUP(K21,#REF!,3,FALSE)) ->  | N21: 1803 | O21: 0 | P21: 899999316 | Q21: EMPRESA NACIONAL PROMOTORA DEL DESARROLLO TERRITORIAL - ENTERRITORIO | R21: Persona Jurídica | T21: N/A | U21: N/A | W21: 1099498101 | X21: 0 | Y21: 0 | Z21: 0 | AA21: =+W21+X21+Z21 -> 1099498101 | AB21: 0 | AC21: 2022-12-29 | AF21: 240 | AM21: Celebrado o por iniciar | AN21: =IF(ISERROR(AB21/AA21),"-",(AB21/AA21)) -> 0
B22: 2022 | E22: Otros gastos | H22: HONORARIOS EDILES | I22: Funcionamiento | J22: Un nuevo contrato social y ambiental para la Bogotá del Siglo XXI | K22: No aplica | L22: =IF(ISERROR(VLOOKUP(K22,#REF!,2,FALSE))," ",VLOOKUP(K22,#REF!,2,FALSE)) ->  | M22: =IF(ISERROR(VLOOKUP(K22,#REF!,3,FALSE))," ",VLOOKUP(K22,#REF!,3,FALSE)) ->  | N22: 3007 | O22: 0 | W22: 1080794799 | X22: 0 | Y22: 0 | Z22: 0 | AA22: =+W22+X22+Z22 -> 1080794799 | AB22: 1080385097 | AN22: =IF(ISERROR(AB22/AA22),"-",(AB22/AA22)) -> 0.9996209253
A23: FDLSC-CVNI-374-2022 | B23: 2022 | C23: FDLSC-CD-176-2022 | D23: https://www.contratos.gov.co/consultas/detalleProceso.do?numConstancia=22-22-36865&g-recaptcha-response=03ANYolqsJE-6O_vQJOChod67mHaono8UeqgyLP06RRKI7UWEmia8gTw1SkaVLKV1FyGEgNd1WGDZQnZiF6IBBsI0-95z7Pug6CJSJTkQzZV1h5A2r60_zH5LhM0lEOopHSmdSEgiuLhpXYIh3VJWYM2S8rWC1mgXNC59KAByJqiOpr0vlAj1Uhc1RNHLZVp9u_WtKnj9F_nwqbwF9pOA9--EXJoZbXZ4wRg6WWWlvnyupHcqupx5oiB0YSdAnm64DGZ6p84ssrqxJ0ezoBQ3mNwOI44Pg5Tv4zl_q_IwkF7VkGCkjYF63-oWUwxvD14VabG_Wx6MbF24SDDN1koecTtQGHbp9axeGEc5YQRbUop5SQCzEIms1wiUiN8jccflKD2bssezzosviXac9_yhYWBC4NdpWsJNl7oueK-AVepNPvMJSGLbkmAtvhc8sx-mhy4Y9ffpH0FejhkPh9-l0jR9O9wJJC55e0A | E23: Convenios/Contratos interadministrativos | F23: Contratación directa | G23: Contratos interadministrativos | H23: AUNAR ESFUERZOS TÉCNICOS, ADMINISTRATIVOS Y FINANCIEROS CON EL FIN DE DESARROLLAR ACCIONES ARTICULADAS ENTRE LA SCRD, EL IDARTES Y LOS FONDOS DE DESARROLLO LOCAL, ORIENTADAS A FOMENTAR PROCESOS DE FORMACIÓN, CUALIFICACIÓN, FORTALECIMIENTO DE LOS AGENTES CULTURALES TERRITORIALES DEL DISTRITO CAPITAL, EN EL MARCO DE LA GENERACIÓN Y CIRCULACIÓN DE BIENES Y SERVICIOS CULTURALES, ARTISTICOS Y PATRIMONIALES DE CONFORMIDAD CON LAS INICIATIVAS PRIORIZADAS Y CONCERTADAS EN LA ESTRATEGIA DISTRITAL "PRESUPUESTOS PARTICIPATIVOS" Y/O DE LAS CONCERTACIONES CON LOS GRUPOS DE INTERÉS DE LAS LOCALIDADES Y A LAS ACCIONES ADELANTADAS EN EL "PROCESO MISIONAL DE FOMENTO", DE ACUERDO CON LOS PROYECTOS A EJECUTAR ASOCIADOS A LAS METAS DE CADA LOCALIDAD EN EL PROGRAMA "ES CULTURA LOCAL 2022". | I23: Inversión | J23: Un nuevo contrato social y ambiental para la Bogotá del Siglo XXI | K23: 21 | L23: Creación y vida cotidiana: Apropiación ciudadana del arte, la cultura y el patrimonio, para la democracia cultural | M23: Propósito 1: Hacer un nuevo contrato social para incrementar la inclusión social, productiva y política | N23: 1803 | O23: 0 | P23: 899999061 | Q23: SECRETARIA DISTRITAL DE CULTURA RECREACI ON Y DEPORTE | R23: Persona Jurídica | T23: N/A | U23: N/A | W23: 1072061036 | X23: 0 | Y23: 0 | Z23: 0 | AA23: =+W23+X23+Z23 -> 1072061036 | AB23: 902577296 | AC23: 2022-07-08 | AD23: 2022-07-19 | AE23: 2023-08-31 | AF23: 395 | AG23: 0 | AH23: 0 | AM23: En ejecución | AN23: =IF(ISERROR(AB23/AA23),"-",(AB23/AA23)) -> 0.8419084975
A24: FDLSC-CPS-364-2022 | B24: 2022 | C24: FDLSC-LP-002-2022 | D24: https://community.secop.gov.co/Public/Tendering/OpportunityDetail/Index?noticeUID=CO1.NTC.2875121&isFromPublicArea=True&isModal=true&asPopupView=true | E24: Contratos de prestación de servicios | F24: Licitación pública | G24: No aplica | H24: PRESTACION DEL SERVICIO DE VIGILANCIA, GUARDA, CUSTODIA, MONITOREO DE ALARMAS Y SEGURIDAD PRIVADA CON ARMAS, MEDIOS TECNOLOGICOS Y CONTROL DE ACCESO PARA LOS USUARIOS, FUNCIONARIOS Y PERSONAS EN GENERAL, MEDIANTE EL ESTABLECIMIENTO DE CONTROL DE INGRESO Y SALIDA DE LAS INSTALACIONES DE LA ENTIDAD, Y PARA LOS BIENES MUEBLES E INMUEBLES EN LOS CUALES SE DESARROLLE LA MISIONALIDAD DE LA ALCALDIA LOCAL DE SAN CRISTOBAL Y DE TODOS AQUELLOS POR LOS CUALES LLEGASE A SER LEGALMENTE RESPONSABLE | I24: Funcionamiento | J24: Un nuevo contrato social y ambiental para la Bogotá del Siglo XXI | K24: No aplica | L24: =IF(ISERROR(VLOOKUP(K24,#REF!,2,FALSE))," ",VLOOKUP(K24,#REF!,2,FALSE)) ->  | M24: =IF(ISERROR(VLOOKUP(K24,#REF!,3,FALSE))," ",VLOOKUP(K24,#REF!,3,FALSE)) ->  | N24: 5250 | O24: 1 | P24: 900431565 | Q24: SQUADRA SEGURIDAD LTDA | R24: Persona Natural | T24: N/A | U24: N/A | W24: 675249168 | X24: 0 | Y24: 2 | Z24: 205857832 | AA24: =+W24+X24+Z24 -> 881107000 | AB24: 594140368 | AC24: 2022-04-06 | AD24: 2022-04-06 | AE24: 2023-03-13 | AF24: 240 | AG24: 2 | AH24: 88 | AM24: En ejecución | AN24: =IF(ISERROR(AB24/AA24),"-",(AB24/AA24)) -> 0.6743112562
B25: 2022 | E25: Otros gastos | H25: OBLIGACIONES POR PAGAR FUNCIONAMIENTO-VIGENCIAS ANTERIORES | I25: Funcionamiento | J25: Un nuevo contrato social y ambiental para la Bogotá del Siglo XXI | K25: No aplica | L25: =IF(ISERROR(VLOOKUP(K25,#REF!,2,FALSE))," ",VLOOKUP(K25,#REF!,2,FALSE)) ->  | M25: =IF(ISERROR(VLOOKUP(K25,#REF!,3,FALSE))," ",VLOOKUP(K25,#REF!,3,FALSE)) ->  | N25: 0004 | O25: 0 | W25: 1041127004 | X25: =-239964119 -> -239964119 | Y25: 0 | Z25: 0 | AA25: =+W25+X25+Z25 -> 801162885 | AB25: 680529914 | AN25: =IF(ISERROR(AB25/AA25),"-",(AB25/AA25)) -> 0.8494276591
A26: FDLSC-CPS-641-2022 | B26: 2022 | C26: FDLSC-LP-008-2022 | D26: https://community.secop.gov.co/Public/Tendering/OpportunityDetail/Index?noticeUID=CO1.NTC.3575531&isFromPublicArea=True&isModal=true&asPopupView=true | E26: Contratos de prestación de servicios | F26: Licitación pública | G26: No aplica | H26: PRESTAR LOS SERVICIOS PARA LA FORMACIÓN DE LA ESCUELA DE SEGURIDAD CIUDADANA, LA IMPLEMENTACIÓN DE ACCIONES PEDAGÓGICAS DEL CÓDIGO NACIONAL DE SEGURIDAD ENTREGA DE EQUIPOS TECNOLÓGICOS DE ALARMAS COMUNITARIAS PARA EL FORTALECIMIENTO DE LAS REDES DE SEGURIDAD CIUDADANA | I26: Inversión | J26: Un nuevo contrato social y ambiental para la Bogotá del Siglo XXI | K26: 48 | L26: =IF(ISERROR(VLOOKUP(K26,#REF!,2,FALSE))," ",VLOOKUP(K26,#REF!,2,FALSE)) ->  | M26: =IF(ISERROR(VLOOKUP(K26,#REF!,3,FALSE))," ",VLOOKUP(K26,#REF!,3,FALSE)) ->  | N26: 1844 | O26: 2 | P26: 900129311 | Q26: H & M TECNOLOGIES Y CIA S EN C | R26: Persona Jurídica | T26: N/A | U26: N/A | W26: 482312000 | X26: 0 | Y26: 1 | Z26: 294304829 | AA26: =+W26+X26+Z26 -> 776616829 | AB26: 0 | AC26: 2022-12-21 | AD26: 2022-12-23 | AE26: 2023-05-22 | AF26: 150 | AG26: 0 | AH26: 0 | AM26: En ejecución | AN26: =IF(ISERROR(AB26/AA26),"-",(AB26/AA26)) -> 0
A27: FDLSC-CPS-623-2022 | B27: 2022 | C27: FDLSC-LP 007-2022 | D27: https://community.secop.gov.co/Public/Tendering/OpportunityDetail/Index?noticeUID=CO1.NTC.3455805&isFromPublicArea=True&isModal=true&asPopupView=true | E27: Contratos de prestación de servicios | F27: Licitación pública | G27: No aplica | H27: PRESTACIÓN DE SERVICIOS Y DE APOYO A LA GESTIÓN PARA LA REALIZACIÓN DE LAS INICIATIVAS DEPORTIVAS EN DIFERENTES ACTIVIDADES RECREODEPORTIVAS EN LA LOCALIDAD DE SAN CRISTÓBAL | I27: Inversión | J27: Un nuevo contrato social y ambiental para la Bogotá del Siglo XXI | K27: 20 | L27: =IF(ISERROR(VLOOKUP(K27,#REF!,2,FALSE))," ",VLOOKUP(K27,#REF!,2,FALSE)) ->  | M27: =IF(ISERROR(VLOOKUP(K27,#REF!,3,FALSE))," ",VLOOKUP(K27,#REF!,3,FALSE)) ->  | N27: 1801 | O27: 3 | P27: 830133329 | Q27: FUNDACION PARA EL DESARROLLO SOCIOCULTURAL, DEPORTIVO, COMUNITARIO, AGROPECUARIO Y/O AMBIENTAL – FUNDESCO | R27: Persona Jurídica | T27: N/A | U27: N/A | W27: 741365393 | X27: 0 | Y27: 0 | Z27: 0 | AA27: =+W27+X27+Z27 -> 741365393 | AB27: 0 | AC27: 2022-12-19 | AF27: 240 | AM27: Celebrado o por iniciar | AN27: =IF(ISERROR(AB27/AA27),"-",(AB27/AA27)) -> 0
A28: FDLSC-CVNI-668-2022 | B28: 2022 | C28: FDLSC-CD-352-2022 | D28: https://community.secop.gov.co/Public/Tendering/OpportunityDetail/Index?noticeUID=CO1.NTC.3686568&isFromPublicArea=True&isModal=true&asPopupView=true | E28: Convenios/Contratos interadministrativos | F28: Contratación directa | G28: Contratos interadministrativos | H28: AUNAR ESFUERZOS, TÉCNICOS, ADMINISTRATIVOS Y FINANCIEROS PARA DESARROLLAR ACTIVIDADES DE PROYECTOS DE INVERSIÓN DEL FONDO DE DESARROLLO LOCAL DE SAN CRISTÓBAL RELACIONADOS CON TEMÁTICAS SOCIALES QUE IMPACTAN DIRECTAMENTE LA COMUNIDAD DE LA LOCALIDAD | I28: Inversión | J28: Un nuevo contrato social y ambiental para la Bogotá del Siglo XXI | K28: 57 | L28: =IF(ISERROR(VLOOKUP(K28,#REF!,2,FALSE))," ",VLOOKUP(K28,#REF!,2,FALSE)) ->  | M28: =IF(ISERROR(VLOOKUP(K28,#REF!,3,FALSE))," ",VLOOKUP(K28,#REF!,3,FALSE)) ->  | N28: 1873 | O28: 0 | P28: 901100455 | Q28: ALIANZA PÚBLICA PARA EL DESARROLLO INTEGRAL – ALDESARROLLO | R28: Persona Jurídica | T28: N/A | U28: N/A | W28: 547331192 | X28: 0 | Y28: 0 | Z28: 0 | AA28: =+W28+X28+Z28 -> 547331192 | AB28: 0 | AC28: 2022-12-29 | AF28: 240 | AM28: Celebrado o por iniciar | AN28: =IF(ISERROR(AB28/AA28),"-",(AB28/AA28)) -> 0
A29: FDLSC-CV-608-2022 | B29: 2022 | C29: FDLSC-SASI-008-2022 | D29: https://community.secop.gov.co/Public/Tendering/OpportunityDetail/Index?noticeUID=CO1.NTC.3415961&isFromPublicArea=True&isModal=true&asPopupView=true | E29: Compraventa de bienes muebles | F29: Selección abreviada | G29: Subasta inversa | H29: CONTRATAR LA ADQUISICIÓN, DISTRIBUCIÓN E INSTALACIÓN DE ELEMENTOS DE MOBILIARIO, PEDAGÓGICOS, ARTÍSTICOS, DE OFICIO Y DEPORTIVOS, PARA FORTALECER EL PROCESO FORMATIVO DE LA CASA DE LA JUVENTUD DAMAWHA DE LA SECRETARÍA DE INTEGRACIÓN SOCIAL DE LA LOCALIDAD DE SAN CRISTÓBAL, EN EL MARCO DEL PROYECTO 1792 "SAN CRISTÓBAL LE APUESTA A UNA EDUCACIÓN SIN LÍMITES | I29: Inversión | J29: Un nuevo contrato social y ambiental para la Bogotá del Siglo XXI | K29: 17 | L29: =IF(ISERROR(VLOOKUP(K29,#REF!,2,FALSE))," ",VLOOKUP(K29,#REF!,2,FALSE)) ->  | M29: =IF(ISERROR(VLOOKUP(K29,#REF!,3,FALSE))," ",VLOOKUP(K29,#REF!,3,FALSE)) ->  | N29: 1792 | O29: 7 | P29: 830005066 | Q29: SECURITY VIDEO EQUIPMENT SAS | R29: Persona Jurídica | T29: N/A | U29: N/A | W29: 542255000 | X29: 0 | Y29: 0 | Z29: 0 | AA29: =+W29+X29+Z29 -> 542255000 | AB29: 0 | AC29: 2022-12-13 | AD29: 2022-12-22 | AE29: 2023-04-21 | AF29: 120 | AG29: 0 | AH29: 0 | AM29: En ejecución | AN29: =IF(ISERROR(AB29/AA29),"-",(AB29/AA29)) -> 0
A30: FDLSC-CTOI-667-2022 | B30: 2022 | C30: FDLSC-CD-351-2022 | D30: https://community.secop.gov.co/Public/Tendering/OpportunityDetail/Index?noticeUID=CO1.NTC.3686363&isFromPublicArea=True&isModal=true&asPopupView=true | E30: Convenios/Contratos interadministrativos | F30: Contratación directa | G30: Contratos interadministrativos | H30: REALIZAR LAS ACCIONES TÉCNICAS, JURÍDICAS Y FINANCIERAS NECESARIAS PARA LA GESTIÓN DE LOS PROYECTOS DE INVERSIÓN DEL FONDO DE DESARROLLO LOCAL DE SAN CRISTÓBAL RELACIONADOS CON ESTÍMULOS, EMOLUMENTOS Y FORTALECIMIENTO DE ORGANIZACIONES DE LA LOCALIDAD, ASÍ COMO LAS DEMÁS ACTIVIDADES REQUERIDAS EN SU DESARROLLO QUE SE ENMARCAN EN LOS CRITERIOS DE ELEGIBILIDAD Y MARCO NORMATIVO VINCULANTE DE CADA COMPONENTE | I30: Inversión | J30: Un nuevo contrato social y ambiental para la Bogotá del Siglo XXI | K30: 39 | L30: =IF(ISERROR(VLOOKUP(K30,#REF!,2,FALSE))," ",VLOOKUP(K30,#REF!,2,FALSE)) ->  | M30: =IF(ISERROR(VLOOKUP(K30,#REF!,3,FALSE))," ",VLOOKUP(K30,#REF!,3,FALSE)) ->  | N30: 1869 | O30: 0 | P30: 899999316 | Q30: EMPRESA NACIONAL PROMOTORA DEL DESARROLLO TERRITORIAL - ENTERRITORIO | R30: Persona Jurídica | T30: N/A | U30: N/A | W30: 537248867 | X30: 0 | Y30: 0 | Z30: 0 | AA30: =+W30+X30+Z30 -> 537248867 | AB30: 0 | AC30: 2022-12-29 | AF30: 240 | AM30: Celebrado o por iniciar | AN30: =IF(ISERROR(AB30/AA30),"-",(AB30/AA30)) -> 0
A31: 507 | B31: 2021 | C31: FDLSC-LP-002-2021 | D31: https://community.secop.gov.co/Public/Tendering/OpportunityDetail/Index?noticeUID=CO1.NTC.2397616&isFromPublicArea=True&isModal=true&asPopupView=true | E31: Obra pública | F31: Licitación pública | G31: No aplica | H31: EJECUTAR A PRECIOS UNITARIOS SIN FORMULA DE REAJUSTE Y A MONTO AGOTABLE, LAS ACTIVIDADES NECESARIAS PARA LA CONSTRUCCIÓN DE LA MALLA VIAL DE LA LOCALIDAD DE SAN CRISTÓBAL EN BOGOTÁ D.C. | I31: Inversión | J31: Un nuevo contrato social y ambiental para la Bogotá del Siglo XXI | K31: 49 | L31: =IF(ISERROR(VLOOKUP(K31,#REF!,2,FALSE))," ",VLOOKUP(K31,#REF!,2,FALSE)) ->  | M31: =IF(ISERROR(VLOOKUP(K31,#REF!,3,FALSE))," ",VLOOKUP(K31,#REF!,3,FALSE)) ->  | N31: 1871 | O31: 0 | P31: 901607744 | Q31: CONSORCIO VIA D J | R31: Consorcio | S31: 901252604 | T31: DQ INVERSIONES SAS | U31: 0.5 | W31: 0 | X31: 0 | Y31: 3 | Z31: 522121856 | AA31: =+W31+X31+Z31 -> 522121856 | AB31: 0 | AC31: 2022-08-05 | AD31: 2022-02-04 | AE31: 2022-12-19 | AF31: 249 | AG31: 1 | AH31: 23 | AM31: Terminado | AN31: =IF(ISERROR(AB31/AA31),"-",(AB31/AA31)) -> 0
A32: FDLSC-CVNI-374-2022 | B32: 2022 | C32: FDLSC-CD-176-2022 | D32: https://www.contratos.gov.co/consultas/detalleProceso.do?numConstancia=22-22-36865&g-recaptcha-response=03ANYolqsJE-6O_vQJOChod67mHaono8UeqgyLP06RRKI7UWEmia8gTw1SkaVLKV1FyGEgNd1WGDZQnZiF6IBBsI0-95z7Pug6CJSJTkQzZV1h5A2r60_zH5LhM0lEOopHSmdSEgiuLhpXYIh3VJWYM2S8rWC1mgXNC59KAByJqiOpr0vlAj1Uhc1RNHLZVp9u_WtKnj9F_nwqbwF9pOA9--EXJoZbXZ4wRg6WWWlvnyupHcqupx5oiB0YSdAnm64DGZ6p84ssrqxJ0ezoBQ3mNwOI44Pg5Tv4zl_q_IwkF7VkGCkjYF63-oWUwxvD14VabG_Wx6MbF24SDDN1koecTtQGHbp9axeGEc5YQRbUop5SQCzEIms1wiUiN8jccflKD2bssezzosviXac9_yhYWBC4NdpWsJNl7oueK-AVepNPvMJSGLbkmAtvhc8sx-mhy4Y9ffpH0FejhkPh9-l0jR9O9wJJC55e0A | E32: Convenios/Contratos interadministrativos | F32: Contratación directa | G32: Contratos interadministrativos | H32: AUNAR ESFUERZOS TÉCNICOS, ADMINISTRATIVOS Y FINANCIEROS CON EL FIN DE DESARROLLAR ACCIONES ARTICULADAS ENTRE LA SCRD, EL IDARTES Y LOS FONDOS DE DESARROLLO LOCAL, ORIENTADAS A FOMENTAR PROCESOS DE FORMACIÓN, CUALIFICACIÓN, FORTALECIMIENTO DE LOS AGENTES CULTURALES TERRITORIALES DEL DISTRITO CAPITAL, EN EL MARCO DE LA GENERACIÓN Y CIRCULACIÓN DE BIENES Y SERVICIOS CULTURALES, ARTISTICOS Y PATRIMONIALES DE CONFORMIDAD CON LAS INICIATIVAS PRIORIZADAS Y CONCERTADAS EN LA ESTRATEGIA DISTRITAL "PRESUPUESTOS PARTICIPATIVOS" Y/O DE LAS CONCERTACIONES CON LOS GRUPOS DE INTERÉS DE LAS LOCALIDADES Y A LAS ACCIONES ADELANTADAS EN EL "PROCESO MISIONAL DE FOMENTO", DE ACUERDO CON LOS PROYECTOS A EJECUTAR ASOCIADOS A LAS METAS DE CADA LOCALIDAD EN EL PROGRAMA "ES CULTURA LOCAL 2022". | I32: Inversión | J32: Un nuevo contrato social y ambiental para la Bogotá del Siglo XXI | K32: 24 | L32: Creación y vida cotidiana: Apropiación ciudadana del arte, la cultura y el patrimonio, para la democracia cultural | M32: Propósito 1: Hacer un nuevo contrato social para incrementar la inclusión social, productiva y política | N32: 1858 | O32: 0 | P32: 900413030 | Q32: INSTITUTO DISTRITAL DE LAS ARTES | R32: Persona Jurídica | T32: N/A | U32: N/A | W32: 475000000 | X32: 0 | Y32: 0 | Z32: 0 | AA32: =+W32+X32+Z32 -> 475000000 | AB32: =+X32+Y32+AA32 -> 475000000 | AC32: 2022-07-08 | AD32: 2022-07-19 | AE32: 2023-08-31 | AF32: 395 | AG32: 0 | AH32: 0 | AM32: En ejecución | AN32: =IF(ISERROR(AB32/AA32),"-",(AB32/AA32)) -> 1
A33: FDLSC-CPS-621-2022 | B33: 2022 | C33: FDLSC-LP-005-2022 | D33: https://community.secop.gov.co/Public/Tendering/OpportunityDetail/Index?noticeUID=CO1.NTC.3458576&isFromPublicArea=True&isModal=true&asPopupView=true | E33: Contratos de prestación de servicios | F33: Licitación pública | G33: No aplica | H33: CONTRATAR LA PRESTACION DE SERVICIOS DE SALUD, PARA APORTAR A LA CALIDAD DE VIDA DE GRUPOS POBLACIONALES, COMUNIDAD CON DISCAPACIDAD, CUIDADORES Y CUIDADORAS, HABITANTES EN LA LOCALIDAD DE SAN CRISTÓBAL, A TRAVÉS DE LA IMPLEMENTACIÓN DE ACCIONES COMPLEMENTARIAS EN SALUD Y PREVENCIÓN DEL EMBARAZO ADOLESCENTE | I33: Inversión | J33: Un nuevo contrato social y ambiental para la Bogotá del Siglo XXI | K33: 8 | L33: =IF(ISERROR(VLOOKUP(K33,#REF!,2,FALSE))," ",VLOOKUP(K33,#REF!,2,FALSE)) ->  | M33: =IF(ISERROR(VLOOKUP(K33,#REF!,3,FALSE))," ",VLOOKUP(K33,#REF!,3,FALSE)) ->  | N33: 1861 | O33: 2 | P33: 900521780 | Q33: B2 NETWORKS SAS | R33: Persona Jurídica | T33: N/A | U33: N/A | W33: 462444200 | X33: 0 | Y33: 0 | Z33: 0 | AA33: =+W33+X33+Z33 -> 462444200 | AB33: 0 | AC33: 2022-12-16 | AF33: 50 | AM33: Celebrado o por iniciar | AN33: =IF(ISERROR(AB33/AA33),"-",(AB33/AA33)) -> 0
A34: FDLSC-CV-524-2022 | B34: 2022 | C34: FDLSC-SASI-005-2022 | D34: https://community.secop.gov.co/Public/Tendering/OpportunityDetail/Index?noticeUID=CO1.NTC.3201382&isFromPublicArea=True&isModal=true&asPopupView=true | E34: Compraventa de bienes muebles | F34: Selección abreviada | G34: Subasta inversa | H34: ADQUISICIÓN Y DISTRIBUCIÓN DE ELEMENTOS PEDAGÓGICOS, TECNOLÓGICOS, TERAPEUTICOS Y DIDÁCTICOS A MONTO AGOTABLE, PARA FORTALECER EL PROCESO FORMATIVO DE LOS DOS (2) CENTRO CRECER DE LA LOCALIDAD DE SAN CRISTÓBAL, EN EL MARCO DEL PROYECTO 1811 "SAN CRISTÓBAL TE CUIDA | I34: Inversión | J34: Un nuevo contrato social y ambiental para la Bogotá del Siglo XXI | K34: 6 | L34: =IF(ISERROR(VLOOKUP(K34,#REF!,2,FALSE))," ",VLOOKUP(K34,#REF!,2,FALSE)) ->  | M34: =IF(ISERROR(VLOOKUP(K34,#REF!,3,FALSE))," ",VLOOKUP(K34,#REF!,3,FALSE)) ->  | N34: 1811 | O34: 12 | P34: 830084135 | Q34: DIDACTICOS SIMBOLOS Y SIGNOS S EN C | R34: Persona Jurídica | T34: N/A | U34: N/A | W34: 448220412 | X34: 0 | Y34: 0 | Z34: 0 | AA34: =+W34+X34+Z34 -> 448220412 | AB34: 0 | AC34: 2022-09-29 | AD34: 2022-11-02 | AE34: 2023-03-03 | AF34: 120 | AG34: 0 | AH34: 0 | AM34: En ejecución | AN34: =IF(ISERROR(AB34/AA34),"-",(AB34/AA34)) -> 0
A35: FDLSC-CPS-671-2022 | B35: 2022 | C35: FDLSC-SAMC-012-2022 | D35: https://community.secop.gov.co/Public/Tendering/OpportunityDetail/Index?noticeUID=CO1.NTC.3634226&isFromPublicArea=True&isModal=true&asPopupView=true | E35: Contratos de prestación de servicios | F35: Selección abreviada | G35: Selección abreviada por menor cuantía | H35: CONTRATAR LA FABRICACION, ADQUISICIÓN, SUMINISTRO, INSTALACIÓN Y TRANSPORTE, DEL BIEN MUEBLE MODULAR, COMO CAMPUS CULTURAL PARA LA ALCALDIA LOCAL DE SAN CRISTÓBAL | I35: Inversión | J35: Un nuevo contrato social y ambiental para la Bogotá del Siglo XXI | K35: 21 | L35: =IF(ISERROR(VLOOKUP(K35,#REF!,2,FALSE))," ",VLOOKUP(K35,#REF!,2,FALSE)) ->  | M35: =IF(ISERROR(VLOOKUP(K35,#REF!,3,FALSE))," ",VLOOKUP(K35,#REF!,3,FALSE)) ->  | N35: 1803 | O35: 3 | P35: 900126632 | Q35: LIMACOR MY S A S | R35: Persona Jurídica | T35: N/A | U35: N/A | W35: 446866126 | X35: 0 | Y35: 0 | Z35: 0 | AA35: =+W35+X35+Z35 -> 446866126 | AB35: 0 | AC35: 2022-12-28 | AF35: 180 | AM35: Celebrado o por iniciar | AN35: =IF(ISERROR(AB35/AA35),"-",(AB35/AA35)) -> 0
A36: FDLSC-CPS-620-2022 | B36: 2022 | C36: FDLSC-SAMC-002-2022 | D36: https://community.secop.gov.co/Public/Tendering/OpportunityDetail/Index?noticeUID=CO1.NTC.3569349&isFromPublicArea=True&isModal=true&asPopupView=true | E36: Contratos de prestación de servicios | F36: Selección abreviada | G36: Selección abreviada por menor cuantía | H36: CONTRATAR LA PRESTACIÓN DE SERVICIOS DE OPERADOR LOGÍSTICO, PARA LA ORGANIZACIÓN, PRODUCCIÓN Y DEMÁS ACCIONES LOGÍSTICAS, A MONTO AGOTABLE PARA LA REALIZACIÓN DE EVENTOS DE CIRCULACIÓN ARTÍSTICA, CULTURAL Y PATRIMONIAL DE LA ALCALDÍA LOCAL DE SAN CRISTÓBAL | I36: Inversión | J36: Un nuevo contrato social y ambiental para la Bogotá del Siglo XXI | K36: 21 | L36: =IF(ISERROR(VLOOKUP(K36,#REF!,2,FALSE))," ",VLOOKUP(K36,#REF!,2,FALSE)) ->  | M36: =IF(ISERROR(VLOOKUP(K36,#REF!,3,FALSE))," ",VLOOKUP(K36,#REF!,3,FALSE)) ->  | N36: 1803 | O36: 8 | P36: 0 | Q36: UNION TEMPORAL FIESTAS SAN CRISTOBAL 2022 | R36: Unión Temporal | S36: 900251399 | T36: FUNDACIÓN WAYS OF HOPE | U36: 0.6 | W36: 443000000 | X36: 0 | Y36: 0 | Z36: 0 | AA36: =+W36+X36+Z36 -> 443000000 | AB36: 0 | AC36: 2022-12-23 | AD36: 2022-12-27 | AE36: 2023-04-26 | AF36: 120 | AG36: 0 | AH36: 0 | AM36: En ejecución | AN36: =IF(ISERROR(AB36/AA36),"-",(AB36/AA36)) -> 0
A37: 527 | B37: 2021 | C37: FDLSC-SASI-007-2021 | D37: https://community.secop.gov.co/Public/Tendering/OpportunityDetail/Index?noticeUID=CO1.NTC.2455241&isFromPublicArea=True&isModal=true&asPopupView=true | E37: Compraventa de bienes muebles | F37: Selección abreviada | G37: Subasta inversa | H37: ADQUISICIÓN Y DISTRIBUCIÓN DE ELEMENTOS PEDAGÓGICOS Y DIDÁCTICOS A MONTO AGOTABLE, PARA FORTALECER EL PROCESO FORMATIVO DE LOS JARDINES INFANTILES Y EL CENTRO AMAR DE LA SECRETARÍA DE INTEGRACIÓN SOCIAL DE LA LOCALIDAD DE SAN CRISTÓBAL, EN EL MARCO DEL PROYECTO 1811 "SAN CRISTÓBAL TE CUIDA. ADQUISICIÓN Y DISTRIBUCIÓN DE ELEMENTOS PEDAGÓGICOS Y DIDÁCTICOS A MONTO AGOTABLE, PARA FORTALECER EL PROCESO FORMATIVO DE LOS JARDINES INFANTILES Y EL CENTRO AMAR DE LA SECRETARÍA DE INTEGRACIÓN SOCIAL | I37: Inversión | J37: Un nuevo contrato social y ambiental para la Bogotá del Siglo XXI | K37: 6 | L37: =IF(ISERROR(VLOOKUP(K37,#REF!,2,FALSE))," ",VLOOKUP(K37,#REF!,2,FALSE)) ->  | M37: =IF(ISERROR(VLOOKUP(K37,#REF!,3,FALSE))," ",VLOOKUP(K37,#REF!,3,FALSE)) ->  | N37: 1811 | O37: 6 | P37: 900838665 | Q37: ABOVE SAS | R37: Persona Jurídica | S37: N/A | T37: N/A | U37: N/A | W37: 391638843 | X37: 0 | Y37: 1 | Z37: 49506157 | AA37: =+W37+X37+Z37 -> 441145000 | AB37: 0 | AC37: 2022-12-20 | AD37: 2022-03-25 | AE37: 2023-02-24 | AF37: 120 | AG37: 1 | AH37: 61 | AM37: En ejecución | AN37: =IF(ISERROR(AB37/AA37),"-",(AB37/AA37)) -> 0
A38: FDLSC-CV-650-2022 | B38: 2022 | C38: FDLSC-SASI-014-2022 | D38: https://community.secop.gov.co/Public/Tendering/OpportunityDetail/Index?noticeUID=CO1.NTC.3624166&isFromPublicArea=True&isModal=true&asPopupView=true | E38: Compraventa de bienes muebles | F38: Selección abreviada | G38: Subasta inversa | H38: ADQUIRIR LA DOTACIÓN TÉCNICA ESPECIALIZADA Y PUESTA EN FUNCIONAMIENTO DE SISTEMAS DE SONIDO, EQUIPOS TECNOLÓGICOS, ESTRUCTURAS METÁLICAS Y MOBILIARIO PARA PROMOVER LA GESTIÓN LOCAL EN LOS TEMAS DE ARTE, CULTURA Y PATRIMONIO EN LA LOCALIDAD DE SAN CRISTÓBAL | I38: Inversión | J38: Un nuevo contrato social y ambiental para la Bogotá del Siglo XXI | K38: 24 | L38: =IF(ISERROR(VLOOKUP(K38,#REF!,2,FALSE))," ",VLOOKUP(K38,#REF!,2,FALSE)) ->  | M38: =IF(ISERROR(VLOOKUP(K38,#REF!,3,FALSE))," ",VLOOKUP(K38,#REF!,3,FALSE)) ->  | N38: 1858 | O38: 5 | P38: 830005066 | Q38: SECURITY VIDEO EQUIPMENT SAS | R38: Persona Jurídica | T38: N/A | U38: N/A | W38: 427983250 | X38: 0 | Y38: 0 | Z38: 0 | AA38: =+W38+X38+Z38 -> 427983250 | AB38: 0 | AC38: 2022-12-27 | AD38: 2023-01-10 | AE38: 2023-05-09 | AF38: 120 | AG38: 0 | AH38: 0 | AM38: En ejecución | AN38: =IF(ISERROR(AB38/AA38),"-",(AB38/AA38)) -> 0
A39: FDLSC-CTOI-669-2022 | B39: 2022 | C39: FDLSC-CD-353-2022 | D39: https://community.secop.gov.co/Public/Tendering/OpportunityDetail/Index?noticeUID=CO1.NTC.3686807&isFromPublicArea=True&isModal=true&asPopupView=true | E39: Convenios/Contratos interadministrativos | F39: Contratación directa | G39: Contratos interadministrativos | H39: CONTRATAR LA GERENCIA INTEGRAL PARA DESARROLLAR ACTIVIDADES DE PROYECTOS DE INVERSIÓN DEL FONDO DE DESARROLLO LOCAL DE SAN CRISTÓBAL RELACIONADOS CON TEMÁTICAS SOCIALES QUE IMPACTAN DIRECTAMENTE LA COMUNIDAD DE LA LOCALIDAD. | I39: Inversión | J39: Un nuevo contrato social y ambiental para la Bogotá del Siglo XXI | K39: 20 | L39: =IF(ISERROR(VLOOKUP(K39,#REF!,2,FALSE))," ",VLOOKUP(K39,#REF!,2,FALSE)) ->  | M39: =IF(ISERROR(VLOOKUP(K39,#REF!,3,FALSE))," ",VLOOKUP(K39,#REF!,3,FALSE)) ->  | N39: 1801 | O39: 0 | P39: 900258772 | Q39: FONDO DE DESARROLLO DE PROYECTOS DE CUNDINAMARCA - FONDECÚN | R39: Persona Jurídica | T39: N/A | U39: N/A | W39: 421256014 | X39: 0 | Y39: 0 | Z39: 0 | AA39: =+W39+X39+Z39 -> 421256014 | AB39: 0 | AC39: 2022-12-29 | AF39: 240 | AM39: Celebrado o por iniciar | AN39: =IF(ISERROR(AB39/AA39),"-",(AB39/AA39)) -> 0
A40: FDLSC-CVNI-511-2022 (SDA 20221918) | B40: 2022 | C40: FDLSC-CD-312-2022 | D40: https://www.contratos.gov.co/consultas/detalleProceso.do?numConstancia=23-22-54113&g-recaptcha-response=03AD1IbLAecgwkpqCHvEELH2bNXMSJm_IWv01z3GKa4H1_VnM8VQiLNs8HDzKSnSHkymWYXoeuJFggjxFtHKPknSGFDpyTDJdUeBqv2mU5rVhqqpq0YW5TOGwzEZ0KAa1OU18UYrkcNod_dsgjlEzpezAGd07RPz1T3mDbOoQRKyoTIrwbNSUYk3o5u0REjZVxLqirho5hRUhh87tRoZtaRyL0xW_vb_HR94vBOVgYPAmNeItLFDW_IxmGQDobK3JGlRiuEGCRKZ91Eks4wS1M15IZKksn8X7YdYbZWnyu6Ry-b7EqqRjSwLAUtD1hoO0W28fwxLr1xrHxR70CY0X9PLP-8CI3tXclfYkizUJTrEj6X4VqL12LUZT3KMTpNLcPsQI_xDp0oaEaOj_28nRmId6VF518jNecMayEOnp4lOrPMsRvJ6t0ssoRitVe1wgLdSYFGlU3bLthSUP1HVMgTyFq1xnRBfoR6RujIqdM8RsYabm6B8RVeC6k5vbU58OfNcs26tEuMczlTpf8glfB_VCtHtrjZjyF-A | E40: Convenios/Contratos interadministrativos | F40: Contratación directa | G40: Contratos interadministrativos | H40: AUNAR ESFUERZOS TÉCNICOS, ADMINISTRATIVOS Y FINANCIEROS PARA LA RESTAURACIÓN, REHABILITACIÓN O RECUPERACIÓN ECOLÓGICA Y MANTENIMIENTO DE LAS ÁREAS DEFINIDAS EN LA ESTRUCTURA ECOLÓGICA PRINCIPAL Y OTRAS ÁREAS DEL DISTRITO CAPITAL, CON LA PARTICIPACIÓN DE LOS JÓVENES BENEFICIARIOS DEL IDIPRON. | I40: Inversión | J40: Un nuevo contrato social y ambiental para la Bogotá del Siglo XXI | K40: 28 | L40: =IF(ISERROR(VLOOKUP(K40,#REF!,2,FALSE))," ",VLOOKUP(K40,#REF!,2,FALSE)) ->  | M40: =IF(ISERROR(VLOOKUP(K40,#REF!,3,FALSE))," ",VLOOKUP(K40,#REF!,3,FALSE)) ->  | N40: 1819 | O40: 0 | P40: 899999333 | Q40: SECRETARIA DISTRITAL DE AMBIENTE - INSTITUTO DISTRITAL PARA LA PROTECCIÓN DE LA NIÑEZ Y LA JUVENTUD - IDIPRON | R40: Persona Jurídica | T40: N/A | U40: N/A | W40: 419722333 | X40: 0 | Y40: 0 | Z40: 0 | AA40: =+W40+X40+Z40 -> 419722333 | AB40: 0 | AC40: 2022-11-22 | AD40: 2022-12-01 | AE40: 2023-03-31 | AF40: 120 | AG40: 0 | AH40: 0 | AM40: En ejecución | AN40: =IF(ISERROR(AB40/AA40),"-",(AB40/AA40)) -> 0
A41: FDLSC-CSU-649-2022 | B41: 2022 | C41: FDLSC-SASI-009-2022 | D41: https://community.secop.gov.co/Public/Tendering/OpportunityDetail/Index?noticeUID=CO1.NTC.3297541&isFromPublicArea=True&isModal=true&asPopupView=true | E41: Suministro | F41: Selección abreviada | G41: Subasta inversa | H41: ADQUISICIÓN DE ELEMENTOS DEPORTIVOS PARA LA DOTACIÓN DE LAS ESCUELAS Y CLUBES DEPORTIVOS, AVALADOS POR EL IDRD Y DEPORTISTAS DE ALTO RENDIMIENTO DE LA LOCALIDAD DE SAN CRISTÓBAL EN EL MARCO DEL PROYECTO 1801, SAN CRISTÓBAL ES DEPORTE. | I41: Inversión | J41: Un nuevo contrato social y ambiental para la Bogotá del Siglo XXI | K41: 20 | L41: =IF(ISERROR(VLOOKUP(K41,#REF!,2,FALSE))," ",VLOOKUP(K41,#REF!,2,FALSE)) ->  | M41: =IF(ISERROR(VLOOKUP(K41,#REF!,3,FALSE))," ",VLOOKUP(K41,#REF!,3,FALSE)) ->  | N41: 1801 | O41: 9 | P41: 901659143 | Q41: CONSORCIO DEPORTES SAN CRISTOBAL | R41: Consorcio | S41: 900894055 | T41: GRUPO EMPRESARIAL LEAR Y ASOCIADOS S.A.S | U41: 0.9 | W41: 400000000 | X41: 0 | Y41: 0 | Z41: 0 | AA41: =+W41+X41+Z41 -> 400000000 | AB41: 0 | AC41: 2022-12-28 | AD41: 2022-12-30 | AE41: 2023-03-29 | AF41: 90 | AG41: 0 | AH41: 0 | AM41: En ejecución | AN41: =IF(ISERROR(AB41/AA41),"-",(AB41/AA41)) -> 0
A42: FDLSC-CV-664-2022 | B42: 2022 | C42: FDLSC-SASI-010-2022 | D42: https://community.secop.gov.co/Public/Tendering/OpportunityDetail/Index?noticeUID=CO1.NTC.3619356&isFromPublicArea=True&isModal=true&asPopupView=true | E42: Compraventa de bienes muebles | F42: Selección abreviada | G42: Subasta inversa | H42: DOTACIONES LOGISTICAS A ORGANISMOS DE SEGURIDAD EN LA LOCALIDAD DE SAN CRISTOBAL | I42: Inversión | J42: Un nuevo contrato social y ambiental para la Bogotá del Siglo XXI | K42: 48 | L42: =IF(ISERROR(VLOOKUP(K42,#REF!,2,FALSE))," ",VLOOKUP(K42,#REF!,2,FALSE)) ->  | M42: =IF(ISERROR(VLOOKUP(K42,#REF!,3,FALSE))," ",VLOOKUP(K42,#REF!,3,FALSE)) ->  | N42: 1844 | O42: 3 | P42: 900251139 | Q42: DISTRIBUIDORA Y COMERCIALIZADORA E W EL TRIANGULO SAS | R42: Persona Jurídica | T42: N/A | U42: N/A | W42: 399185500 | X42: 0 | Y42: 0 | Z42: 0 | AA42: =+W42+X42+Z42 -> 399185500 | AB42: 0 | AC42: 2022-12-28 | AD42: 2023-01-04 | AE42: 2023-04-03 | AF42: 90 | AG42: 0 | AH42: 0 | AM42: En ejecución | AN42: =IF(ISERROR(AB42/AA42),"-",(AB42/AA42)) -> 0
A43: FDLSC-CPS-641-2022 | B43: 2022 | C43: FDLSC-LP-008-2022 | D43: https://community.secop.gov.co/Public/Tendering/OpportunityDetail/Index?noticeUID=CO1.NTC.3575531&isFromPublicArea=True&isModal=true&asPopupView=true | E43: Contratos de prestación de servicios | F43: Licitación pública | G43: No aplica | H43: PRESTAR LOS SERVICIOS PARA LA FORMACIÓN DE LA ESCUELA DE SEGURIDAD CIUDADANA, LA IMPLEMENTACIÓN DE ACCIONES PEDAGÓGICAS DEL CÓDIGO NACIONAL DE SEGURIDAD ENTREGA DE EQUIPOS TECNOLÓGICOS DE ALARMAS COMUNITARIAS PARA EL FORTALECIMIENTO DE LAS REDES DE SEGURIDAD CIUDADANA | I43: Inversión | J43: Un nuevo contrato social y ambiental para la Bogotá del Siglo XXI | K43: 43 | L43: =IF(ISERROR(VLOOKUP(K43,#REF!,2,FALSE))," ",VLOOKUP(K43,#REF!,2,FALSE)) ->  | M43: =IF(ISERROR(VLOOKUP(K43,#REF!,3,FALSE))," ",VLOOKUP(K43,#REF!,3,FALSE)) ->  | N43: 1824 | O43: 2 | P43: 900129311 | Q43: H & M TECNOLOGIES Y CIA S EN C | R43: Persona Jurídica | T43: N/A | U43: N/A | W43: 397584353 | X43: 0 | Y43: 0 | Z43: 0 | AA43: =+W43+X43+Z43 -> 397584353 | AB43: 0 | AC43: 2022-12-21 | AD43: 2022-12-23 | AE43: 2023-05-22 | AF43: 150 | AG43: 0 | AH43: 0 | AM43: En ejecución | AN43: =IF(ISERROR(AB43/AA43),"-",(AB43/AA43)) -> 0
A44: 526 | B44: 2021 | C44: FDLSC-SASI-006-2021 | D44: https://community.secop.gov.co/Public/Tendering/OpportunityDetail/Index?noticeUID=CO1.NTC.2449282&isFromPublicArea=True&isModal=true&asPopupView=true | E44: Compraventa de bienes muebles | F44: Selección abreviada | G44: Subasta inversa | H44: ADQUISICIÓN A MONTO AGOTABLE DE ELEMENTOS TECNOLÓGICOS E INSUMOS DE CARÁCTER LOGÍSTICO, PARA EL FORTALECIMIENTO DE LAS JUNTAS DE ACCIÓN COMUNAL. | I44: Inversión | J44: Un nuevo contrato social y ambiental para la Bogotá del Siglo XXI | K44: 55 | L44: =IF(ISERROR(VLOOKUP(K44,#REF!,2,FALSE))," ",VLOOKUP(K44,#REF!,2,FALSE)) ->  | M44: =IF(ISERROR(VLOOKUP(K44,#REF!,3,FALSE))," ",VLOOKUP(K44,#REF!,3,FALSE)) ->  | N44: 1872 | O44: 7 | P44: 1130672304 | Q44: ANDRES FERNANDO MUÑOZ LOPEZ | R44: Persona Natural | S44: N/A | T44: N/A | U44: N/A | W44: 287000000 | X44: 0 | Y44: 1 | Z44: 100000000 | AA44: =+W44+X44+Z44 -> 387000000 | AB44: 111706486 | AC44: 2022-12-28 | AD44: 2022-04-12 | AE44: 2022-12-31 | AF44: 180 | AG44: 1 | AH44: 66 | AM44: En ejecución | AN44: =IF(ISERROR(AB44/AA44),"-",(AB44/AA44)) -> 0.2886472506
A45: 6152020 | B45: 2020 | C45: FDLSC-CMA-002-2020 | D45: https://community.secop.gov.co/Public/Tendering/OpportunityDetail/Index?noticeUID=CO1.NTC.1554733&isFromPublicArea=True&isModal=true&asPopupView=true | E45: Interventoría | F45: Concurso de méritos | G45: No aplica | H45: REALIZAR LA INTERVENTORÍA, TÉCNICA, ADMINISTRATIVA, JURÍDICA, FINANCIERA, SOCIAL, AMBIENTAL Y DE SEGURIDAD Y SALUD EN EL TRABAJO AL CONTRATO CUYO OBJETO ES: “REALIZAR LAS OBRAS DE CONSERVACIÓN DE LA MALLA VIAL Y ESPACIO PÚBLICO ASOCIADO EN LA LOCALIDAD DE SAN CRISTÓBAL, BOGOTÁ, D.C. A TRAVÉS DEL SISTEMA DE PRECIOS UNITARIOS FIJOS, SIN FORMULA DE REAJUSTE Y A MONTO AGOTABLE” | I45: Inversión | J45: Un nuevo contrato social y ambiental para la Bogotá del Siglo XXI | K45: 49 | L45: =IF(ISERROR(VLOOKUP(K45,#REF!,2,FALSE))," ",VLOOKUP(K45,#REF!,2,FALSE)) ->  | M45: =IF(ISERROR(VLOOKUP(K45,#REF!,3,FALSE))," ",VLOOKUP(K45,#REF!,3,FALSE)) ->  | N45: 1871 | O45: 62 | P45: 901442113 | Q45: CONSORCIO INTER GEOTERRA SAN CRISTOBAL | R45: Consorcio | S45: 800184582 | T45: GEOTECNICA & CIMENTACIONES SAS | U45: 0.5 | W45: 0 | X45: 0 | Y45: 1 | Z45: 332174241 | AA45: =+W45+X45+Z45 -> 332174241 | AB45: 188055214 | AC45: 2022-02-14 | AD45: 2021-03-15 | AE45: 2022-06-14 | AF45: 450 | AG45: 1 | AH45: 120 | AM45: Liquidado | AN45: =IF(ISERROR(AB45/AA45),"-",(AB45/AA45)) -> 0.5661342476
A46: FDLSC-CPS-651-2022 | B46: 2022 | C46: FDLSC-SAMC-004-2022 | D46: https://community.secop.gov.co/Public/Tendering/OpportunityDetail/Index?noticeUID=CO1.NTC.3624410&isFromPublicArea=True&isModal=true&asPopupView=true | E46: Contratos de prestación de servicios | F46: Selección abreviada | G46: Selección abreviada por menor cuantía | H46: PRESTACIÓN DE SERVICIOS PARA EL FORTALECIMIENTO, ACOMPAÑAMIENTO Y ASESORÍA EN LA FORMULACIÓN Y EJECUCIÓN DE LOS PROCESOS CIUDADANOS DE EDUCACIÓN AMBIENTAL DE LA LOCALIDAD DE SAN CRISTÓBAL | I46: Inversión | J46: Un nuevo contrato social y ambiental para la Bogotá del Siglo XXI | K46: 27 | L46: =IF(ISERROR(VLOOKUP(K46,#REF!,2,FALSE))," ",VLOOKUP(K46,#REF!,2,FALSE)) ->  | M46: =IF(ISERROR(VLOOKUP(K46,#REF!,3,FALSE))," ",VLOOKUP(K46,#REF!,3,FALSE)) ->  | N46: 1859 | O46: 4 | P46: 900219569 | Q46: FUNDACION SIN ANIMO DE LUCRO ECOLOGICA FULECOL- FULECOL | R46: Persona Jurídica | T46: N/A | U46: N/A | W46: 262864000 | X46: 0 | Y46: 1 | Z46: 64875905 | AA46: =+W46+X46+Z46 -> 327739905 | AB46: 0 | AC46: 2022-12-27 | AD46: 2022-12-30 | AE46: 2023-06-26 | AF46: 180 | AG46: 0 | AH46: 0 | AM46: En ejecución | AN46: =IF(ISERROR(AB46/AA46),"-",(AB46/AA46)) -> 0
A47: FDLSC-CTOI-669-2022 | B47: 2022 | C47: FDLSC-CD-353-2022 | D47: https://community.secop.gov.co/Public/Tendering/OpportunityDetail/Index?noticeUID=CO1.NTC.3686807&isFromPublicArea=True&isModal=true&asPopupView=true | E47: Convenios/Contratos interadministrativos | F47: Contratación directa | G47: Contratos interadministrativos | H47: CONTRATAR LA GERENCIA INTEGRAL PARA DESARROLLAR ACTIVIDADES DE PROYECTOS DE INVERSIÓN DEL FONDO DE DESARROLLO LOCAL DE SAN CRISTÓBAL RELACIONADOS CON TEMÁTICAS SOCIALES QUE IMPACTAN DIRECTAMENTE LA COMUNIDAD DE LA LOCALIDAD. | I47: Inversión | J47: Un nuevo contrato social y ambiental para la Bogotá del Siglo XXI | K47: 33 | L47: =IF(ISERROR(VLOOKUP(K47,#REF!,2,FALSE))," ",VLOOKUP(K47,#REF!,2,FALSE)) ->  | M47: =IF(ISERROR(VLOOKUP(K47,#REF!,3,FALSE))," ",VLOOKUP(K47,#REF!,3,FALSE)) ->  | N47: 1867 | O47: 0 | P47: 900258772 | Q47: FONDO DE DESARROLLO DE PROYECTOS DE CUNDINAMARCA - FONDECÚN | R47: Persona Jurídica | T47: N/A | U47: N/A | W47: 312259995 | X47: 0 | Y47: 0 | Z47: 0 | AA47: =+W47+X47+Z47 -> 312259995 | AB47: 0 | AC47: 2022-12-29 | AF47: 240 | AM47: Celebrado o por iniciar | AN47: =IF(ISERROR(AB47/AA47),"-",(AB47/AA47)) -> 0
A48: FDLSC-CPS-660-2022 | B48: 2022 | C48: FDLSC-SAMC-014-2022 | D48: https://community.secop.gov.co/Public/Tendering/OpportunityDetail/Index?noticeUID=CO1.NTC.3627454&isFromPublicArea=True&isModal=true&asPopupView=true | E48: Contratos de prestación de servicios | F48: Selección abreviada | G48: Selección abreviada por menor cuantía | H48: CONTRATAR LOS SERVICIOS TÉCNICOS Y OPERATIVOS ENTRE EL FONDO DE DESARROLLO LOCAL DE SAN CRISTÓBAL Y EL PROPONENTE, PARA EJECUTAR ACTIVIDADES DE AVANCE, FORTALECIMIENTO Y MANEJO DE AGRICULTURA URBANA EN LA LOCALIDAD DE SAN CRISTÓBAL | I48: Inversión | J48: Un nuevo contrato social y ambiental para la Bogotá del Siglo XXI | K48: 24 | L48: =IF(ISERROR(VLOOKUP(K48,#REF!,2,FALSE))," ",VLOOKUP(K48,#REF!,2,FALSE)) ->  | M48: =IF(ISERROR(VLOOKUP(K48,#REF!,3,FALSE))," ",VLOOKUP(K48,#REF!,3,FALSE)) ->  | N48: 1813 | O48: 6 | P48: 900164390 | Q48: IMPULSAR FUNDACIÓN SOCIAL | R48: Persona Jurídica | T48: N/A | U48: N/A | W48: 296164577 | X48: 0 | Y48: 0 | Z48: 0 | AA48: =+W48+X48+Z48 -> 296164577 | AB48: 0 | AC48: 2022-12-28 | AF48: 180 | AM48: Celebrado o por iniciar | AN48: =IF(ISERROR(AB48/AA48),"-",(AB48/AA48)) -> 0
A49: 85202 | B49: 2022 | C49: 124302 | D49: https://colombiacompra.gov.co/tienda-virtual-del-estado-colombiano/ordenes-compra/85202 | E49: Otros | F49: Selección abreviada | G49: Acuerdo marco de precios | H49: CONTRATAR LA PRESTACIÓN DE SERVICIO Y SUMINISTRO DE ASEO Y CAFETERÍA PARA LAS INSTALACIONES DE LA ALCALDÍA LOCAL DE SAN CRISTOBAL SUS SEDES Y LA JUNTA ADMINISTRADORA LOCAL, DE CONFORMIDAD CON LAS DISPOSICIONES TÉCNICAS ESTABLECIDAS EN EL ACUERDO MARCO DE PRECIOS No CCE-972-AMP-2019 | I49: Funcionamiento | J49: Un nuevo contrato social y ambiental para la Bogotá del Siglo XXI | K49: No aplica | L49: =IF(ISERROR(VLOOKUP(K49,#REF!,2,FALSE))," ",VLOOKUP(K49,#REF!,2,FALSE)) ->  | M49: =IF(ISERROR(VLOOKUP(K49,#REF!,3,FALSE))," ",VLOOKUP(K49,#REF!,3,FALSE)) ->  | N49: 5330 | O49: 16 | P49: 800242738 | Q49: LADOINSA | R49: Persona Jurídica | T49: N/A | U49: N/A | W49: 199214266 | X49: 0 | Y49: 1 | Z49: 60785733 | AA49: =+W49+X49+Z49 -> 259999999 | AB49: 183143751 | AC49: 2022-02-11 | AD49: 2022-02-11 | AE49: 2023-03-21 | AF49: 300 | AG49: 1 | AH49: 96 | AM49: En ejecución | AN49: =IF(ISERROR(AB49/AA49),"-",(AB49/AA49)) -> 0.704399045
A50: FDLSC-CV-568-2022 | B50: 2022 | C50: FDLSC-SASI-006-2022 LOTE 1 MAQUINARIA DE CONFECCIÓN FDLSC-SASI-006-2022 LOTE 3 MAQUINARIA DE BELLEZA Y ESTÉTICA FDLSC-SASI-006-2022 LOTE 4 MAQUINARIA Y ELEMENTOS PARA COCINA Y PANADERÍA. | D50: https://community.secop.gov.co/Public/Tendering/OpportunityDetail/Index?noticeUID=CO1.NTC.3304278&isFromPublicArea=True&isModal=true&asPopupView=true | E50: Compraventa de bienes muebles | F50: Selección abreviada | G50: Subasta inversa | H50: CONTRATAR A MONTO AGOTABLE LA ADQUISICIÓN Y DISTRIBUCIÓN DE ELEMENTOS PARA EL CENTRO DE DESARROLLO COMUNITARIO SAN BLAS DE LA LOCALIDAD DE SAN CRISTÓBAL, EN EL MARCO DEL PROYECTO 1811 SAN CRISTÓBAL TE CUIDA.” | I50: Inversión | J50: Un nuevo contrato social y ambiental para la Bogotá del Siglo XXI | K50: 6 | L50: =IF(ISERROR(VLOOKUP(K50,#REF!,2,FALSE))," ",VLOOKUP(K50,#REF!,2,FALSE)) ->  | M50: =IF(ISERROR(VLOOKUP(K50,#REF!,3,FALSE))," ",VLOOKUP(K50,#REF!,3,FALSE)) ->  | N50: 1811 | O50: 11 | P50: 900486425 | Q50: WORKING PROJECTS SAS | R50: Persona Jurídica | T50: N/A | U50: N/A | W50: 249677587 | X50: 0 | Y50: 0 | Z50: 0 | AA50: =+W50+X50+Z50 -> 249677587 | AB50: 0 | AC50: 2022-11-09 | AD50: 2022-11-16 | AE50: 2023-03-15 | AF50: 120 | AG50: 0 | AH50: 0 | AM50: En ejecución | AN50: =IF(ISERROR(AB50/AA50),"-",(AB50/AA50)) -> 0
A51: FDLSC-CV-569-2022 | B51: 2022 | C51: FDLSC-SASI-006-2022 LOTE 2 MATERIAL TECNOLÓGICO | D51: https://community.secop.gov.co/Public/Tendering/OpportunityDetail/Index?noticeUID=CO1.NTC.3304278&isFromPublicArea=True&isModal=true&asPopupView=true | E51: Compraventa de bienes muebles | F51: Selección abreviada | G51: Subasta inversa | H51: CONTRATAR A MONTO AGOTABLE LA ADQUISICIÓN Y DISTRIBUCIÓN DE ELEMENTOS PARA EL CENTRO DE DESARROLLO COMUNITARIO SAN BLAS DE LA LOCALIDAD DE SAN CRISTÓBAL, EN EL MARCO DEL PROYECTO 1811 SAN CRISTÓBAL TE CUIDA. | I51: Inversión | J51: Un nuevo contrato social y ambiental para la Bogotá del Siglo XXI | K51: 6 | L51: =IF(ISERROR(VLOOKUP(K51,#REF!,2,FALSE))," ",VLOOKUP(K51,#REF!,2,FALSE)) ->  | M51: =IF(ISERROR(VLOOKUP(K51,#REF!,3,FALSE))," ",VLOOKUP(K51,#REF!,3,FALSE)) ->  | N51: 1811 | O51: 11 | P51: 830005066 | Q51: SECURITY VIDEO EQUIPMENT SAS | R51: Persona Jurídica | T51: N/A | U51: N/A | W51: 242580798 | X51: 0 | Y51: 0 | Z51: 0 | AA51: =+W51+X51+Z51 -> 242580798 | AB51: 0 | AC51: 2022-11-10 | AD51: 2022-11-16 | AE51: 2023-03-15 | AF51: 120 | AG51: 0 | AH51: 0 | AM51: En ejecución | AN51: =IF(ISERROR(AB51/AA51),"-",(AB51/AA51)) -> 0
A52: FDLSC-CVNI-668-2022 | B52: 2022 | C52: FDLSC-CD-352-2022 | D52: https://community.secop.gov.co/Public/Tendering/OpportunityDetail/Index?noticeUID=CO1.NTC.3686568&isFromPublicArea=True&isModal=true&asPopupView=true | E52: Convenios/Contratos interadministrativos | F52: Contratación directa | G52: Contratos interadministrativos | H52: AUNAR ESFUERZOS, TÉCNICOS, ADMINISTRATIVOS Y FINANCIEROS PARA DESARROLLAR ACTIVIDADES DE PROYECTOS DE INVERSIÓN DEL FONDO DE DESARROLLO LOCAL DE SAN CRISTÓBAL RELACIONADOS CON TEMÁTICAS SOCIALES QUE IMPACTAN DIRECTAMENTE LA COMUNIDAD DE LA LOCALIDAD | I52: Inversión | J52: Un nuevo contrato social y ambiental para la Bogotá del Siglo XXI | K52: 38 | L52: =IF(ISERROR(VLOOKUP(K52,#REF!,2,FALSE))," ",VLOOKUP(K52,#REF!,2,FALSE)) ->  | M52: =IF(ISERROR(VLOOKUP(K52,#REF!,3,FALSE))," ",VLOOKUP(K52,#REF!,3,FALSE)) ->  | N52: 1868 | O52: 0 | P52: 901100455 | Q52: ALIANZA PÚBLICA PARA EL DESARROLLO INTEGRAL – ALDESARROLLO | R52: Persona Jurídica | T52: N/A | U52: N/A | W52: 235407962 | X52: 0 | Y52: 0 | Z52: 0 | AA52: =+W52+X52+Z52 -> 235407962 | AB52: 0 | AC52: 2022-12-29 | AF52: 240 | AM52: Celebrado o por iniciar | AN52: =IF(ISERROR(AB52/AA52),"-",(AB52/AA52)) -> 0
A53: FDLSC-CPS-666-2022 | B53: 2022 | C53: FDLSC-SAMC-005-2022 | D53: https://community.secop.gov.co/Public/Tendering/OpportunityDetail/Index?noticeUID=CO1.NTC.3601213&isFromPublicArea=True&isModal=true&asPopupView=true | E53: Contratos de prestación de servicios | F53: Selección abreviada | G53: Selección abreviada por menor cuantía | H53: CONTRATAR LOS SERVICIOS DE APOYO LOGÍSTICOS, TRANSPORTE, PUBLICITARIOS, ELEMENTOS DE MERCHANDISING Y CATERING REQUERIDOS PARA EL DESARROLLO OPERATIVO DE LOS EVENTOS LIDERADOS POR LA ALCALDIA LOCAL DE SAN CRISTÓBAL | I53: Inversión | J53: Un nuevo contrato social y ambiental para la Bogotá del Siglo XXI | K53: 57 | L53: =IF(ISERROR(VLOOKUP(K53,#REF!,2,FALSE))," ",VLOOKUP(K53,#REF!,2,FALSE)) ->  | M53: =IF(ISERROR(VLOOKUP(K53,#REF!,3,FALSE))," ",VLOOKUP(K53,#REF!,3,FALSE)) ->  | N53: 1873 | O53: 1 | P53: 900521780 | Q53: B2 NETWORKS S A S | R53: Persona Jurídica | T53: N/A | U53: N/A | W53: 229538116 | X53: 0 | Y53: 0 | Z53: 0 | AA53: =+W53+X53+Z53 -> 229538116 | AB53: 0 | AC53: 2022-12-28 | AF53: 180 | AM53: Celebrado o por iniciar | AN53: =IF(ISERROR(AB53/AA53),"-",(AB53/AA53)) -> 0
A54: FDLSC-CVNI-374-2022 | B54: 2022 | C54: FDLSC-CD-176-2022 | D54: https://www.contratos.gov.co/consultas/detalleProceso.do?numConstancia=22-22-36865&g-recaptcha-response=03ANYolqsJE-6O_vQJOChod67mHaono8UeqgyLP06RRKI7UWEmia8gTw1SkaVLKV1FyGEgNd1WGDZQnZiF6IBBsI0-95z7Pug6CJSJTkQzZV1h5A2r60_zH5LhM0lEOopHSmdSEgiuLhpXYIh3VJWYM2S8rWC1mgXNC59KAByJqiOpr0vlAj1Uhc1RNHLZVp9u_WtKnj9F_nwqbwF9pOA9--EXJoZbXZ4wRg6WWWlvnyupHcqupx5oiB0YSdAnm64DGZ6p84ssrqxJ0ezoBQ3mNwOI44Pg5Tv4zl_q_IwkF7VkGCkjYF63-oWUwxvD14VabG_Wx6MbF24SDDN1koecTtQGHbp9axeGEc5YQRbUop5SQCzEIms1wiUiN8jccflKD2bssezzosviXac9_yhYWBC4NdpWsJNl7oueK-AVepNPvMJSGLbkmAtvhc8sx-mhy4Y9ffpH0FejhkPh9-l0jR9O9wJJC55e0A | E54: Convenios/Contratos interadministrativos | F54: Contratación directa | G54: Contratos interadministrativos | H54: AUNAR ESFUERZOS TÉCNICOS, ADMINISTRATIVOS Y FINANCIEROS CON EL FIN DE DESARROLLAR ACCIONES ARTICULADAS ENTRE LA SCRD, EL IDARTES Y LOS FONDOS DE DESARROLLO LOCAL, ORIENTADAS A FOMENTAR PROCESOS DE FORMACIÓN, CUALIFICACIÓN, FORTALECIMIENTO DE LOS AGENTES CULTURALES TERRITORIALES DEL DISTRITO CAPITAL, EN EL MARCO DE LA GENERACIÓN Y CIRCULACIÓN DE BIENES Y SERVICIOS CULTURALES, ARTISTICOS Y PATRIMONIALES DE CONFORMIDAD CON LAS INICIATIVAS PRIORIZADAS Y CONCERTADAS EN LA ESTRATEGIA DISTRITAL "PRESUPUESTOS PARTICIPATIVOS" Y/O DE LAS CONCERTACIONES CON LOS GRUPOS DE INTERÉS DE LAS LOCALIDADES Y A LAS ACCIONES ADELANTADAS EN EL "PROCESO MISIONAL DE FOMENTO", DE ACUERDO CON LOS PROYECTOS A EJECUTAR ASOCIADOS A LAS METAS DE CADA LOCALIDAD EN EL PROGRAMA "ES CULTURA LOCAL 2022". | I54: Inversión | J54: Un nuevo contrato social y ambiental para la Bogotá del Siglo XXI | K54: 24 | L54: Creación y vida cotidiana: Apropiación ciudadana del arte, la cultura y el patrimonio, para la democracia cultural | M54: Propósito 1: Hacer un nuevo contrato social para incrementar la inclusión social, productiva y política | N54: 1858 | O54: 0 | P54: 899999061 | Q54: SECRETARIA DISTRITAL DE CULTURA RECREACI ON Y DEPORTE | R54: Persona Jurídica | T54: N/A | U54: N/A | W54: 225000000 | X54: 0 | Y54: 0 | Z54: 0 | AA54: =+W54+X54+Z54 -> 225000000 | AB54: 189427500 | AC54: 2022-07-08 | AD54: 2022-07-19 | AE54: 2023-08-31 | AF54: 395 | AG54: 0 | AH54: 0 | AM54: En ejecución | AN54: =IF(ISERROR(AB54/AA54),"-",(AB54/AA54)) -> 0.8419
A55: 538 | B55: 2021 | C55: FDLSC-SAMC-015-2021 | D55: https://community.secop.gov.co/Public/Tendering/OpportunityDetail/Index?noticeUID=CO1.NTC.2459561&isFromPublicArea=True&isModal=true&asPopupView=true | E55: Contratos de prestación de servicios | F55: Selección abreviada | G55: Selección abreviada por menor cuantía | H55: PRESTACIÓN DE SERVICIOS DE APOYO A LA GESTIÓN PARA LA REALIZACIÓN DE LAS INICIATIVAS DEPORTIVAS EN DIFERENTES ACTIVIDADES RECREO-DEPORTIVAS EN LA LOCALIDAD DE SAN CRISTÓBAL | I55: Inversión | J55: Un nuevo contrato social y ambiental para la Bogotá del Siglo XXI | K55: 20 | L55: =IF(ISERROR(VLOOKUP(K55,#REF!,2,FALSE))," ",VLOOKUP(K55,#REF!,2,FALSE)) ->  | M55: =IF(ISERROR(VLOOKUP(K55,#REF!,3,FALSE))," ",VLOOKUP(K55,#REF!,3,FALSE)) ->  | N55: 1801 | O55: 3 | P55: 900572437 | Q55: FUNDACION PAIS HUMANO | R55: Persona Jurídica | S55: N/A | T55: N/A | U55: N/A | W55: 216183209 | X55: 0 | Y55: 0 | Z55: 0 | AA55: =+W55+X55+Z55 -> 216183209 | AB55: 43236642 | AC55: 2021-12-31 | AD55: 2022-04-05 | AE55: 2022-12-04 | AF55: 240 | AG55: 0 | AH55: 0 | AM55: Terminado | AN55: =IF(ISERROR(AB55/AA55),"-",(AB55/AA55)) -> 0.2000000009
A56: FDLSC-CSU-371-2022 | B56: 2022 | C56: FDLSC-SASI-001-2022 | D56: https://community.secop.gov.co/Public/Tendering/OpportunityDetail/Index?noticeUID=CO1.NTC.2942362&isFromPublicArea=True&isModal=False | E56: Suministro | F56: Selección abreviada | G56: Subasta inversa | H56: SUMINISTRO DE ELEMENTOS DE CONSTRUCCIÓN, HERRAMIENTAS Y FERRETERÍA NECESARIOS PARA LA REHABILITACIÓN, MANTENIMIENTO DE LA MALLA VIAL, ESPACIO PÚBLICO Y CICLO-INFRAESTRUCTURA DE LA LOCALIDAD DE SAN CRISTOBAL, A MONTO AGOTABLE | I56: Inversión | J56: Un nuevo contrato social y ambiental para la Bogotá del Siglo XXI | K56: 49 | L56: =IF(ISERROR(VLOOKUP(K56,#REF!,2,FALSE))," ",VLOOKUP(K56,#REF!,2,FALSE)) ->  | M56: =IF(ISERROR(VLOOKUP(K56,#REF!,3,FALSE))," ",VLOOKUP(K56,#REF!,3,FALSE)) ->  | N56: 1871 | O56: 15 | P56: 900495749 | Q56: COMERCIALIZADORA ELECTROMERO SAS | R56: Persona Jurídica | T56: N/A | U56: N/A | W56: 208830784 | X56: 0 | Y56: 0 | Z56: 0 | AA56: =+W56+X56+Z56 -> 208830784 | AB56: 33106016 | AC56: 2022-06-24 | AD56: 2022-06-24 | AE56: 2023-04-30 | AF56: 270 | AG56: 0 | AH56: 0 | AM56: En ejecución | AN56: =IF(ISERROR(AB56/AA56),"-",(AB56/AA56)) -> 0.1585303439
A57: FDLSC-CV-665-2022 | B57: 2022 | C57: FDLSC-SASI-012-2022 | D57: https://community.secop.gov.co/Public/Tendering/OpportunityDetail/Index?noticeUID=CO1.NTC.3620078&isFromPublicArea=True&isModal=true&asPopupView=true | E57: Compraventa de bienes muebles | F57: Selección abreviada | G57: Subasta inversa | H57: CONTRATAR LA ADQUISICIÓN DE ELEMENTOS PARA EL FORTALECIMIENTO DEL CENTRO DE RESERVAS Y ACCIONES OPERATIVAS DE LA LOCALIDAD DE SAN CRISTÓBAL | I57: Inversión | J57: Un nuevo contrato social y ambiental para la Bogotá del Siglo XXI | K57: 30 | L57: =IF(ISERROR(VLOOKUP(K57,#REF!,2,FALSE))," ",VLOOKUP(K57,#REF!,2,FALSE)) ->  | M57: =IF(ISERROR(VLOOKUP(K57,#REF!,3,FALSE))," ",VLOOKUP(K57,#REF!,3,FALSE)) ->  | N57: 1866 | O57: 3 | P57: 900505401 | Q57: ESM SOLUTIONS SAS | R57: Persona Jurídica | T57: N/A | U57: N/A | W57: 204242910 | X57: 0 | Y57: 0 | Z57: 0 | AA57: =+W57+X57+Z57 -> 204242910 | AB57: 0 | AC57: 2022-12-28 | AD57: 2023-01-04 | AE57: 2023-07-03 | AF57: 180 | AG57: 0 | AH57: 0 | AM57: En ejecución | AN57: =IF(ISERROR(AB57/AA57),"-",(AB57/AA57)) -> 0
A58: FDLSC-CTOI-670-2022 | B58: 2022 | C58: FDLSC-CD-354-2022 | D58: https://community.secop.gov.co/Public/Tendering/OpportunityDetail/Index?noticeUID=CO1.NTC.3684953&isFromPublicArea=True&isModal=true&asPopupView=true | E58: Convenios/Contratos interadministrativos | F58: Contratación directa | G58: Contratos interadministrativos | H58: PRESTAR EL SERVICIO DE ACCIONES TÉCNICAS, METODOLÓGICAS, OPERATIVAS Y LOGÍSTICAS PARA IMPLEMENTAR ESTRATEGIAS DE RECONOCIMIENTO DE LOS SABERES ANCESTRALES EN MEDICINA EN LA LOCALIDAD DE SAN CRISTÓBAL. | I58: Inversión | J58: Un nuevo contrato social y ambiental para la Bogotá del Siglo XXI | K58: 6 | L58: =IF(ISERROR(VLOOKUP(K58,#REF!,2,FALSE))," ",VLOOKUP(K58,#REF!,2,FALSE)) ->  | M58: =IF(ISERROR(VLOOKUP(K58,#REF!,3,FALSE))," ",VLOOKUP(K58,#REF!,3,FALSE)) ->  | N58: 1843 | O58: 0 | P58: 830032429 | Q58: CABILDO INDIGENA INGA DE BOGOTÁ D.C | R58: Persona Jurídica | T58: N/A | U58: N/A | W58: 194195000 | X58: 0 | Y58: 0 | Z58: 0 | AA58: =+W58+X58+Z58 -> 194195000 | AB58: 0 | AC58: 2022-12-28 | AF58: 180 | AM58: Celebrado o por iniciar | AN58: =IF(ISERROR(AB58/AA58),"-",(AB58/AA58)) -> 0
A59: 515 | B59: 2021 | C59: FDLSC-LP-005-2021 | D59: https://community.secop.gov.co/Public/Tendering/OpportunityDetail/Index?noticeUID=CO1.NTC.2420248&isFromPublicArea=True&isModal=true&asPopupView=true | E59: Contratos de prestación de servicios | F59: Licitación pública | G59: No aplica | H59: PRESTAR LOS SERVICIOS PARA EL FORTALECIMIENTO DE LOS MECANISMOS DE JUSTICIA COMUNITARIA PARA LA TRANSFORMACIÓN DE LA CONFLICTIVIDAD EN LA LOCALIDAD DE SAN CRISTÓBAL. | I59: Inversión | J59: Un nuevo contrato social y ambiental para la Bogotá del Siglo XXI | K59: 48 | L59: =IF(ISERROR(VLOOKUP(K59,#REF!,2,FALSE))," ",VLOOKUP(K59,#REF!,2,FALSE)) ->  | M59: =IF(ISERROR(VLOOKUP(K59,#REF!,3,FALSE))," ",VLOOKUP(K59,#REF!,3,FALSE)) ->  | N59: 1844 | O59: 0 | P59: 900521780 | Q59: B2 NETWORKS SAS | R59: Persona Jurídica | S59: N/A | T59: N/A | U59: N/A | W59: 0 | X59: 0 | Y59: 1 | Z59: 185692500 | AA59: =+W59+X59+Z59 -> 185692500 | AB59: 86333154 | AC59: 2022-08-12 | AD59: 2022-02-23 | AE59: 2022-11-22 | AF59: 105 | AG59: 1 | AH59: 12 | AM59: Terminado | AN59: =IF(ISERROR(AB59/AA59),"-",(AB59/AA59)) -> 0.4649253686
A60: FDLSC-CV-650-2022 | B60: 2022 | C60: FDLSC-SASI-014-2022 | D60: https://community.secop.gov.co/Public/Tendering/OpportunityDetail/Index?noticeUID=CO1.NTC.3624166&isFromPublicArea=True&isModal=true&asPopupView=true | E60: Compraventa de bienes muebles | F60: Selección abreviada | G60: Subasta inversa | H60: ADQUIRIR LA DOTACIÓN TÉCNICA ESPECIALIZADA Y PUESTA EN FUNCIONAMIENTO DE SISTEMAS DE SONIDO, EQUIPOS TECNOLÓGICOS, ESTRUCTURAS METÁLICAS Y MOBILIARIO PARA PROMOVER LA GESTIÓN LOCAL EN LOS TEMAS DE ARTE, CULTURA Y PATRIMONIO EN LA LOCALIDAD DE SAN CRISTÓBAL | I60: Inversión | J60: Un nuevo contrato social y ambiental para la Bogotá del Siglo XXI | K60: 21 | L60: =IF(ISERROR(VLOOKUP(K60,#REF!,2,FALSE))," ",VLOOKUP(K60,#REF!,2,FALSE)) ->  | M60: =IF(ISERROR(VLOOKUP(K60,#REF!,3,FALSE))," ",VLOOKUP(K60,#REF!,3,FALSE)) ->  | N60: 1803 | O60: 5 | P60: 830005066 | Q60: SECURITY VIDEO EQUIPMENT SAS | R60: Persona Jurídica | T60: N/A | U60: N/A | W60: 184396771 | X60: 0 | Y60: 0 | Z60: 0 | AA60: =+W60+X60+Z60 -> 184396771 | AB60: 0 | AC60: 2022-12-27 | AD60: 2023-01-10 | AE60: 2023-05-09 | AF60: 120 | AG60: 0 | AH60: 0 | AM60: En ejecución | AN60: =IF(ISERROR(AB60/AA60),"-",(AB60/AA60)) -> 0
A61: FDLSC-CV-563-2022 | B61: 2022 | C61: FDLSC-SASI-007-2022 | D61: https://community.secop.gov.co/Public/Tendering/OpportunityDetail/Index?noticeUID=CO1.NTC.3309046&isFromPublicArea=True&isModal=true&asPopupView=true | E61: Compraventa de bienes muebles | F61: Selección abreviada | G61: Subasta inversa | H61: CONTRATAR LA ADQUISICIÓN Y DISTRIBUCIÓN DE LOS ELEMENTOS PEDAGÓGICOS PARA DAR DESARROLLO AL PROGRAMA DE RESOLUCIÓN DE CONFLICTOS EN LA COMUNIDAD ESCOLAR ORIENTADO AL MEJORAMIENTO DE LA CONVIVENCIA ENTRE LOS ACTORES PRESENTES EN LA ESCUELA Y COLEGIOS DE LA LOCALIDAD DE SAN CRISTÓBAL | I61: Inversión | J61: Un nuevo contrato social y ambiental para la Bogotá del Siglo XXI | K61: 48 | L61: =IF(ISERROR(VLOOKUP(K61,#REF!,2,FALSE))," ",VLOOKUP(K61,#REF!,2,FALSE)) ->  | M61: =IF(ISERROR(VLOOKUP(K61,#REF!,3,FALSE))," ",VLOOKUP(K61,#REF!,3,FALSE)) ->  | N61: 1844 | O61: 7 | P61: 900251139 | Q61: DISTRIBUIDORA Y COMERCIALIZADORA E W EL TRIANGULO SAS | R61: Persona Jurídica | T61: N/A | U61: N/A | W61: 182654920 | X61: 0 | Y61: 0 | Z61: 0 | AA61: =+W61+X61+Z61 -> 182654920 | AB61: 0 | AC61: 2022-11-02 | AD61: 2022-11-25 | AE61: 2023-03-24 | AF61: 90 | AG61: 0 | AH61: 0 | AM61: En ejecución | AN61: =IF(ISERROR(AB61/AA61),"-",(AB61/AA61)) -> 0
A62: 102973 | B62: 2022 | C62: 177197 | D62: https://colombiacompra.gov.co/tienda-virtual-del-estado-colombiano/ordenes-compra/102973 | E62: Otros | F62: Selección abreviada | G62: Acuerdo marco de precios | H62: CONTRATAR LA ADQUISICIÓN DE EQUIPOS TECNOLÓGICOS QUE INCIDAN EN EL FORTALECIMIENTO INSTITUCIONAL Y FOMENTO DE LA PARTICIPACIÓN CIUDADANA A TRAVÉS DE LA ESTRATEGIA GOBIERNO ABIERTO - LOTE 1: COMPUTADORES PORTATILES Y DISCOS DUROS EXTERNOS (LOTE 6 ACUERDO MARCO DE PRECIOS) | I62: Inversión | J62: Un nuevo contrato social y ambiental para la Bogotá del Siglo XXI | K62: 57 | L62: =IF(ISERROR(VLOOKUP(K62,#REF!,2,FALSE))," ",VLOOKUP(K62,#REF!,2,FALSE)) ->  | M62: =IF(ISERROR(VLOOKUP(K62,#REF!,3,FALSE))," ",VLOOKUP(K62,#REF!,3,FALSE)) ->  | N62: 1873 | O62: 25 | P62: 830001338 | Q62: SUMIMAS S A S | R62: Persona Jurídica | T62: N/A | U62: N/A | W62: 171639775 | X62: 0 | Y62: 0 | Z62: 0 | AA62: =+W62+X62+Z62 -> 171639775 | AB62: 0 | AC62: 2022-12-22 | AD62: 2022-12-22 | AE62: 2023-06-21 | AF62: 180 | AG62: 0 | AH62: 0 | AM62: En ejecución | AN62: =IF(ISERROR(AB62/AA62),"-",(AB62/AA62)) -> 0
A63: FDLSC-CSU-655-2022 | B63: 2022 | C63: FDLSC-SASI-013-2022 LOTE 1 | D63: https://community.secop.gov.co/Public/Tendering/OpportunityDetail/Index?noticeUID=CO1.NTC.3625526&isFromPublicArea=True&isModal=true&asPopupView=true | E63: Suministro | F63: Selección abreviada | G63: Subasta inversa | H63: CONTRATAR LA ADQUISICIÓN DE ELEMENTOS PARA LA EJECUCIÓN DE ACCIONES, EN EL MARCO DE LOS ESCENARIOS DE RIESGO CARACTERIZADOS EN EL PLAN LOCAL DE GESTIÓN DE RIESGOS DE LA LOCALIDAD DE SAN CRISTÓBAL | I63: Inversión | J63: Un nuevo contrato social y ambiental para la Bogotá del Siglo XXI | K63: 30 | L63: =IF(ISERROR(VLOOKUP(K63,#REF!,2,FALSE))," ",VLOOKUP(K63,#REF!,2,FALSE)) ->  | M63: =IF(ISERROR(VLOOKUP(K63,#REF!,3,FALSE))," ",VLOOKUP(K63,#REF!,3,FALSE)) ->  | N63: 1866 | O63: 11 | P63: 901151222 | Q63: CONVIL SOLUCIONES S.A.S | R63: Persona Jurídica | T63: N/A | U63: N/A | W63: 150000000 | X63: 0 | Y63: 0 | Z63: 0 | AA63: =+W63+X63+Z63 -> 150000000 | AB63: 0 | AC63: 2022-12-28 | AF63: 240 | AM63: Celebrado o por iniciar | AN63: =IF(ISERROR(AB63/AA63),"-",(AB63/AA63)) -> 0
A64: FDLSC-CSU-656-2022 | B64: 2022 | C64: FDLSC-SASI-013-2022 LOTE 2 | D64: https://community.secop.gov.co/Public/Tendering/OpportunityDetail/Index?noticeUID=CO1.NTC.3625526&isFromPublicArea=True&isModal=true&asPopupView=true | E64: Suministro | F64: Selección abreviada | G64: Subasta inversa | H64: CONTRATAR LA ADQUISICIÓN DE ELEMENTOS PARA LA EJECUCIÓN DE ACCIONES, EN EL MARCO DE LOS ESCENARIOS DE RIESGO CARACTERIZADOS EN EL PLAN LOCAL DE GESTIÓN DE RIESGOS DE LA LOCALIDAD DE SAN CRISTÓBAL | I64: Inversión | J64: Un nuevo contrato social y ambiental para la Bogotá del Siglo XXI | K64: 30 | L64: =IF(ISERROR(VLOOKUP(K64,#REF!,2,FALSE))," ",VLOOKUP(K64,#REF!,2,FALSE)) ->  | M64: =IF(ISERROR(VLOOKUP(K64,#REF!,3,FALSE))," ",VLOOKUP(K64,#REF!,3,FALSE)) ->  | N64: 1866 | O64: 11 | P64: 830109420 | Q64: BRAND CENTER S.A.S. | R64: Persona Jurídica | T64: N/A | U64: N/A | W64: 150000000 | X64: 0 | Y64: 0 | Z64: 0 | AA64: =+W64+X64+Z64 -> 150000000 | AB64: 0 | AC64: 2022-12-28 | AF64: 240 | AM64: Celebrado o por iniciar | AN64: =IF(ISERROR(AB64/AA64),"-",(AB64/AA64)) -> 0
A65: FDLSC-CCO-640-2022 | B65: 2022 | C65: FDLSC-CMA-004-2022 | D65: https://community.secop.gov.co/Public/Tendering/OpportunityDetail/Index?noticeUID=CO1.NTC.3616031&isFromPublicArea=True&isModal=true&asPopupView=true | E65: Consultoría | F65: Concurso de méritos | G65: No aplica | H65: CONTRATAR LA ELABORACIÓN DE ESTUDIOS, DISEÑOS Y OBTENCIÓN DE LA LICENCIA DE CONSTRUCCIÓN EN LA MODALIDAD QUE CORRESPONDA Y DISPONIBILIDAD DE SERVICIOS PUBLICOS PARA LA CONSTRUCCIÓN DE SALONES COMUNALES EN LA LOCALIDAD DE SAN CRISTOBAL DE LA CIUDAD DE BOGOTÁ D. C | I65: Inversión | J65: Un nuevo contrato social y ambiental para la Bogotá del Siglo XXI | K65: 55 | L65: =IF(ISERROR(VLOOKUP(K65,#REF!,2,FALSE))," ",VLOOKUP(K65,#REF!,2,FALSE)) ->  | M65: =IF(ISERROR(VLOOKUP(K65,#REF!,3,FALSE))," ",VLOOKUP(K65,#REF!,3,FALSE)) ->  | N65: 1872 | O65: 4 | P65: 900331710 | Q65: GRUPO M&M CONSULTORIA S.A.S | R65: Persona Jurídica | T65: N/A | U65: N/A | W65: 147674873 | X65: 0 | Y65: 0 | Z65: 0 | AA65: =+W65+X65+Z65 -> 147674873 | AB65: 0 | AC65: 2022-12-21 | AF65: 180 | AM65: Celebrado o por iniciar | AN65: =IF(ISERROR(AB65/AA65),"-",(AB65/AA65)) -> 0
A66: 521 | B66: 2021 | C66: FDLSC-CMA-001-2021 | D66: https://community.secop.gov.co/Public/Tendering/OpportunityDetail/Index?noticeUID=CO1.NTC.2434222&isFromPublicArea=True&isModal=true&asPopupView=true | E66: Interventoría | F66: Concurso de méritos | G66: No aplica | H66: REALIZAR LA INTERVENTORÍA TÉCNICA ADMINISTRATIVA,JURÍDICA FINANCIERA SOCIAL AMBIENTAL Y DE SEGURIDAD Y SALUD EN EL TRABAJO AL CONTRATO cuyo objeto es EJECUTAR A PRECIOS UNITARIOS SIN FÓRMULA DE REAJUSTE Y A MONTO AGOTABLE, LAS ACTIVIDADES NECESARIAS PARA LA CONSTRUCCIÓN DE LA MALLA VIAL DE LA LOCALIDAD DE SAN CRISTÓBAL, EN BOGOTA D.C. | I66: Inversión | J66: Un nuevo contrato social y ambiental para la Bogotá del Siglo XXI | K66: 49 | L66: =IF(ISERROR(VLOOKUP(K66,#REF!,2,FALSE))," ",VLOOKUP(K66,#REF!,2,FALSE)) ->  | M66: =IF(ISERROR(VLOOKUP(K66,#REF!,3,FALSE))," ",VLOOKUP(K66,#REF!,3,FALSE)) ->  | N66: 1871 | O66: 0 | P66: 900916608 | Q66: GAVINCO INGENIEROS CONSULTORES S A S | R66: Persona Jurídica | S66: N/A | T66: N/A | U66: N/A | W66: 0 | X66: 0 | Y66: 1 | Z66: 145089733 | AA66: =+W66+X66+Z66 -> 145089733 | AB66: 11605617 | AC66: 2022-08-05 | AD66: 2022-02-04 | AE66: 2022-12-19 | AF66: 249 | AG66: 1 | AH66: 23 | AM66: Liquidado | AN66: =IF(ISERROR(AB66/AA66),"-",(AB66/AA66)) -> 0.07998923673
B67: 2022 | E67: Otros gastos | H67: PAGO DE SALUD EDILES 2022 | I67: Funcionamiento | J67: Un nuevo contrato social y ambiental para la Bogotá del Siglo XXI | K67: No aplica | L67: =IF(ISERROR(VLOOKUP(K67,#REF!,2,FALSE))," ",VLOOKUP(K67,#REF!,2,FALSE)) ->  | M67: =IF(ISERROR(VLOOKUP(K67,#REF!,3,FALSE))," ",VLOOKUP(K67,#REF!,3,FALSE)) ->  | N67: 1349 | O67: 0 | W67: 135105200 | X67: 0 | Y67: 0 | Z67: 0 | AA67: =+W67+X67+Z67 -> 135105200 | AB67: 135054000 | AN67: =IF(ISERROR(AB67/AA67),"-",(AB67/AA67)) -> 0.9996210361
A68: 100283 | B68: 2022 | C68: 166660 | D68: https://colombiacompra.gov.co/tienda-virtual-del-estado-colombiano/ordenes-compra/100283 | E68: Otros | F68: Selección abreviada | G68: Acuerdo marco de precios | H68: COMPRAVENTA DE MOBILIARIO PARA LAS DIFERENTES DEPENDENCIAS DE LA ALCALDIA LOCAL DE SAN CRISTOBAL | I68: Inversión | J68: Un nuevo contrato social y ambiental para la Bogotá del Siglo XXI | K68: 57 | L68: =IF(ISERROR(VLOOKUP(K68,#REF!,2,FALSE))," ",VLOOKUP(K68,#REF!,2,FALSE)) ->  | M68: =IF(ISERROR(VLOOKUP(K68,#REF!,3,FALSE))," ",VLOOKUP(K68,#REF!,3,FALSE)) ->  | N68: 1873 | O68: 1 | P68: 860007336 | Q68: CAJA COLOMBIANA DE SUBSIDIO FAMILIAR COL SUBSIDIO | R68: Persona Jurídica | T68: N/A | U68: N/A | W68: 134946700 | X68: 0 | Y68: 0 | Z68: 0 | AA68: =+W68+X68+Z68 -> 134946700 | AB68: 0 | AC68: 2022-11-24 | AD68: 2022-11-24 | AE68: 2023-01-24 | AF68: 60 | AG68: 0 | AH68: 0 | AM68: En ejecución | AN68: =IF(ISERROR(AB68/AA68),"-",(AB68/AA68)) -> 0
A69: FDLSC-CV-654-2022 | B69: 2022 | C69: FDLSC-SASI-011-2022 | D69: https://community.secop.gov.co/Public/Tendering/OpportunityDetail/Index?noticeUID=CO1.NTC.3588060&isFromPublicArea=True&isModal=true&asPopupView=true | E69: Compraventa de bienes muebles | F69: Selección abreviada | G69: Subasta inversa | H69: LA ADQUISICIÓN DE CHAQUETAS Y OTROS ELEMENTOS AFINES PARA PROMOVER Y FORTALECER LA IMAGEN INSTITUCIONAL EN EL DESARROLLO DE DIFERENTES ACTIVIDADES EN EL MARCO DEL PLAN DE DESARROLLO 2021-2024, DE CONFORMIDAD CON LAS CONDICIONES, CANTIDADES Y ESPECIFICACIONES TECNICAS ESTABLECIDAS | I69: Inversión | J69: Un nuevo contrato social y ambiental para la Bogotá del Siglo XXI | K69: 57 | L69: =IF(ISERROR(VLOOKUP(K69,#REF!,2,FALSE))," ",VLOOKUP(K69,#REF!,2,FALSE)) ->  | M69: =IF(ISERROR(VLOOKUP(K69,#REF!,3,FALSE))," ",VLOOKUP(K69,#REF!,3,FALSE)) ->  | N69: 1873 | O69: 3 | P69: 901061836 | Q69: CASTECK S.A.S | R69: Persona Jurídica | T69: N/A | U69: N/A | W69: 130707500 | X69: 0 | Y69: 0 | Z69: 0 | AA69: =+W69+X69+Z69 -> 130707500 | AB69: 0 | AC69: 2022-12-27 | AD69: 2023-01-10 | AE69: 2023-05-09 | AF69: 120 | AG69: 0 | AH69: 0 | AM69: En ejecución | AN69: =IF(ISERROR(AB69/AA69),"-",(AB69/AA69)) -> 0
A70: FDLSC-CV-572-2022 | B70: 2022 | C70: FDLSC-SASI-006-2022 LOTE 5 ELEMENTOS MUSICALES | D70: https://community.secop.gov.co/Public/Tendering/OpportunityDetail/Index?noticeUID=CO1.NTC.3304278&isFromPublicArea=True&isModal=true&asPopupView=true | E70: Compraventa de bienes muebles | F70: Selección abreviada | G70: Subasta inversa | H70: CONTRATAR A MONTO AGOTABLE LA ADQUISICIÓN Y DISTRIBUCIÓN DE ELEMENTOS PARA EL CENTRO DE DESARROLLO COMUNITARIO SAN BLAS DE LA LOCALIDAD DE SAN CRISTÓBAL, EN EL MARCO DEL PROYECTO 1811 SAN CRISTÓBAL TE CUIDA. | I70: Inversión | J70: Un nuevo contrato social y ambiental para la Bogotá del Siglo XXI | K70: 6 | L70: =IF(ISERROR(VLOOKUP(K70,#REF!,2,FALSE))," ",VLOOKUP(K70,#REF!,2,FALSE)) ->  | M70: =IF(ISERROR(VLOOKUP(K70,#REF!,3,FALSE))," ",VLOOKUP(K70,#REF!,3,FALSE)) ->  | N70: 1811 | O70: 11 | P70: 800089897 | Q70: COMERCIALIZADORA SERLECOM SAS | R70: Persona Jurídica | T70: N/A | U70: N/A | W70: 124274502 | X70: 0 | Y70: 0 | Z70: 0 | AA70: =+W70+X70+Z70 -> 124274502 | AB70: 0 | AC70: 2022-11-08 | AD70: 2022-11-16 | AE70: 2023-03-15 | AF70: 120 | AG70: 0 | AH70: 0 | AM70: En ejecución | AN70: =IF(ISERROR(AB70/AA70),"-",(AB70/AA70)) -> 0
A71: FDLSC-CS-366-2022 | B71: 2022 | C71: FDLSC-SAMC-001-2022 | D71: https://community.secop.gov.co/Public/Tendering/OpportunityDetail/Index?noticeUID=CO1.NTC.2905509&isFromPublicArea=True&isModal=true&asPopupView=true | E71: Suministro | F71: Selección abreviada | G71: Selección abreviada por menor cuantía | H71: CONTRATAR UNA COMPAÑIA ASEGURADORA, AVALADA POR LA SUPERINTENDENCIA FINANCIERA, LOS SEGUROS QUE AMPAREN LOS BIENES MUEBLES E INMUEBLES, Y EN GENERAL, EL PATRIMONIO DEL FONDO DE DESARROLLO LOCAL DE SAN CRISTOBAL DE CONFORMIDAD CON LAS ESPECIFICACIONES TÉCNICAS DESCRITAS EN LOS PLIEGOS DE CONDICIONES. | I71: Funcionamiento | J71: Un nuevo contrato social y ambiental para la Bogotá del Siglo XXI | K71: No aplica | L71: =IF(ISERROR(VLOOKUP(K71,#REF!,2,FALSE))," ",VLOOKUP(K71,#REF!,2,FALSE)) ->  | M71: =IF(ISERROR(VLOOKUP(K71,#REF!,3,FALSE))," ",VLOOKUP(K71,#REF!,3,FALSE)) ->  | N71: 1311 1359 | O71: 2 | P71: 860524654 | Q71: ASEGURADORA SOLIDARIA DE COLOMBIA-ENTIDAD COOPERATIVA | R71: Persona Jurídica | T71: N/A | U71: N/A | W71: 121802577 | X71: 0 | Y71: 0 | Z71: 0 | AA71: =+W71+X71+Z71 -> 121802577 | AB71: 119084791 | AC71: 2022-04-22 | AD71: 2022-04-22 | AE71: 2023-02-10 | AF71: 294 | AG71: 0 | AH71: 0 | AM71: En ejecución | AN71: =IF(ISERROR(AB71/AA71),"-",(AB71/AA71)) -> 0.9776869581
A72: FDLSC-CPS-040-2022 | B72: 2022 | C72: FDLSC-CD-024-2022 | D72: https://community.secop.gov.co/Public/Tendering/OpportunityDetail/Index?noticeUID=CO1.NTC.2605816&isFromPublicArea=True&isModal=true&asPopupView=true | E72: Contratos de prestación de servicios profesionales y de apoyo a la gestión | F72: Contratación directa | G72: Prestación de servicios profesionales y de apoyo a la gestión, o para la ejecución de trabajos artísticos que sólo puedan encomendarse a determinadas personas naturales | H72: PRESTAR LOS SERVICIOS PROFESIONALES ESPECIALIZADOS AL DESPACHO DEL ALCALDE LOCAL PARA ORIENTAR EN TEMAS DE DERECHO ADMINISTRATIVO Y CONTRACTUAL,EN EL MARCO DE LAS NECESIDADES DEL FONDO DE DESARROLLO LOCAL. | I72: Inversión | J72: Un nuevo contrato social y ambiental para la Bogotá del Siglo XXI | K72: 57 | L72: =IF(ISERROR(VLOOKUP(K72,#REF!,2,FALSE))," ",VLOOKUP(K72,#REF!,2,FALSE)) ->  | M72: =IF(ISERROR(VLOOKUP(K72,#REF!,3,FALSE))," ",VLOOKUP(K72,#REF!,3,FALSE)) ->  | N72: 1873 | O72: 0 | P72: 80768178 | Q72: DIEGO FERNANDO RODRIGUEZ VASQUEZ | R72: Persona Natural | T72: N/A | U72: N/A | W72: 78400000 | X72: 0 | Y72: 2 | Z72: 39200000 | AA72: =+W72+X72+Z72 -> 117600000 | AB72: 101266667 | AC72: 2022-01-19 | AD72: 2022-01-21 | AE72: 2023-01-20 | AF72: 240 | AG72: 2 | AH72: 120 | AM72: En ejecución | AN72: =IF(ISERROR(AB72/AA72),"-",(AB72/AA72)) -> 0.8611111139
A73: FDLSC-CPS-094-2022 | B73: 2022 | C73: FDLSC-CD-055-2022 | D73: https://community.secop.gov.co/Public/Tendering/OpportunityDetail/Index?noticeUID=CO1.NTC.2647184&isFromPublicArea=True&isModal=true&asPopupView=true | E73: Contratos de prestación de servicios profesionales y de apoyo a la gestión | F73: Contratación directa | G73: Prestación de servicios profesionales y de apoyo a la gestión, o para la ejecución de trabajos artísticos que sólo puedan encomendarse a determinadas personas naturales | H73: PRESTAR SUS SERVICIOS PROFESIONALES ESPECIALIZADOS PARA APOYAR TÉCNICAMENTE AL DESPACHO EN LA REVISIÓN Y SEGUIMIENTO DE TODOS LOS PROCESOS RELACIONADOS CON ENTES DE CONTROL Y LOS RESPECTIVOS PROCEDIMIENTOS DE IMPLEMENTACIÓN Y FORTALECIMIENTO DEL SISTEMA INTEGRADO DE GESTIÓN DE LA ALCALDÍA LOCAL DE SAN CRISTÓBAL. | I73: Inversión | J73: Un nuevo contrato social y ambiental para la Bogotá del Siglo XXI | K73: 57 | L73: =IF(ISERROR(VLOOKUP(K73,#REF!,2,FALSE))," ",VLOOKUP(K73,#REF!,2,FALSE)) ->  | M73: =IF(ISERROR(VLOOKUP(K73,#REF!,3,FALSE))," ",VLOOKUP(K73,#REF!,3,FALSE)) ->  | N73: 1873 | O73: 0 | P73: 51990383 | Q73: MARISOL MUÑOZ PERALTA | R73: Persona Natural | T73: N/A | U73: N/A | W73: 78400000 | X73: 0 | Y73: 2 | Z73: 37566666 | AA73: =+W73+X73+Z73 -> 115966666 | AB73: 99633333 | AC73: 2022-01-24 | AD73: 2022-01-26 | AE73: 2023-01-20 | AF73: 240 | AG73: 2 | AH73: 115 | AM73: En ejecución | AN73: =IF(ISERROR(AB73/AA73),"-",(AB73/AA73)) -> 0.8591549316
A74: FDLSC-INTV-379-2022 | B74: 2022 | C74: FDLSC-CMA-003-2022 | D74: https://community.secop.gov.co/Public/Tendering/OpportunityDetail/Index?noticeUID=CO1.NTC.2979231&isFromPublicArea=True&isModal=False | E74: Interventoría | F74: Concurso de méritos | G74: No aplica | H74: REALIZAR LA INTERVENTORÍA TÉCNICA, ADMINISTRATIVA, FINANCIERA, JURÍDICA, SOCIAL, AMBIENTAL Y SST AL CONTRATO DE OBRA CUYO OBJETO ES EJECUTAR A MONTO AGOTABLE POR EL SISTEMA DE PRECIOS UNITARIOS FIJOS SIN FÓRMULA DE REAJUSTE LAS OBRAS Y ACTIVIDADES PARA LA CONSERVACIÓN DE PUENTES VEHICULARES Y/O PEATONALES DE LA LOCALIDAD DE SAN CRISTÓBAL | I74: Inversión | J74: Un nuevo contrato social y ambiental para la Bogotá del Siglo XXI | K74: 49 | L74: =IF(ISERROR(VLOOKUP(K74,#REF!,2,FALSE))," ",VLOOKUP(K74,#REF!,2,FALSE)) ->  | M74: =IF(ISERROR(VLOOKUP(K74,#REF!,3,FALSE))," ",VLOOKUP(K74,#REF!,3,FALSE)) ->  | N74: 1871 | O74: 4 | P74: 901172605 | Q74: ICOD CONSTRUCCIONES Y PROYECTOS SAS | R74: Persona Jurídica | T74: N/A | U74: N/A | W74: 82148721 | X74: 0 | Y74: 1 | Z74: 33486100 | AA74: =+W74+X74+Z74 -> 115634821 | AB74: 65688551 | AC74: 2022-07-22 | AD74: 2022-08-03 | AE74: 2023-02-02 | AF74: 135 | AG74: 1 | AH74: 45 | AM74: En ejecución | AN74: =IF(ISERROR(AB74/AA74),"-",(AB74/AA74)) -> 0.568068947
B75: 2022 | E75: Otros gastos | H75: INGRESO VITAL PARA SAN CRISTÓBAL COSTOS OPERATIVOS | I75: Inversión | J75: Un nuevo contrato social y ambiental para la Bogotá del Siglo XXI | K75: 1 | L75: =IF(ISERROR(VLOOKUP(K75,#REF!,2,FALSE))," ",VLOOKUP(K75,#REF!,2,FALSE)) ->  | M75: =IF(ISERROR(VLOOKUP(K75,#REF!,3,FALSE))," ",VLOOKUP(K75,#REF!,3,FALSE)) ->  | N75: 1852 | O75: 0 | W75: 108000000 | X75: 0 | Y75: 0 | Z75: 0 | AA75: =+W75+X75+Z75 -> 108000000 | AB75: 87953578 | AN75: =IF(ISERROR(AB75/AA75),"-",(AB75/AA75)) -> 0.8143849815
A76: FDLSC-CPS-639-2022 | B76: 2022 | C76: FDLSC-CMA-006-2022 | D76: https://community.secop.gov.co/Public/Tendering/OpportunityDetail/Index?noticeUID=CO1.NTC.3615841&isFromPublicArea=True&isModal=true&asPopupView=true | E76: Contratos de prestación de servicios | F76: Concurso de méritos | G76: No aplica | H76: REALIZAR LA REVISION Y VERIFICACION DE LA ESTABILIDAD Y CALIDAD DE LAS OBRAS DE INFRAESTRUCTURA EJECUTADAS CON RECURSOS DEL FONDO DE DESARROLLO LOCAL DE SAN CRISTÓBAL Y QUE CUENTEN CON PÓLIZA DE ESTABILIDAD VIGENTE, EN CUMPLIMIENTO DEL ARTÍCULO 4º, NUMERAL 4º DE LA LEY 80 DE 1993 | I76: Inversión | J76: Un nuevo contrato social y ambiental para la Bogotá del Siglo XXI | K76: 49 | L76: =IF(ISERROR(VLOOKUP(K76,#REF!,2,FALSE))," ",VLOOKUP(K76,#REF!,2,FALSE)) ->  | M76: =IF(ISERROR(VLOOKUP(K76,#REF!,3,FALSE))," ",VLOOKUP(K76,#REF!,3,FALSE)) ->  | N76: 1871 | O76: 1 | P76: 900984598 | Q76: SAVIMAC SAS | R76: Persona Jurídica | T76: N/A | U76: N/A | W76: 107251275 | X76: 0 | Y76: 0 | Z76: 0 | AA76: =+W76+X76+Z76 -> 107251275 | AB76: 0 | AC76: 2022-12-21 | AF76: 180 | AM76: Celebrado o por iniciar | AN76: =IF(ISERROR(AB76/AA76),"-",(AB76/AA76)) -> 0
A77: FDLSC-CPS-056-2022 | B77: 2022 | C77: FDLSC-CD-035-2022 | D77: https://community.secop.gov.co/Public/Tendering/OpportunityDetail/Index?noticeUID=CO1.NTC.2604329&isFromPublicArea=True&isModal=true&asPopupView=true | E77: Contratos de prestación de servicios profesionales y de apoyo a la gestión | F77: Contratación directa | G77: Prestación de servicios profesionales y de apoyo a la gestión, o para la ejecución de trabajos artísticos que sólo puedan encomendarse a determinadas personas naturales | H77: PRESTAR SUR SERVICIOS PROFESIONALES ESPECIALIZADOS AL DESPACHO DEL ALCALDE LOCAL DE SAN CRISTÓBAL EN LA REVISIÓN DE LOS ASPECTOS JURÍDICOS, NORMATIVOS Y POLICIVOS EN EL MARCO DE LAS FUNCIONES ADMINISTRATIVAS Y APOYANDO TODAS LAS LABORES QUE SEAN DIRECCIONADAS POR EL ALCALDE LOCAL PARA CUMPLIR CON LA MISIÓN DE LA ALCALDÍA LOCAL DE SAN CRISTÓBAL. | I77: Inversión | J77: Un nuevo contrato social y ambiental para la Bogotá del Siglo XXI | K77: 57 | L77: =IF(ISERROR(VLOOKUP(K77,#REF!,2,FALSE))," ",VLOOKUP(K77,#REF!,2,FALSE)) ->  | M77: =IF(ISERROR(VLOOKUP(K77,#REF!,3,FALSE))," ",VLOOKUP(K77,#REF!,3,FALSE)) ->  | N77: 1873 | O77: 0 | P77: 52835719 | Q77: MABEL LORENA MONTERO BARBOSA | R77: Persona Natural | T77: N/A | U77: N/A | W77: 70864000 | X77: 0 | Y77: 2 | Z77: 35432000 | AA77: =+W77+X77+Z77 -> 106296000 | AB77: 91532667 | AC77: 2022-01-19 | AD77: 2022-01-21 | AE77: 2023-01-20 | AF77: 240 | AG77: 2 | AH77: 120 | AM77: En ejecución | AN77: =IF(ISERROR(AB77/AA77),"-",(AB77/AA77)) -> 0.8611111142
A78: 94333 | B78: 2022 | C78: 163847 | D78: https://colombiacompra.gov.co/tienda-virtual-del-estado-colombiano/ordenes-compra/85202 | E78: Otros | F78: Selección abreviada | G78: Acuerdo marco de precios | H78: ADQUISICION DE LICENCIAS MICROSOFT OFFICE 365 - E 1 PARA EL FONDO DE DESARROLLO LOCAL DE SAN CRISTOBAL MEDIANTE EL IAD CCE-139-2020 | I78: Funcionamiento | J78: Un nuevo contrato social y ambiental para la Bogotá del Siglo XXI | K78: No aplica | L78: =IF(ISERROR(VLOOKUP(K78,#REF!,2,FALSE))," ",VLOOKUP(K78,#REF!,2,FALSE)) ->  | M78: =IF(ISERROR(VLOOKUP(K78,#REF!,3,FALSE))," ",VLOOKUP(K78,#REF!,3,FALSE)) ->  | N78: 3143 | O78: 4 | P78: 901373456 | Q78: UT Soft IG 3 | R78: Persona Jurídica | T78: N/A | U78: N/A | W78: 102774000 | X78: 0 | Y78: 0 | Z78: 0 | AA78: =+W78+X78+Z78 -> 102774000 | AB78: 102774000 | AC78: 2022-08-05 | AD78: 2022-08-05 | AE78: 2022-12-04 | AF78: 360 | AG78: 0 | AH78: 0 | AM78: Terminado | AN78: =IF(ISERROR(AB78/AA78),"-",(AB78/AA78)) -> 1
A79: FDLSC-CTOI-471-2022 | B79: 2022 | C79: FDLSC-CD-263-2022 | D79: https://www.contratos.gov.co/consultas/detalleProceso.do?numConstancia=22-22-51098&g-recaptcha-response=03AD1IbLADh_s_f-oK-3MMME9Uw0LGujH7xdwzURsS1ENKbxoOYq2f9kpOwALUvr97tFabEGVhnBmbx1KHJBY2GVGXGm-RmpfOp4NdKjQMJhrZIHoOPTBXKmJ-yLDA58QTH2fd51TUbycut0kZu-9LUO1GzvqtcWT_cTFRUJFLVCzreNcbt1YmboEFgWXJPfC_5hyWlW0p8q0Z3H4CJgpjProS-vrzUcWprL6kh4J1SZah3mrmDllIXrDvSnlGzR6LHqnea7tYxkdtqVoonI0BAlxH1XxF7Xu7ROgOoDGI9i8H5nqV0Mh83EBC7hYzHB0pl3Vq-LLy7nbXYHgEDEG-gMpgqCPuBnTmtigKjg4WyCvdDyuTHDeztWMe43ONUac0jdqJVJgGvMZPdBOLvVxLCg6u7Kj9bazw2XuyEXHYgo5Mj2lkEFpI-wCLjIezir-fmJAivl2U6fRD2dfv7Y2pYQJuwFbsTkjNOAPW5NA5MIDE9gceyjFi239EP8ORYhPZhLb3EE1mLxmfEYUhdG-pFzSif2eGdo3Wr1KLPB93BS2DTR7awEkvX9u-FB0_1OBD6zmqrYyJ2Jd_-LWAjJ5K1XO-c2Hw3mKX0pVR_4Dkn9QcsCu-JHHi46A | E79: Convenios/Contratos interadministrativos | F79: Contratación directa | G79: Contratos interadministrativos | H79: PRESTAR LOS SERVICIOS DE PLANEACIÓN, EJECUCIÓN Y DIVULGACIÓN DE LAS ACTIVIDADES A DESARROLLARSE EN EL MARCO DE LA ACCIÓN DE CIUDAD NAVIDAD 2022 RELACIONADAS CON LA GENERACIÓN DE LOS ENTORNOS LUMÍNICOS Y DIFUSIÓN DE LOS ACTOS PRINCIPALES QUE HARÁN PARTE DE LA ESTRATEGIA COMUNICACIONAL A CARGO DE LA OFICINA CONSEJERÍA DE COMUNICACIONES DE LA SECRETARÍA GENERAL DE LA ALCALDÍA MAYOR DE BOGOTÁ. | I79: Inversión | J79: Un nuevo contrato social y ambiental para la Bogotá del Siglo XXI | K79: 21 | L79: =IF(ISERROR(VLOOKUP(K79,#REF!,2,FALSE))," ",VLOOKUP(K79,#REF!,2,FALSE)) ->  | M79: =IF(ISERROR(VLOOKUP(K79,#REF!,3,FALSE))," ",VLOOKUP(K79,#REF!,3,FALSE)) ->  | N79: 1803 | O79: 0 | P79: 830012587 | Q79: CANAL CAPITAL | R79: Persona Jurídica | T79: N/A | U79: N/A | W79: 100000000 | X79: 0 | Y79: 0 | Z79: 0 | AA79: =+W79+X79+Z79 -> 100000000 | AB79: 0 | AC79: 2022-11-24 | AD79: 2022-11-01 | AE79: 2023-03-31 | AF79: 150 | AG79: 0 | AH79: 0 | AM79: En ejecución | AN79: =IF(ISERROR(AB79/AA79),"-",(AB79/AA79)) -> 0
A80: FDLSC-CSU-657-2022 | B80: 2022 | C80: FDLSC-SASI-013-2022 LOTE 3 | D80: https://community.secop.gov.co/Public/Tendering/OpportunityDetail/Index?noticeUID=CO1.NTC.3625526&isFromPublicArea=True&isModal=true&asPopupView=true | E80: Suministro | F80: Selección abreviada | G80: Subasta inversa | H80: CONTRATAR LA ADQUISICIÓN DE ELEMENTOS PARA LA EJECUCIÓN DE ACCIONES, EN EL MARCO DE LOS ESCENARIOS DE RIESGO CARACTERIZADOS EN EL PLAN LOCAL DE GESTIÓN DE RIESGOS DE LA LOCALIDAD DE SAN CRISTÓBAL | I80: Inversión | J80: Un nuevo contrato social y ambiental para la Bogotá del Siglo XXI | K80: 30 | L80: =IF(ISERROR(VLOOKUP(K80,#REF!,2,FALSE))," ",VLOOKUP(K80,#REF!,2,FALSE)) ->  | M80: =IF(ISERROR(VLOOKUP(K80,#REF!,3,FALSE))," ",VLOOKUP(K80,#REF!,3,FALSE)) ->  | N80: 1866 | O80: 11 | P80: 901114836 | Q80: COMPAÑIA MAYFER SB SAS | R80: Persona Jurídica | T80: N/A | U80: N/A | W80: 100000000 | X80: 0 | Y80: 0 | Z80: 0 | AA80: =+W80+X80+Z80 -> 100000000 | AB80: 0 | AC80: 2022-12-28 | AF80: 240 | AM80: Celebrado o por iniciar | AN80: =IF(ISERROR(AB80/AA80),"-",(AB80/AA80)) -> 0
A81: FDLSC-CPS-042-2022 | B81: 2022 | C81: FDLSC-CD-026-2022 | D81: https://community.secop.gov.co/Public/Tendering/OpportunityDetail/Index?noticeUID=CO1.NTC.2601029&isFromPublicArea=True&isModal=true&asPopupView=true | E81: Contratos de prestación de servicios profesionales y de apoyo a la gestión | F81: Contratación directa | G81: Prestación de servicios profesionales y de apoyo a la gestión, o para la ejecución de trabajos artísticos que sólo puedan encomendarse a determinadas personas naturales | H81: PRESTAR SUS SERVICIOS PROFESIONALES ESPECIALIZADOS APOYANDO AL ALCALDE LOCAL EN LA REVISIÓN JURÍDICA DE LOS PRODUCTOS DERIVADOS DE LA GESTIÓN DE LAS DIFERENTES DEPENDENCIAS DE LA ALCALDÍA LOCAL DE SAN CRISTÓBAL. | I81: Inversión | J81: Un nuevo contrato social y ambiental para la Bogotá del Siglo XXI | K81: 57 | L81: =IF(ISERROR(VLOOKUP(K81,#REF!,2,FALSE))," ",VLOOKUP(K81,#REF!,2,FALSE)) ->  | M81: =IF(ISERROR(VLOOKUP(K81,#REF!,3,FALSE))," ",VLOOKUP(K81,#REF!,3,FALSE)) ->  | N81: 1873 | O81: 0 | P81: 1032451121 | Q81: NUBIA YULIETH SALAZAR PARDO | R81: Persona Natural | T81: N/A | U81: N/A | W81: 85844000 | X81: 0 | Y81: 1 | Z81: 10405333 | AA81: =+W81+X81+Z81 -> 96249333 | AB81: 72837332 | AC81: 2022-01-18 | AD81: 2022-01-21 | AE81: 2023-01-30 | AF81: 330 | AG81: 1 | AH81: 40 | AI81: 79906188 | AJ81: RODNY FABIAN ORTIZ CHAMORRO | AK81: 2022-08-08 | AL81: 44742933 | AM81: En ejecución | AN81: =IF(ISERROR(AB81/AA81),"-",(AB81/AA81)) -> 0.7567567455
A82: FDLSC-CPS-093-2022 | B82: 2022 | C82: FDLSC-CD-054-2022 | D82: https://community.secop.gov.co/Public/Tendering/OpportunityDetail/Index?noticeUID=CO1.NTC.2648581&isFromPublicArea=True&isModal=true&asPopupView=true | E82: Contratos de prestación de servicios profesionales y de apoyo a la gestión | F82: Contratación directa | G82: Prestación de servicios profesionales y de apoyo a la gestión, o para la ejecución de trabajos artísticos que sólo puedan encomendarse a determinadas personas naturales | H82: PRESTAR SERVICIOS PROFESIONALES ESPECIALIZADOS PARA APOYAR AL DESPACHO DEL ALCALDE LOCAL EN LA REVISIÓN Y ACOMPAÑAMIENTO DE LOS ASPECTOS SOCIALES Y POBLACIONALES, EN ARTICULACIÓN CON LOS EQUIPOS DE LA ENTIDAD, ENCARGADOS DE ESTAS TEMÁTICAS. | I82: Inversión | J82: Un nuevo contrato social y ambiental para la Bogotá del Siglo XXI | K82: 57 | L82: =IF(ISERROR(VLOOKUP(K82,#REF!,2,FALSE))," ",VLOOKUP(K82,#REF!,2,FALSE)) ->  | M82: =IF(ISERROR(VLOOKUP(K82,#REF!,3,FALSE))," ",VLOOKUP(K82,#REF!,3,FALSE)) ->  | N82: 1873 | O82: 0 | P82: 52538400 | Q82: AURA LIZETH MELO ÁVILA | R82: Persona Natural | T82: N/A | U82: N/A | W82: 68227200 | X82: 0 | Y82: 1 | Z82: 26722320 | AA82: =+W82+X82+Z82 -> 94949520 | AB82: 86421120 | AC82: 2022-01-24 | AD82: 2022-01-27 | AE82: 2022-12-30 | AF82: 240 | AG82: 1 | AH82: 94 | AM82: Terminado | AN82: =IF(ISERROR(AB82/AA82),"-",(AB82/AA82)) -> 0.9101796407
A83: FDLSC-CTOI-441-2022 | B83: 2022 | C83: FDLSC-CD-219-2022 | D83: https://community.secop.gov.co/Public/Tendering/OpportunityDetail/Index?noticeUID=CO1.NTC.3148561&isFromPublicArea=True&isModal=true&asPopupView=true | E83: Convenios/Contratos interadministrativos | F83: Contratación directa | G83: Contratos interadministrativos | H83: PRESTAR EL SERVICIO DE CENTRO DE ADMINISTRACION DE CORRESPONDENCIA Y CORREO CERTIFICADO QUE REQUIERA LA ALCALDIA LOCAL DE SAN CRISTOBAL EN LAS MODALIDADES DE CORREO CERTIFICADO NACIONAL, SMS Y CORREO ELECTRONICO CERTIFICADO A NIVEL URBANO Y NACIONAL | I83: Inversión | J83: Un nuevo contrato social y ambiental para la Bogotá del Siglo XXI | K83: 57 | L83: =IF(ISERROR(VLOOKUP(K83,#REF!,2,FALSE))," ",VLOOKUP(K83,#REF!,2,FALSE)) ->  | M83: =IF(ISERROR(VLOOKUP(K83,#REF!,3,FALSE))," ",VLOOKUP(K83,#REF!,3,FALSE)) ->  | N83: 1873 | O83: 0 | P83: 900062917 | Q83: SERVICIOS POSTALES NACIONALES S.A. | R83: Persona Jurídica | T83: N/A | U83: N/A | W83: 94835600 | X83: 0 | Y83: 0 | Z83: 0 | AA83: =+W83+X83+Z83 -> 94835600 | AB83: 0 | AC83: 2022-08-18 | AD83: 2022-09-06 | AE83: 2023-03-05 | AF83: 180 | AG83: 0 | AH83: 0 | AM83: En ejecución | AN83: =IF(ISERROR(AB83/AA83),"-",(AB83/AA83)) -> 0
A84: FDLSC-CPS-061-2022 | B84: 2022 | C84: FDLSC-CD-039-2022 | D84: https://community.secop.gov.co/Public/Tendering/OpportunityDetail/Index?noticeUID=CO1.NTC.2605998&isFromPublicArea=True&isModal=true&asPopupView=true | E84: Contratos de prestación de servicios profesionales y de apoyo a la gestión | F84: Contratación directa | G84: Prestación de servicios profesionales y de apoyo a la gestión, o para la ejecución de trabajos artísticos que sólo puedan encomendarse a determinadas personas naturales | H84: PRESTAR SERVICIOS PROFESIONALES ESPECIALIZADOS EN EL ÁREA DE GESTION DE DESARROLLO LOCAL PARA LA FORMULACIÓN, EVALUACIÓN Y SEGUIMIENTO DE LOS PROYECTOS DE GESTIÓN AMBIENTAL, EN CUMPLIMIENTO A LAS METAS ESTABLECIDAS EN EL PLAN DE DESARROLLO LOCAL 2021 2024 | I84: Inversión | J84: Un nuevo contrato social y ambiental para la Bogotá del Siglo XXI | K84: 57 | L84: =IF(ISERROR(VLOOKUP(K84,#REF!,2,FALSE))," ",VLOOKUP(K84,#REF!,2,FALSE)) ->  | M84: =IF(ISERROR(VLOOKUP(K84,#REF!,3,FALSE))," ",VLOOKUP(K84,#REF!,3,FALSE)) ->  | N84: 1873 | O84: 0 | P84: 79849967 | Q84: DIEGO MAURICIO ROJAS CACHOPE | R84: Persona Natural | T84: N/A | U84: N/A | W84: 63200000 | X84: 0 | Y84: 2 | Z84: 30546667 | AA84: =+W84+X84+Z84 -> 93746667 | AB84: 80580000 | AC84: 2022-01-24 | AD84: 2022-01-25 | AE84: 2023-01-20 | AF84: 240 | AG84: 2 | AH84: 117 | AM84: En ejecución | AN84: =IF(ISERROR(AB84/AA84),"-",(AB84/AA84)) -> 0.8595505587
A85: FDLSC-CPS-013-2022 | B85: 2022 | C85: FDLSC-CD-007-2022 | D85: https://community.secop.gov.co/Public/Tendering/OpportunityDetail/Index?noticeUID=CO1.NTC.2590381&isFromPublicArea=True&isModal=true&asPopupView=true | E85: Contratos de prestación de servicios profesionales y de apoyo a la gestión | F85: Contratación directa | G85: Prestación de servicios profesionales y de apoyo a la gestión, o para la ejecución de trabajos artísticos que sólo puedan encomendarse a determinadas personas naturales | H85: PRESTAR SERVICIOS PROFESIONALES ESPECIALIZADOS EN EL ÁREA DE GESTION DE DESARROLLO LOCAL PARA APOYAR TECNICAMENTE LA FORMULACIÓN, EVALUACIÓN, PRESENTACIÓN Y SEGUIMIENTO DE LOS PROYECTOS DE INVERSIÓN, EN TEMAS DE DOTACIONES ESCOLARES, EN CUMPLIMIENTO DEL PLAN DE DESARROLLO LOCAL 2020-2024 | I85: Inversión | J85: Un nuevo contrato social y ambiental para la Bogotá del Siglo XXI | K85: 57 | L85: =IF(ISERROR(VLOOKUP(K85,#REF!,2,FALSE))," ",VLOOKUP(K85,#REF!,2,FALSE)) ->  | M85: =IF(ISERROR(VLOOKUP(K85,#REF!,3,FALSE))," ",VLOOKUP(K85,#REF!,3,FALSE)) ->  | N85: 1873 | O85: 0 | P85: 53164606 | Q85: LINDA VANESSA ACUÑA RAMIREZ | R85: Persona Natural | T85: N/A | U85: N/A | W85: 82500000 | X85: 0 | Y85: 1 | Z85: 10000000 | AA85: =+W85+X85+Z85 -> 92500000 | AB85: 77500000 | AC85: 2022-01-18 | AD85: 2022-01-21 | AE85: 2023-01-30 | AF85: 330 | AG85: 1 | AH85: 40 | AM85: En ejecución | AN85: =IF(ISERROR(AB85/AA85),"-",(AB85/AA85)) -> 0.8378378378
A86: FDLSC-CPS-659-2022 | B86: 2022 | C86: FDLSC-SAMC-013-2022 | D86: https://community.secop.gov.co/Public/Tendering/OpportunityDetail/Index?noticeUID=CO1.NTC.3627353&isFromPublicArea=True&isModal=true&asPopupView=true | E86: Contratos de prestación de servicios | F86: Selección abreviada | G86: Selección abreviada por menor cuantía | H86: CONTRATAR SERVICIOS TÉCNICOS Y OPERATIVOS ENTRE EL FONDO DE DESARROLLO LOCAL DE SAN CRISTÓBAL Y EL PROPONENTE PARA LA EJECUCIÓN DE ACTIVIDADES DE MANTENIMIENTO DE JARDINERÍA EN LA LOCALIDAD DE SAN CRISTÓBAL | I86: Inversión | J86: Un nuevo contrato social y ambiental para la Bogotá del Siglo XXI | K86: 27 | L86: =IF(ISERROR(VLOOKUP(K86,#REF!,2,FALSE))," ",VLOOKUP(K86,#REF!,2,FALSE)) ->  | M86: =IF(ISERROR(VLOOKUP(K86,#REF!,3,FALSE))," ",VLOOKUP(K86,#REF!,3,FALSE)) ->  | N86: 1859 | O86: 11 | P86: 860506842 | Q86: AREAS VERDES LTDA | R86: Persona Jurídica | T86: N/A | U86: N/A | W86: 89474239 | X86: 0 | Y86: 0 | Z86: 0 | AA86: =+W86+X86+Z86 -> 89474239 | AB86: 0 | AC86: 2022-12-28 | AF86: 150 | AM86: Celebrado o por iniciar | AN86: =IF(ISERROR(AB86/AA86),"-",(AB86/AA86)) -> 0
A87: FDLSC-CPS-296-2022 | B87: 2022 | C87: FDLSC-CD-151-2022 | D87: https://community.secop.gov.co/Public/Tendering/OpportunityDetail/Index?noticeUID=CO1.NTC.2590234&isFromPublicArea=True&isModal=true&asPopupView=true | E87: Contratos de prestación de servicios profesionales y de apoyo a la gestión | F87: Contratación directa | G87: Prestación de servicios profesionales y de apoyo a la gestión, o para la ejecución de trabajos artísticos que sólo puedan encomendarse a determinadas personas naturales | H87: PRESTAR SUS SERVICIOS PROFESIONALES COMO LÍDER DE PRENSA Y COMUNICACIONES ORIENTANDO TODOS LOS PLANES Y ESTRATEGIAS DE COMUNICACIÓN INTERNA Y EXTERNA PARA LA DIVULGACIÓN DE LOS PROGRAMAS, PROYECTOS Y ACTIVIDADES DE LA ALCALDÍA LOCAL | I87: Inversión | J87: Un nuevo contrato social y ambiental para la Bogotá del Siglo XXI | K87: 57 | L87: =IF(ISERROR(VLOOKUP(K87,#REF!,2,FALSE))," ",VLOOKUP(K87,#REF!,2,FALSE)) ->  | M87: =IF(ISERROR(VLOOKUP(K87,#REF!,3,FALSE))," ",VLOOKUP(K87,#REF!,3,FALSE)) ->  | N87: 1873 | O87: 0 | P87: 91292728 | Q87: IVAN DARIO SERRANO ALMEYDA | R87: Persona Natural | T87: N/A | U87: N/A | W87: 64000000 | X87: 0 | Y87: 1 | Z87: 24800000 | AA87: =+W87+X87+Z87 -> 88800000 | AB87: 73066666 | AC87: 2022-01-28 | AD87: 2022-01-28 | AE87: 2022-12-30 | AF87: 240 | AG87: 1 | AH87: 93 | AI87: 1094898365 | AJ87: LEIDY VIVIANA VIVAS LOPEZ | AK87: 2022-06-23 | AL87: 50400000 | AM87: Terminado | AN87: =IF(ISERROR(AB87/AA87),"-",(AB87/AA87)) -> 0.8228228153
A88: FDLSC-CPS-098-2022 | B88: 2022 | C88: FDLSC-CD-058-2022 | D88: https://community.secop.gov.co/Public/Tendering/OpportunityDetail/Index?noticeUID=CO1.NTC.2649102&isFromPublicArea=True&isModal=true&asPopupView=true | E88: Contratos de prestación de servicios profesionales y de apoyo a la gestión | F88: Contratación directa | G88: Prestación de servicios profesionales y de apoyo a la gestión, o para la ejecución de trabajos artísticos que sólo puedan encomendarse a determinadas personas naturales | H88: PRESTAR SUS SERVICIOS PROFESIONALES ESPECIALIZADOS EN EL ÁREA DE GESTIÓN PARA EL DESARROLLO LOCAL PARA EL FORTALECIMIENTO DE LA FUNCIÓN ADMINISTRATIVA Y DESARROLLO INSTITUCIONAL DEL COMPONENTE SOCIAL EN CUMPLIMIENTO A LAS METAS ESTABLECIDAS EN EL PLAN DE DESARROLLO LOCAL 2021-2024 | I88: Inversión | J88: Un nuevo contrato social y ambiental para la Bogotá del Siglo XXI | K88: 57 | L88: =IF(ISERROR(VLOOKUP(K88,#REF!,2,FALSE))," ",VLOOKUP(K88,#REF!,2,FALSE)) ->  | M88: =IF(ISERROR(VLOOKUP(K88,#REF!,3,FALSE))," ",VLOOKUP(K88,#REF!,3,FALSE)) ->  | N88: 1873 | O88: 0 | P88: 1075241124 | Q88: HEYDY YOHANA TAMAYO SOLORZANO | R88: Persona Natural | T88: N/A | U88: N/A | W88: 65920000 | X88: 0 | Y88: 1 | Z88: 21973333 | AA88: =+W88+X88+Z88 -> 87893333 | AB88: 55757333 | AC88: 2022-01-25 | AD88: 2022-02-03 | AE88: 2022-12-31 | AF88: 240 | AG88: 1 | AH88: 80 | AI88: 1110456365 | AJ88: HEYDY YOHANA TAMAYO SOLORZANO | AK88: 2022-08-26 | AL88: 32136000 | AM88: En ejecución | AN88: =IF(ISERROR(AB88/AA88),"-",(AB88/AA88)) -> 0.6343749986
A89: FDLSC-CPS-057-2022 | B89: 2022 | C89: FDLSC-CD-036-2022 | D89: https://community.secop.gov.co/Public/Tendering/OpportunityDetail/Index?noticeUID=CO1.NTC.2626935&isFromPublicArea=True&isModal=true&asPopupView=true | E89: Contratos de prestación de servicios profesionales y de apoyo a la gestión | F89: Contratación directa | G89: Prestación de servicios profesionales y de apoyo a la gestión, o para la ejecución de trabajos artísticos que sólo puedan encomendarse a determinadas personas naturales | H89: PRESTAR SUS SERVICIOS PROFESIONALES ESPECIALIZADOS PARA EL SEGUIMIENTO TÉCNICO Y OPERATIVO EN LA FORMULACIÓN Y SEGUIMIENTO DE LOS PROYECTOS DE INVERSIÓN RELACIONADOS CON TEMAS DE REACTIVACIÓN ECONÓMICA, EN EL MARCO DE LAS NECESIDADES Y CUMPLIMIENTO DEL PLAN DE DESARROLLO LOCAL DE SAN CRISTÓBAL | I89: Inversión | J89: Un nuevo contrato social y ambiental para la Bogotá del Siglo XXI | K89: 6 | L89: =IF(ISERROR(VLOOKUP(K89,#REF!,2,FALSE))," ",VLOOKUP(K89,#REF!,2,FALSE)) ->  | M89: =IF(ISERROR(VLOOKUP(K89,#REF!,3,FALSE))," ",VLOOKUP(K89,#REF!,3,FALSE)) ->  | N89: 1865 | O89: 0 | P89: 1023860894 | Q89: JEIMY JULIETH TORRES FORERO | R89: Persona Natural | T89: N/A | U89: N/A | W89: 77583000 | X89: 0 | Y89: 1 | Z89: 8698700 | AA89: =+W89+X89+Z89 -> 86281700 | AB89: 71940600 | AC89: 2022-01-21 | AD89: 2022-01-25 | AE89: 2023-01-31 | AF89: 330 | AG89: 1 | AH89: 37 | AM89: En ejecución | AN89: =IF(ISERROR(AB89/AA89),"-",(AB89/AA89)) -> 0.8337874659
A90: FDLSC-CPS-008-2022 | B90: 2022 | C90: FDLSC-CD-004-2022 | D90: https://community.secop.gov.co/Public/Tendering/OpportunityDetail/Index?noticeUID=CO1.NTC.2609840&isFromPublicArea=True&isModal=true&asPopupView=true | E90: Contratos de prestación de servicios profesionales y de apoyo a la gestión | F90: Contratación directa | G90: Prestación de servicios profesionales y de apoyo a la gestión, o para la ejecución de trabajos artísticos que sólo puedan encomendarse a determinadas personas naturales | H90: APOYAR AL ALCALDE LOCAL EN LA FORMULACIÓN, SEGUIMIENTO E IMPLEMENTACION DE LA ESTRATEGIA LOCAL PARA LA TERMINACIÓN JURIDICA O INACTIVACION DE LAS ACTUACIONES ADMINISTRATIVAS QUE CURSAN EN LA ALCALDÍA LOCAL. | I90: Inversión | J90: Un nuevo contrato social y ambiental para la Bogotá del Siglo XXI | K90: 57 | L90: =IF(ISERROR(VLOOKUP(K90,#REF!,2,FALSE))," ",VLOOKUP(K90,#REF!,2,FALSE)) ->  | M90: =IF(ISERROR(VLOOKUP(K90,#REF!,3,FALSE))," ",VLOOKUP(K90,#REF!,3,FALSE)) ->  | N90: 1873 | O90: 0 | P90: 1122647761 | Q90: BERNA PAOLA ROJAS ROA | R90: Persona Natural | T90: N/A | U90: N/A | W90: 56424000 | X90: 0 | Y90: 2 | Z90: 28212000 | AA90: =+W90+X90+Z90 -> 84636000 | AB90: 71940600 | AC90: 2022-01-21 | AD90: 2022-01-25 | AE90: 2023-01-24 | AF90: 240 | AG90: 2 | AH90: 120 | AM90: En ejecución | AN90: =IF(ISERROR(AB90/AA90),"-",(AB90/AA90)) -> 0.85
A91: FDLSC-CPS-022-2022 | B91: 2022 | C91: FDLSC-CD-014-2022 | D91: https://community.secop.gov.co/Public/Tendering/OpportunityDetail/Index?noticeUID=CO1.NTC.2591780&isFromPublicArea=True&isModal=true&asPopupView=true | E91: Contratos de prestación de servicios profesionales y de apoyo a la gestión | F91: Contratación directa | G91: Prestación de servicios profesionales y de apoyo a la gestión, o para la ejecución de trabajos artísticos que sólo puedan encomendarse a determinadas personas naturales | H91: PRESTAR SUS SERVICIOS PROFESIONALES PARA APOYAR TECNICAMENTE A LOS RESPONSABLES E INTEGRANTES DE LOS PROCESOS EN LA IMPLEMENTACIÓN DE HERRAMIENTAS DE GESTIÓN, SIGUIENDO LOS LINEAMIENTOS METODOLÓGICOS ESTABLECIDOS POR LA OFICINA ASESORA DE PLANEACIÓN DE LA SECRETARIA DE GOBIERNO. | I91: Inversión | J91: Un nuevo contrato social y ambiental para la Bogotá del Siglo XXI | K91: 57 | L91: =IF(ISERROR(VLOOKUP(K91,#REF!,2,FALSE))," ",VLOOKUP(K91,#REF!,2,FALSE)) ->  | M91: =IF(ISERROR(VLOOKUP(K91,#REF!,3,FALSE))," ",VLOOKUP(K91,#REF!,3,FALSE)) ->  | N91: 1873 | O91: 0 | P91: 79696383 | Q91: ARCADIO SARMIENTO RAMIREZ | R91: Persona Natural | T91: N/A | U91: N/A | W91: 74800000 | X91: 0 | Y91: 1 | Z91: 9293333 | AA91: =+W91+X91+Z91 -> 84093333 | AB91: 70266667 | AC91: 2022-01-18 | AD91: 2022-01-21 | AE91: 2023-01-31 | AF91: 330 | AG91: 1 | AH91: 42 | AM91: En ejecución | AN91: =IF(ISERROR(AB91/AA91),"-",(AB91/AA91)) -> 0.8355795221
A92: FDLSC-CPS-193-2022 | B92: 2022 | C92: FDLSC-CD-093-2022 | D92: https://community.secop.gov.co/Public/Tendering/OpportunityDetail/Index?noticeUID=CO1.NTC.2693749&isFromPublicArea=True&isModal=true&asPopupView=true | E92: Contratos de prestación de servicios profesionales y de apoyo a la gestión | F92: Contratación directa | G92: Prestación de servicios profesionales y de apoyo a la gestión, o para la ejecución de trabajos artísticos que sólo puedan encomendarse a determinadas personas naturales | H92: PRESTAR LOS SERVICIOS PROFESIONALES A LA ALCALDÍA LOCAL DE SAN CRISTÓBAL, PARA LA EJECUCIÓN DE LAS ACTIVIDADES Y PROCESOS ADMINISTRATIVOS Y DE CAMPO RELACIONADOS CON LA ATENCIÓN A VÍCTIMAS EN EL MARCO DE LAS NECESIDADES DEL FONDO DE DESARROLLO LOCAL Y DINAMIZACIÓN PARA LA EJECUCIÓN DE LOS PROYECTOS QUE HACEN PARTE DEL PLAN DE DESARROLLO. | I92: Inversión | J92: Un nuevo contrato social y ambiental para la Bogotá del Siglo XXI | K92: 39 | L92: =IF(ISERROR(VLOOKUP(K92,#REF!,2,FALSE))," ",VLOOKUP(K92,#REF!,2,FALSE)) ->  | M92: =IF(ISERROR(VLOOKUP(K92,#REF!,3,FALSE))," ",VLOOKUP(K92,#REF!,3,FALSE)) ->  | N92: 1869 | O92: 0 | P92: 1026568689 | Q92: ZAFIRO CIFUENTES AGAMEZ | R92: Persona Natural | T92: N/A | U92: N/A | W92: 56424000 | X92: 0 | Y92: 2 | Z92: 27271600 | AA92: =+W92+X92+Z92 -> 83695600 | AB92: 69589600 | AC92: 2022-01-27 | AD92: 2022-02-05 | AE92: 2023-01-30 | AF92: 240 | AG92: 2 | AH92: 116 | AM92: En ejecución | AN92: =IF(ISERROR(AB92/AA92),"-",(AB92/AA92)) -> 0.8314606742
A93: FDLSC-CPS-124-2022 | B93: 2022 | C93: FDLSC-CD-066-2022 | D93: https://community.secop.gov.co/Public/Tendering/OpportunityDetail/Index?noticeUID=CO1.NTC.2680810&isFromPublicArea=True&isModal=true&asPopupView=true | E93: Contratos de prestación de servicios profesionales y de apoyo a la gestión | F93: Contratación directa | G93: Prestación de servicios profesionales y de apoyo a la gestión, o para la ejecución de trabajos artísticos que sólo puedan encomendarse a determinadas personas naturales | H93: APOYAR LA FORMULACION, EJECUCION, SEGUIMIENTO Y MEJORA CONTINUA DE LAS HERRAMIENTAS QUE CONFORMAN LA GESTION AMBIENTAL INSTITUCIONAL DE LA ALCALDIA LOCAL | I93: Inversión | J93: Un nuevo contrato social y ambiental para la Bogotá del Siglo XXI | K93: 57 | L93: =IF(ISERROR(VLOOKUP(K93,#REF!,2,FALSE))," ",VLOOKUP(K93,#REF!,2,FALSE)) ->  | M93: =IF(ISERROR(VLOOKUP(K93,#REF!,3,FALSE))," ",VLOOKUP(K93,#REF!,3,FALSE)) ->  | N93: 1873 | O93: 0 | P93: 52872370 | Q93: GLITZA JOHANNA VEGA | R93: Persona Natural | T93: N/A | U93: N/A | W93: 56000000 | X93: 0 | Y93: 1 | Z93: 27533324 | AA93: =+W93+X93+Z93 -> 83533324 | AB93: 69300000 | AC93: 2022-01-26 | AD93: 2022-02-04 | AE93: 2023-01-30 | AF93: 240 | AG93: 2 | AH93: 118 | AM93: En ejecución | AN93: =IF(ISERROR(AB93/AA93),"-",(AB93/AA93)) -> 0.8296090312
A94: FDLSC-CPS-146-2022 | B94: 2022 | C94: FDLSC-CD-073-2022 | D94: https://community.secop.gov.co/Public/Tendering/OpportunityDetail/Index?noticeUID=CO1.NTC.2683008&isFromPublicArea=True&isModal=true&asPopupView=true | E94: Contratos de prestación de servicios profesionales y de apoyo a la gestión | F94: Contratación directa | G94: Prestación de servicios profesionales y de apoyo a la gestión, o para la ejecución de trabajos artísticos que sólo puedan encomendarse a determinadas personas naturales | H94: PRESTAR SUS SERVICIOS PROFESIONALES ESPECIALIZADOS COMO APOYO AL DESPACHO PARA LA GESTIÓN DE LOS ASUNTOS RELACIONADOS CON EL FORTALECIMIENTO A LOS PROCESOS CIUDADANOS DE GESTIÓN DE ECOBARRIOS EN LA LOCALIDAD DE SAN CRISTÓBAL, DE CONFORMIDAD CON EL MARCO NORMATIVO APLICABLE EN LA MATERIA. | I94: Inversión | J94: Un nuevo contrato social y ambiental para la Bogotá del Siglo XXI | K94: 57 | L94: =IF(ISERROR(VLOOKUP(K94,#REF!,2,FALSE))," ",VLOOKUP(K94,#REF!,2,FALSE)) ->  | M94: =IF(ISERROR(VLOOKUP(K94,#REF!,3,FALSE))," ",VLOOKUP(K94,#REF!,3,FALSE)) ->  | N94: 1873 | O94: 0 | P94: 79359289 | Q94: JUAN CARLOS CASTELLANOS PUENTES | R94: Persona Natural | T94: N/A | U94: N/A | W94: 82500000 | X94: 0 | Y94: 0 | Z94: 0 | AA94: =+W94+X94+Z94 -> 82500000 | AB94: 74750000 | AC94: 2022-01-25 | AD94: 2022-02-02 | AE94: 2023-01-01 | AF94: 330 | AG94: 0 | AH94: 0 | AM94: En ejecución | AN94: =IF(ISERROR(AB94/AA94),"-",(AB94/AA94)) -> 0.9060606061
A95: FDLSC-CPS-197-2022 | B95: 2022 | C95: FDLSC-CD-096-2022 | D95: https://community.secop.gov.co/Public/Tendering/OpportunityDetail/Index?noticeUID=CO1.NTC.2719660&isFromPublicArea=True&isModal=true&asPopupView=true | E95: Contratos de prestación de servicios profesionales y de apoyo a la gestión | F95: Contratación directa | G95: Prestación de servicios profesionales y de apoyo a la gestión, o para la ejecución de trabajos artísticos que sólo puedan encomendarse a determinadas personas naturales | H95: PRESTAR SUS SERVICIOS PROFESIONALES PARA LA ARTICULACIÓN, ASISTENCIA Y ACOMPAÑAMIENTO DE LOS PROCESOS DE PLANEACIÓN LOCAL, PARA LA PROMOCIÓN DE LA PARTICIPACIÓN DE LAS MUJERES Y DE LA EQUIDAD DE GÉNERO, PARA MATERIALIZAR EN LA LOCALIDAD LAS ESTRATEGIAS DE TERRITORIALIZACIÓN Y TRANSVERSALIZACIÓN DE LA POLÍTICA PUBLICA DE MUJERES Y EQUIDAD DE GÉNERO, PPMYEG. | I95: Inversión | J95: Un nuevo contrato social y ambiental para la Bogotá del Siglo XXI | K95: 40 | L95: =IF(ISERROR(VLOOKUP(K95,#REF!,2,FALSE))," ",VLOOKUP(K95,#REF!,2,FALSE)) ->  | M95: =IF(ISERROR(VLOOKUP(K95,#REF!,3,FALSE))," ",VLOOKUP(K95,#REF!,3,FALSE)) ->  | N95: 1870 | O95: 0 | P95: 1024513174 | Q95: MONICA ALEJANDRA BERNAL FORIGUA | R95: Persona Natural | T95: N/A | U95: N/A | W95: 55200000 | X95: 0 | Y95: 2 | Z95: 27140000 | AA95: =+W95+X95+Z95 -> 82340000 | AB95: 68540000 | AC95: 2022-01-27 | AD95: 2022-02-03 | AE95: 2023-01-30 | AF95: 240 | AG95: 2 | AH95: 118 | AM95: En ejecución | AN95: =IF(ISERROR(AB95/AA95),"-",(AB95/AA95)) -> 0.8324022346
B96: 2022 | E96: Otros gastos | H96: PAGO DE ARL CONTRATISTAS RIESGO IV Y V | I96: Inversión | J96: Un nuevo contrato social y ambiental para la Bogotá del Siglo XXI | K96: 57 | L96: =IF(ISERROR(VLOOKUP(K96,#REF!,2,FALSE))," ",VLOOKUP(K96,#REF!,2,FALSE)) ->  | M96: =IF(ISERROR(VLOOKUP(K96,#REF!,3,FALSE))," ",VLOOKUP(K96,#REF!,3,FALSE)) ->  | N96: 1873 | O96: 0 | W96: 80917700 | X96: 0 | Y96: 0 | Z96: 0 | AA96: =+W96+X96+Z96 -> 80917700 | AB96: 80917700 | AN96: =IF(ISERROR(AB96/AA96),"-",(AB96/AA96)) -> 1
A97: FDLSC-CPS-017-2022 | B97: 2022 | C97: FDLSC-CD-010-2022 | D97: https://community.secop.gov.co/Public/Tendering/OpportunityDetail/Index?noticeUID=CO1.NTC.2590823&isFromPublicArea=True&isModal=true&asPopupView=true | E97: Contratos de prestación de servicios profesionales y de apoyo a la gestión | F97: Contratación directa | G97: Prestación de servicios profesionales y de apoyo a la gestión, o para la ejecución de trabajos artísticos que sólo puedan encomendarse a determinadas personas naturales | H97: PRESTAR SERVICIOS PROFESIONALES PARA TRAMITAR LAS ETAPAS PRECONTRACTUALES Y CONTRACTUALES DE ACUERDO AL PLAN DE ADQUISICIONES Y AL PLAN DE CONTRATACIÓN QUE ADELANTE EL FONDO DE DESARROLLO LOCAL DE SAN CRISTÓBAL | I97: Inversión | J97: Un nuevo contrato social y ambiental para la Bogotá del Siglo XXI | K97: 57 | L97: =IF(ISERROR(VLOOKUP(K97,#REF!,2,FALSE))," ",VLOOKUP(K97,#REF!,2,FALSE)) ->  | M97: =IF(ISERROR(VLOOKUP(K97,#REF!,3,FALSE))," ",VLOOKUP(K97,#REF!,3,FALSE)) ->  | N97: 1873 | O97: 0 | P97: 1090395548 | Q97: ALIDA ANDREA CALDERON OSPINA | R97: Persona Natural | T97: N/A | U97: N/A | W97: 53600000 | X97: 0 | Y97: 2 | Z97: 26799999 | AA97: =+W97+X97+Z97 -> 80399999 | AB97: 69233333 | AC97: 2022-01-18 | AD97: 2022-01-21 | AE97: 2023-01-20 | AF97: 240 | AG97: 2 | AH97: 120 | AM97: En ejecución | AN97: =IF(ISERROR(AB97/AA97),"-",(AB97/AA97)) -> 0.8611111177
A98: FDLSC-CPS-037-2022 | B98: 2022 | C98: FDLSC-CD-022-2022 | D98: https://community.secop.gov.co/Public/Tendering/OpportunityDetail/Index?noticeUID=CO1.NTC.2604969&isFromPublicArea=True&isModal=true&asPopupView=true | E98: Contratos de prestación de servicios profesionales y de apoyo a la gestión | F98: Contratación directa | G98: Prestación de servicios profesionales y de apoyo a la gestión, o para la ejecución de trabajos artísticos que sólo puedan encomendarse a determinadas personas naturales | H98: PRESTAR SERVICIOS PROFESIONALES PARA APOYO LA REVISIÓN, EN CONTRATACIÓN DEL FONDO DE DESARROLLO LOCAL SAN CRISTÓBAL, EN CUANTO A LA PROYECCIÓN DE LOS DIFERENTES DOCUMENTOS, QUE SE REQUIERAN EN LOS PROCESOS DE CONTRATACIÓN EN LAS ETAPAS PRECONTRACTUAL, CONTRACTUAL Y POSTCONTRACTUALASÍ COMO EN LAS DEMÁS ACTIVIDADES ASIGNADAS, DE CONFORMIDAD CON LAS DIRECTRICES Y POLÍTICAS DE LA ADMINISTRACIÓN LOCAL. | I98: Inversión | J98: Un nuevo contrato social y ambiental para la Bogotá del Siglo XXI | K98: 57 | L98: =IF(ISERROR(VLOOKUP(K98,#REF!,2,FALSE))," ",VLOOKUP(K98,#REF!,2,FALSE)) ->  | M98: =IF(ISERROR(VLOOKUP(K98,#REF!,3,FALSE))," ",VLOOKUP(K98,#REF!,3,FALSE)) ->  | N98: 1873 | O98: 0 | P98: 1053325334 | Q98: JOSE LUIS SUAREZ PARRA | R98: Persona Natural | T98: N/A | U98: N/A | W98: 53600000 | X98: 0 | Y98: 2 | Z98: 26129999 | AA98: =+W98+X98+Z98 -> 79729999 | AB98: 68563333 | AC98: 2022-01-21 | AD98: 2022-01-24 | AE98: 2023-01-20 | AF98: 240 | AG98: 1 | AH98: 97 | AM98: En ejecución | AN98: =IF(ISERROR(AB98/AA98),"-",(AB98/AA98)) -> 0.8599439842
A99: FDLSC-CPS-666-2022 | B99: 2022 | C99: FDLSC-SAMC-005-2022 | D99: https://community.secop.gov.co/Public/Tendering/OpportunityDetail/Index?noticeUID=CO1.NTC.3601213&isFromPublicArea=True&isModal=true&asPopupView=true | E99: Contratos de prestación de servicios | F99: Selección abreviada | G99: Selección abreviada por menor cuantía | H99: CONTRATAR LOS SERVICIOS DE APOYO LOGÍSTICOS, TRANSPORTE, PUBLICITARIOS, ELEMENTOS DE MERCHANDISING Y CATERING REQUERIDOS PARA EL DESARROLLO OPERATIVO DE LOS EVENTOS LIDERADOS POR LA ALCALDIA LOCAL DE SAN CRISTÓBAL | I99: Inversión | J99: Un nuevo contrato social y ambiental para la Bogotá del Siglo XXI | K99: 45 | L99: =IF(ISERROR(VLOOKUP(K99,#REF!,2,FALSE))," ",VLOOKUP(K99,#REF!,2,FALSE)) ->  | M99: =IF(ISERROR(VLOOKUP(K99,#REF!,3,FALSE))," ",VLOOKUP(K99,#REF!,3,FALSE)) ->  | N99: 1835 | O99: 1 | P99: 900521780 | Q99: B2 NETWORKS S A S | R99: Persona Jurídica | T99: N/A | U99: N/A | W99: 79235989 | X99: 0 | Y99: 0 | Z99: 0 | AA99: =+W99+X99+Z99 -> 79235989 | AB99: 0 | AC99: 2022-12-28 | AF99: 180 | AM99: Celebrado o por iniciar | AN99: =IF(ISERROR(AB99/AA99),"-",(AB99/AA99)) -> 0
A100: FDLSC-CPS-324-2022 | B100: 2022 | C100: FDLSC-CD-162-2022 | D100: https://community.secop.gov.co/Public/Tendering/OpportunityDetail/Index?noticeUID=CO1.NTC.2770350&isFromPublicArea=True&isModal=true&asPopupView=true | E100: Contratos de prestación de servicios profesionales y de apoyo a la gestión | F100: Contratación directa | G100: Prestación de servicios profesionales y de apoyo a la gestión, o para la ejecución de trabajos artísticos que sólo puedan encomendarse a determinadas personas naturales | H100: PRESTAR SUS SERVICIOS PROFESIONALES PARA LA GESTIÓN EN EL AREA DE DESARROLLO LOCAL DE SAN CRISTOBAL, EN EL APOYO DE LA EJECUCIÓN DE OBRAS DIRECTAS CON MAQUINARIA AMARILLA, ASÍ COMO LA FORMULACION, PLANEACION, PRESENTACIÓN Y SEGUIMIENTO DE LOS PROYECTOS DE INFRAESTRUCTURA Y OBRAS CIVILES QUE DESARROLLE LA ENTIDAD, Y EN LOS REQUERMIENTOS DE INFRAESTRUCTURA CIVIL QUE TENGA LA ALCALDIA LOCAL DE SAN CRISTOBAL | I100: Inversión | J100: Un nuevo contrato social y ambiental para la Bogotá del Siglo XXI | K100: 49 | L100: =IF(ISERROR(VLOOKUP(K100,#REF!,2,FALSE))," ",VLOOKUP(K100,#REF!,2,FALSE)) ->  | M100: =IF(ISERROR(VLOOKUP(K100,#REF!,3,FALSE))," ",VLOOKUP(K100,#REF!,3,FALSE)) ->  | N100: 1871 | O100: 0 | P100: 1076646357 | Q100: AHYDA ROCIO QUIROGA PIRAQUIVE | R100: Persona Natural | T100: N/A | U100: N/A | W100: 52800000 | X100: 0 | Y100: 2 | Z100: 25520000 | AA100: =+W100+X100+Z100 -> 78320000 | AB100: 65120000 | AC100: 2022-01-28 | AD100: 2022-02-05 | AE100: 2023-01-30 | AF100: 240 | AG100: 2 | AH100: 116 | AM100: En ejecución | AN100: =IF(ISERROR(AB100/AA100),"-",(AB100/AA100)) -> 0.8314606742
A101: FDLSC-CPS-060-2022 | B101: 2022 | C101: FDLSC-CD-038-2022 | D101: https://community.secop.gov.co/Public/Tendering/OpportunityDetail/Index?noticeUID=CO1.NTC.2610518&isFromPublicArea=True&isModal=true&asPopupView=true | E101: Contratos de prestación de servicios profesionales y de apoyo a la gestión | F101: Contratación directa | G101: Prestación de servicios profesionales y de apoyo a la gestión, o para la ejecución de trabajos artísticos que sólo puedan encomendarse a determinadas personas naturales | H101: PRESTAR SERVICIOS PROFESIONALES EN EL ÁREA DE GESTIÓN DE DESARROLLO LOCAL PARA LA FORMULACIÓN, EVALUACIÓN, PRESENTACIÓN Y SEGUIMIENTO A PROYECTOS DE INVERSIÓN LOCAL, ASI CÓMO EL APOYO PARA EL REGISTRO DE LOS MISMOS EN LOS DIFERENTES SISTEMAS DE INFORMACIÓN. | I101: Inversión | J101: Un nuevo contrato social y ambiental para la Bogotá del Siglo XXI | K101: 57 | L101: =IF(ISERROR(VLOOKUP(K101,#REF!,2,FALSE))," ",VLOOKUP(K101,#REF!,2,FALSE)) ->  | M101: =IF(ISERROR(VLOOKUP(K101,#REF!,3,FALSE))," ",VLOOKUP(K101,#REF!,3,FALSE)) ->  | N101: 1873 | O101: 0 | P101: 1031150040 | Q101: ESTEFANIA MARTINEZ MELO | R101: Persona Natural | T101: N/A | U101: N/A | W101: 71500000 | X101: 0 | Y101: 1 | Z101: 6500000 | AA101: =+W101+X101+Z101 -> 78000000 | AB101: 66083333 | AC101: 2022-01-20 | AD101: 2022-01-26 | AE101: 2023-01-25 | AF101: 330 | AG101: 1 | AH101: 30 | AM101: En ejecución | AN101: =IF(ISERROR(AB101/AA101),"-",(AB101/AA101)) -> 0.8472222179
A102: FDLSC-CPS-116-2022 | B102: 2022 | C102: FDLSC-CD-064-2022 | D102: https://community.secop.gov.co/Public/Tendering/OpportunityDetail/Index?noticeUID=CO1.NTC.2693451&isFromPublicArea=True&isModal=true&asPopupView=true | E102: Contratos de prestación de servicios profesionales y de apoyo a la gestión | F102: Contratación directa | G102: Prestación de servicios profesionales y de apoyo a la gestión, o para la ejecución de trabajos artísticos que sólo puedan encomendarse a determinadas personas naturales | H102: PRESTAR LOS SERVICIOS PROFESIONALES ESPECIALIZADOS A LA ALCALDÍA LOCAL DE SAN CRISTÓBAL, PARA LA EJECUCIÓN DE LAS ACTIVIDADES Y PROCESOS ADMINISTRATIVOS Y DE CAMPO RELACIONADOS CON LA ATENCIÓN A LA PREVENCIÓN DE LA VIOLENCIA INTRAFAMILIAR, EN EL MARCO DE LAS NECESIDADES DEL FONDO DE DESARROLLO LOCAL. | I102: Inversión | J102: Un nuevo contrato social y ambiental para la Bogotá del Siglo XXI | K102: 6 | L102: =IF(ISERROR(VLOOKUP(K102,#REF!,2,FALSE))," ",VLOOKUP(K102,#REF!,2,FALSE)) ->  | M102: =IF(ISERROR(VLOOKUP(K102,#REF!,3,FALSE))," ",VLOOKUP(K102,#REF!,3,FALSE)) ->  | N102: 1811 | O102: 0 | P102: 1023869235 | Q102: ABSELINDA BETANCOURT APONTE | R102: Persona Natural | T102: N/A | U102: N/A | W102: 77583000 | X102: 0 | Y102: 0 | Z102: 0 | AA102: =+W102+X102+Z102 -> 77583000 | AB102: 41377600 | AC102: 2022-01-26 | AD102: 2022-02-05 | AE102: 2022-08-02 | AF102: 330 | AG102: 0 | AH102: 0 | AM102: Terminado | AN102: =IF(ISERROR(AB102/AA102),"-",(AB102/AA102)) -> 0.5333333333
A103: FDLSC-CPS-185-2022 | B103: 2022 | C103: FDLSC-CD-087-2022 | D103: https://community.secop.gov.co/Public/Tendering/OpportunityDetail/Index?noticeUID=CO1.NTC.2719506&isFromPublicArea=True&isModal=true&asPopupView=true | E103: Contratos de prestación de servicios profesionales y de apoyo a la gestión | F103: Contratación directa | G103: Prestación de servicios profesionales y de apoyo a la gestión, o para la ejecución de trabajos artísticos que sólo puedan encomendarse a determinadas personas naturales | H103: APOYAR AL ALCALDE LOCAL EN LA PROMOCIÓN, ARTICULACIÓN, ACOMPAÑAMIENTO Y SEGUIMIENTO PARA LA ATENCIÓN Y PROTECCIÓN DE LOS ANIMALES DOMÉSTICOS Y SILVESTRES DE LA LOCALIDAD. | I103: Inversión | J103: Un nuevo contrato social y ambiental para la Bogotá del Siglo XXI | K103: 34 | L103: =IF(ISERROR(VLOOKUP(K103,#REF!,2,FALSE))," ",VLOOKUP(K103,#REF!,2,FALSE)) ->  | M103: =IF(ISERROR(VLOOKUP(K103,#REF!,3,FALSE))," ",VLOOKUP(K103,#REF!,3,FALSE)) ->  | N103: 1826 | O103: 0 | P103: 52824441 | Q103: CRISTHIAN CAMILO CALDERON CARDOZO | R103: Persona Natural | T103: N/A | U103: N/A | W103: 71500000 | X103: 0 | Y103: 1 | Z103: 6066667 | AA103: =+W103+X103+Z103 -> 77566667 | AB103: 53516666 | AC103: 2022-01-27 | AD103: 2022-02-04 | AE103: 2023-01-31 | AF103: 330 | AG103: 1 | AH103: 28 | AI103: 80169690 | AJ103: JUAN PABLO OLMOS CASTRO | AK103: 2022-06-17 | AL103: 48533334 | AM103: En ejecución | AN103: =IF(ISERROR(AB103/AA103),"-",(AB103/AA103)) -> 0.6899441225
B104: 2022 | E104: Otros gastos | H104: PAGOS VARIOS POR RESOLUCIONES 1873 | I104: Inversión | J104: Un nuevo contrato social y ambiental para la Bogotá del Siglo XXI | K104: 57 | L104: =IF(ISERROR(VLOOKUP(K104,#REF!,2,FALSE))," ",VLOOKUP(K104,#REF!,2,FALSE)) ->  | M104: =IF(ISERROR(VLOOKUP(K104,#REF!,3,FALSE))," ",VLOOKUP(K104,#REF!,3,FALSE)) ->  | N104: 1873 | O104: 0 | W104: 76595112 | X104: 0 | Y104: 0 | Z104: 0 | AA104: =+W104+X104+Z104 -> 76595112 | AB104: 76587359 | AN104: =IF(ISERROR(AB104/AA104),"-",(AB104/AA104)) -> 0.9998987794
A105: FDLSC-CPS-038-2022 | B105: 2022 | C105: FDLSC-CD-022-2022 | D105: https://community.secop.gov.co/Public/Tendering/OpportunityDetail/Index?noticeUID=CO1.NTC.2604969&isFromPublicArea=True&isModal=true&asPopupView=true | E105: Contratos de prestación de servicios profesionales y de apoyo a la gestión | F105: Contratación directa | G105: Prestación de servicios profesionales y de apoyo a la gestión, o para la ejecución de trabajos artísticos que sólo puedan encomendarse a determinadas personas naturales | H105: PRESTAR SERVICIOS PROFESIONALES PARA APOYO LA REVISIÓN, EN CONTRATACIÓN DEL FONDO DE DESARROLLO LOCAL SAN CRISTÓBAL, EN CUANTO A LA PROYECCIÓN DE LOS DIFERENTES DOCUMENTOS, QUE SE REQUIERAN EN LOS PROCESOS DE CONTRATACIÓN EN LAS ETAPAS PRECONTRACTUAL, CONTRACTUAL Y POSTCONTRACTUALASÍ COMO EN LAS DEMÁS ACTIVIDADES ASIGNADAS, DE CONFORMIDAD CON LAS DIRECTRICES Y POLÍTICAS DE LA ADMINISTRACIÓN LOCAL. | I105: Inversión | J105: Un nuevo contrato social y ambiental para la Bogotá del Siglo XXI | K105: 57 | L105: =IF(ISERROR(VLOOKUP(K105,#REF!,2,FALSE))," ",VLOOKUP(K105,#REF!,2,FALSE)) ->  | M105: =IF(ISERROR(VLOOKUP(K105,#REF!,3,FALSE))," ",VLOOKUP(K105,#REF!,3,FALSE)) ->  | N105: 1873 | O105: 0 | P105: 1071302968 | Q105: JEIMY ROCIO TORRES HERNANDEZ | R105: Persona Natural | T105: N/A | U105: N/A | W105: 53600000 | X105: 0 | Y105: 1 | Z105: 21440000 | AA105: =+W105+X105+Z105 -> 75040000 | AB105: 68340000 | AC105: 2022-01-20 | AD105: 2022-01-25 | AE105: 2022-12-30 | AF105: 240 | AG105: 1 | AH105: 96 | AM105: Terminado | AN105: =IF(ISERROR(AB105/AA105),"-",(AB105/AA105)) -> 0.9107142857
A106: FDLSC-CPS-142-2022 | B106: 2022 | C106: FDLSC-CD-072-2022 | D106: https://community.secop.gov.co/Public/Tendering/OpportunityDetail/Index?noticeUID=CO1.NTC.2675641&isFromPublicArea=True&isModal=true&asPopupView=true | E106: Contratos de prestación de servicios profesionales y de apoyo a la gestión | F106: Contratación directa | G106: Prestación de servicios profesionales y de apoyo a la gestión, o para la ejecución de trabajos artísticos que sólo puedan encomendarse a determinadas personas naturales | H106: PRESTAR SUS SERVICIOS PROFESIONALES EN LA DEPURACION DE OBLIGACIONES POR PAGAR, TRAMITE DE PAGOS Y LIQUIDACIÓN DE CONTRATOS, DE CONFORMIDAD CON LAS CONDICIONES Y OBLIGACIONES ESTABLECIDAS POR EL FONDO DE DESARROLLO LOCAL | I106: Inversión | J106: Un nuevo contrato social y ambiental para la Bogotá del Siglo XXI | K106: 57 | L106: =IF(ISERROR(VLOOKUP(K106,#REF!,2,FALSE))," ",VLOOKUP(K106,#REF!,2,FALSE)) ->  | M106: =IF(ISERROR(VLOOKUP(K106,#REF!,3,FALSE))," ",VLOOKUP(K106,#REF!,3,FALSE)) ->  | N106: 1873 | O106: 0 | P106: 79639019 | Q106: JAVIER CASTILLO GUERRERO | R106: Persona Natural | T106: N/A | U106: N/A | W106: 49600000 | X106: 0 | Y106: 2 | Z106: 24800000 | AA106: =+W106+X106+Z106 -> 74400000 | AB106: 62000000 | AC106: 2022-01-25 | AD106: 2022-02-01 | AE106: 2023-01-30 | AF106: 240 | AG106: 2 | AH106: 120 | AM106: En ejecución | AN106: =IF(ISERROR(AB106/AA106),"-",(AB106/AA106)) -> 0.8333333333
A107: FDLSC-CPS-145-2022 | B107: 2022 | C107: FDLSC-CD-072-2022 | D107: https://community.secop.gov.co/Public/Tendering/OpportunityDetail/Index?noticeUID=CO1.NTC.2675641&isFromPublicArea=True&isModal=true&asPopupView=true | E107: Contratos de prestación de servicios profesionales y de apoyo a la gestión | F107: Contratación directa | G107: Prestación de servicios profesionales y de apoyo a la gestión, o para la ejecución de trabajos artísticos que sólo puedan encomendarse a determinadas personas naturales | H107: PRESTAR SUS SERVICIOS PROFESIONALES EN LA DEPURACION DE OBLIGACIONES POR PAGAR, TRAMITE DE PAGOS Y LIQUIDACIÓN DE CONTRATOS, DE CONFORMIDAD CON LAS CONDICIONES Y OBLIGACIONES ESTABLECIDAS POR EL FONDO DE DESARROLLO LOCAL | I107: Inversión | J107: Un nuevo contrato social y ambiental para la Bogotá del Siglo XXI | K107: 57 | L107: =IF(ISERROR(VLOOKUP(K107,#REF!,2,FALSE))," ",VLOOKUP(K107,#REF!,2,FALSE)) ->  | M107: =IF(ISERROR(VLOOKUP(K107,#REF!,3,FALSE))," ",VLOOKUP(K107,#REF!,3,FALSE)) ->  | N107: 1873 | O107: 0 | P107: 79230850 | Q107: LUIS JAVIER GOUZY AMORTEGUI | R107: Persona Natural | T107: N/A | U107: N/A | W107: 49600000 | X107: 0 | Y107: 2 | Z107: 24800000 | AA107: =+W107+X107+Z107 -> 74400000 | AB107: 62000000 | AC107: 2022-01-26 | AD107: 2022-02-01 | AE107: 2023-01-30 | AF107: 240 | AG107: 1 | AH107: 90 | AM107: En ejecución | AN107: =IF(ISERROR(AB107/AA107),"-",(AB107/AA107)) -> 0.8333333333
A108: FDLSC-CPS-012-2022 | B108: 2022 | C108: FDLSC-CD-006-2022 | D108: https://community.secop.gov.co/Public/Tendering/OpportunityDetail/Index?noticeUID=CO1.NTC.2583311&isFromPublicArea=True&isModal=true&asPopupView=true | E108: Contratos de prestación de servicios profesionales y de apoyo a la gestión | F108: Contratación directa | G108: Prestación de servicios profesionales y de apoyo a la gestión, o para la ejecución de trabajos artísticos que sólo puedan encomendarse a determinadas personas naturales | H108: PRESTAR SERVICIOS PROFESIONALES DE APOYO AL ÁREA DE GESTIÓN DEL DEL DESARROLLO LOCAL EN ACTIVIDADES DE CONTRATACIÓN, PARA FORTALECER ETAPAS PRECONTRACTUALES Y CONTRACTUALES QUE ADELANTE LA ADMINISTRACIÓN LOCAL DE SAN CRISTOBAL. | I108: Inversión | J108: Un nuevo contrato social y ambiental para la Bogotá del Siglo XXI | K108: 57 | L108: =IF(ISERROR(VLOOKUP(K108,#REF!,2,FALSE))," ",VLOOKUP(K108,#REF!,2,FALSE)) ->  | M108: =IF(ISERROR(VLOOKUP(K108,#REF!,3,FALSE))," ",VLOOKUP(K108,#REF!,3,FALSE)) ->  | N108: 1873 | O108: 0 | P108: 1019018991 | Q108: GINA CATALINA CAMACHO BELTRAN | R108: Persona Natural | T108: N/A | U108: N/A | W108: 49440000 | X108: 0 | Y108: 2 | Z108: 24720000 | AA108: =+W108+X108+Z108 -> 74160000 | AB108: 54384000 | AC108: 2022-01-18 | AD108: 2022-01-21 | AE108: 2023-01-20 | AF108: 240 | AG108: 2 | AH108: 100 | AI108: 1010232717 | AJ108: MARIA FERNANDA GOMEZ CARDONA | AK108: 2022-03-07 | AL108: 39964000 | AM108: En ejecución | AN108: =IF(ISERROR(AB108/AA108),"-",(AB108/AA108)) -> 0.7333333333
A109: FDLSC-CPS-010-2022 | B109: 2022 | C109: FDLSC-CD-006-2022 | D109: https://community.secop.gov.co/Public/Tendering/OpportunityDetail/Index?noticeUID=CO1.NTC.2583311&isFromPublicArea=True&isModal=true&asPopupView=true | E109: Contratos de prestación de servicios profesionales y de apoyo a la gestión | F109: Contratación directa | G109: Prestación de servicios profesionales y de apoyo a la gestión, o para la ejecución de trabajos artísticos que sólo puedan encomendarse a determinadas personas naturales | H109: PRESTAR SERVICIOS PROFESIONALES DE APOYO AL ÁREA DE GESTIÓN DEL DEL DESARROLLO LOCAL EN ACTIVIDADES DE CONTRATACIÓN, PARA FORTALECER ETAPAS PRECONTRACTUALES Y CONTRACTUALES QUE ADELANTE LA ADMINISTRACIÓN LOCAL DE SAN CRISTOBAL. | I109: Inversión | J109: Un nuevo contrato social y ambiental para la Bogotá del Siglo XXI | K109: 57 | L109: =IF(ISERROR(VLOOKUP(K109,#REF!,2,FALSE))," ",VLOOKUP(K109,#REF!,2,FALSE)) ->  | M109: =IF(ISERROR(VLOOKUP(K109,#REF!,3,FALSE))," ",VLOOKUP(K109,#REF!,3,FALSE)) ->  | N109: 1873 | O109: 0 | P109: 1033698738 | Q109: FROYLAN SNAIDER SANCHEZ PIZA | R109: Persona Natural | T109: N/A | U109: N/A | W109: 49440000 | X109: 0 | Y109: 2 | Z109: 24720000 | AA109: =+W109+X109+Z109 -> 74160000 | AB109: 63036000 | AC109: 2022-01-18 | AD109: 2022-01-25 | AE109: 2023-01-24 | AF109: 240 | AG109: 2 | AH109: 120 | AM109: En ejecución | AN109: =IF(ISERROR(AB109/AA109),"-",(AB109/AA109)) -> 0.85
A110: FDLSC-CPS-011-2022 | B110: 2022 | C110: FDLSC-CD-006-2022 | D110: https://community.secop.gov.co/Public/Tendering/OpportunityDetail/Index?noticeUID=CO1.NTC.2583311&isFromPublicArea=True&isModal=true&asPopupView=true | E110: Contratos de prestación de servicios profesionales y de apoyo a la gestión | F110: Contratación directa | G110: Prestación de servicios profesionales y de apoyo a la gestión, o para la ejecución de trabajos artísticos que sólo puedan encomendarse a determinadas personas naturales | H110: PRESTAR SERVICIOS PROFESIONALES DE APOYO AL ÁREA DE GESTIÓN DEL DEL DESARROLLO LOCAL EN ACTIVIDADES DE CONTRATACIÓN, PARA FORTALECER ETAPAS PRECONTRACTUALES Y CONTRACTUALES QUE ADELANTE LA ADMINISTRACIÓN LOCAL DE SAN CRISTOBAL. | I110: Inversión | J110: Un nuevo contrato social y ambiental para la Bogotá del Siglo XXI | K110: 57 | L110: =IF(ISERROR(VLOOKUP(K110,#REF!,2,FALSE))," ",VLOOKUP(K110,#REF!,2,FALSE)) ->  | M110: =IF(ISERROR(VLOOKUP(K110,#REF!,3,FALSE))," ",VLOOKUP(K110,#REF!,3,FALSE)) ->  | N110: 1873 | O110: 0 | P110: 80075660 | Q110: JOSE BERNARDO GARCIA AGAMEZ | R110: Persona Natural | T110: N/A | U110: N/A | W110: 49440000 | X110: 0 | Y110: 2 | Z110: 24720000 | AA110: =+W110+X110+Z110 -> 74160000 | AB110: 63654000 | AC110: 2022-01-18 | AD110: 2022-01-21 | AE110: 2023-01-20 | AF110: 240 | AG110: 1 | AH110: 100 | AM110: En ejecución | AN110: =IF(ISERROR(AB110/AA110),"-",(AB110/AA110)) -> 0.8583333333
A111: FDLSC-CPS-123-2022 | B111: 2022 | C111: FDLSC-CD-091-2022 | D111: https://community.secop.gov.co/Public/Tendering/OpportunityDetail/Index?noticeUID=CO1.NTC.2758562&isFromPublicArea=True&isModal=true&asPopupView=true | E111: Contratos de prestación de servicios profesionales y de apoyo a la gestión | F111: Contratación directa | G111: Prestación de servicios profesionales y de apoyo a la gestión, o para la ejecución de trabajos artísticos que sólo puedan encomendarse a determinadas personas naturales | H111: PRESTAR SUS SERVICIOS PROFESIONALES PARA LA GESTIÓN EN EL ÁREA DE DESARROLLO LOCAL DE SAN CRISTÓBAL, EN EL APOYO DE LA FORMULACIÓN, PLANEACIÓN, PRESENTACIÓN Y SEGUIMIENTO DE LOS PROYECTOS DE INFRAESTRUCTURA Y OBRAS CIVILES QUE DESARROLLE LA ENTIDAD, Y EN LOS REQUERIMIENTOS DE INFRAESTRUCTURA CIVIL QUE TENGA LA ALCALDÍA LOCAL DE SAN CRISTÓBAL | I111: Inversión | J111: Un nuevo contrato social y ambiental para la Bogotá del Siglo XXI | K111: 49 | L111: =IF(ISERROR(VLOOKUP(K111,#REF!,2,FALSE))," ",VLOOKUP(K111,#REF!,2,FALSE)) ->  | M111: =IF(ISERROR(VLOOKUP(K111,#REF!,3,FALSE))," ",VLOOKUP(K111,#REF!,3,FALSE)) ->  | N111: 1871 | O111: 0 | P111: 80114000 | Q111: JOSE DARIO GAVILANES | R111: Persona Natural | T111: N/A | U111: N/A | W111: 73700000 | X111: 0 | Y111: 0 | Z111: 0 | AA111: =+W111+X111+Z111 -> 73700000 | AB111: 66776667 | AC111: 2022-01-28 | AD111: 2022-02-02 | AE111: 2023-01-01 | AF111: 330 | AG111: 0 | AH111: 0 | AM111: En ejecución | AN111: =IF(ISERROR(AB111/AA111),"-",(AB111/AA111)) -> 0.9060606106
A112: FDLSC-CPS-043-2022 | B112: 2022 | C112: FDLSC-CD-027-2022 | D112: https://community.secop.gov.co/Public/Tendering/OpportunityDetail/Index?noticeUID=CO1.NTC.2619167&isFromPublicArea=True&isModal=true&asPopupView=true | E112: Contratos de prestación de servicios profesionales y de apoyo a la gestión | F112: Contratación directa | G112: Prestación de servicios profesionales y de apoyo a la gestión, o para la ejecución de trabajos artísticos que sólo puedan encomendarse a determinadas personas naturales | H112: APOYAR AL EQUIPO DE PRENSA Y COMUNICACIONES DE LA ALCALDÍA LOCAL EN LA REALIZACIÓN Y PUBLICACIÓN DE CONTENIDOS DE REDES SOCIALES Y CANALES DE DIVULGACIÓN DIGITAL (SITIO WEB) DE LA ALCALDÍA LOCAL. | I112: Inversión | J112: Un nuevo contrato social y ambiental para la Bogotá del Siglo XXI | K112: 57 | L112: =IF(ISERROR(VLOOKUP(K112,#REF!,2,FALSE))," ",VLOOKUP(K112,#REF!,2,FALSE)) ->  | M112: =IF(ISERROR(VLOOKUP(K112,#REF!,3,FALSE))," ",VLOOKUP(K112,#REF!,3,FALSE)) ->  | N112: 1873 | O112: 0 | P112: 1052389187 | Q112: CLAUDIA CAROLINA CHINOME ALVARADO | R112: Persona Natural | T112: N/A | U112: N/A | W112: 73645000 | X112: 0 | Y112: 0 | Z112: 0 | AA112: =+W112+X112+Z112 -> 73645000 | AB112: 44187000 | AC112: 2022-01-19 | AD112: 2022-01-26 | AE112: 2023-04-01 | AF112: 330 | AG112: 0 | AH112: 0 | AM112: En ejecución | AN112: =IF(ISERROR(AB112/AA112),"-",(AB112/AA112)) -> 0.6
A113: FDLSC-CPS-072-2022 | B113: 2022 | C113: FDLSC-CD-043-2022 | D113: https://community.secop.gov.co/Public/Tendering/OpportunityDetail/Index?noticeUID=CO1.NTC.2625927&isFromPublicArea=True&isModal=true&asPopupView=true | E113: Contratos de prestación de servicios profesionales y de apoyo a la gestión | F113: Contratación directa | G113: Prestación de servicios profesionales y de apoyo a la gestión, o para la ejecución de trabajos artísticos que sólo puedan encomendarse a determinadas personas naturales | H113: PRESTAR SUS SERVICIOS PROFESIONALES PARA EL FONDO DE DESARROLLO LOCAL DE SAN CRISTOBAL EN LO REFERENTE AL SECTOR HÁBITAT, A LA LUZ DEL PLAN DE DESARROLLO 2021-2024 UN NUEVO CONTRATO AMBIENTAL Y SOCIAL PARA SAN CRISTOBAL | I113: Inversión | J113: Un nuevo contrato social y ambiental para la Bogotá del Siglo XXI | K113: 57 | L113: =IF(ISERROR(VLOOKUP(K113,#REF!,2,FALSE))," ",VLOOKUP(K113,#REF!,2,FALSE)) ->  | M113: =IF(ISERROR(VLOOKUP(K113,#REF!,3,FALSE))," ",VLOOKUP(K113,#REF!,3,FALSE)) ->  | N113: 1873 | O113: 0 | P113: 1023931539 | Q113: ANGELICA JOHANNA PATARROYO LONDOÑO | R113: Persona Natural | T113: N/A | U113: N/A | W113: 66000000 | X113: 0 | Y113: 1 | Z113: 7600000 | AA113: =+W113+X113+Z113 -> 73600000 | AB113: 61400000 | AC113: 2022-01-21 | AD113: 2022-01-24 | AE113: 2023-02-01 | AF113: 330 | AG113: 1 | AH113: 38 | AM113: En ejecución | AN113: =IF(ISERROR(AB113/AA113),"-",(AB113/AA113)) -> 0.8342391304
A114: FDLSC-CPS-346-2022 | B114: 2022 | C114: FDLSC-CD-171-2022 | D114: https://community.secop.gov.co/Public/Tendering/OpportunityDetail/Index?noticeUID=CO1.NTC.2813466&isFromPublicArea=True&isModal=true&asPopupView=true | E114: Contratos de prestación de servicios profesionales y de apoyo a la gestión | F114: Contratación directa | G114: Prestación de servicios profesionales y de apoyo a la gestión, o para la ejecución de trabajos artísticos que sólo puedan encomendarse a determinadas personas naturales | H114: PRESTAR SERVICIOS PROFESIONALES A LA ALCALDÍA LOCAL DE SAN CRISTÓBAL, BRINDANDO APOYO EN LA EJECUCIÓN OPERATIVA DE LA ESTRATEGIA TERRITORIAL EN ARTICULACIÓN CON LOS PROYECTOS LOCALES EN MATERIA DE SEGURIDAD Y CONVIVENCIA. | I114: Inversión | J114: Un nuevo contrato social y ambiental para la Bogotá del Siglo XXI | K114: 43 | L114: =IF(ISERROR(VLOOKUP(K114,#REF!,2,FALSE))," ",VLOOKUP(K114,#REF!,2,FALSE)) ->  | M114: =IF(ISERROR(VLOOKUP(K114,#REF!,3,FALSE))," ",VLOOKUP(K114,#REF!,3,FALSE)) ->  | N114: 1824 | O114: 0 | P114: 1026273234 | Q114: DAVID ALEJANDRO MONTEJO ROA | R114: Persona Natural | T114: N/A | U114: N/A | W114: 54512000 | X114: 0 | Y114: 1 | Z114: 18170666 | AA114: =+W114+X114+Z114 -> 72682666 | AB114: 65868667 | AC114: 2022-01-28 | AD114: 2022-02-11 | AE114: 2022-12-30 | AF114: 240 | AG114: 1 | AH114: 80 | AM114: Terminado | AN114: =IF(ISERROR(AB114/AA114),"-",(AB114/AA114)) -> 0.9062500129
A115: FDLSC-CPS-014-2022 | B115: 2022 | C115: FDLSC-CD-008-2022 | D115: https://community.secop.gov.co/Public/Tendering/OpportunityDetail/Index?noticeUID=CO1.NTC.2585352&isFromPublicArea=True&isModal=true&asPopupView=true | E115: Contratos de prestación de servicios profesionales y de apoyo a la gestión | F115: Contratación directa | G115: Prestación de servicios profesionales y de apoyo a la gestión, o para la ejecución de trabajos artísticos que sólo puedan encomendarse a determinadas personas naturales | H115: PRESTAR SUS SERVICIOS PROFESIONALES PARA APOYAR LOS TEMAS PRESUPUESTALES EN EL MARCO DEL PLAN DE DESARROLLO 2021-2024. | I115: Inversión | J115: Un nuevo contrato social y ambiental para la Bogotá del Siglo XXI | K115: 57 | L115: =IF(ISERROR(VLOOKUP(K115,#REF!,2,FALSE))," ",VLOOKUP(K115,#REF!,2,FALSE)) ->  | M115: =IF(ISERROR(VLOOKUP(K115,#REF!,3,FALSE))," ",VLOOKUP(K115,#REF!,3,FALSE)) ->  | N115: 1873 | O115: 0 | P115: 1023867248 | Q115: DIANA AURORA DUARTE SUAREZ | R115: Persona Natural | T115: N/A | U115: N/A | W115: 64471000 | X115: 0 | Y115: 1 | Z115: 7814667 | AA115: =+W115+X115+Z115 -> 72285667 | AB115: 60954400 | AC115: 2022-01-18 | AD115: 2022-01-19 | AE115: 2023-01-28 | AF115: 330 | AG115: 1 | AH115: 40 | AM115: En ejecución | AN115: =IF(ISERROR(AB115/AA115),"-",(AB115/AA115)) -> 0.8432432394
A116: FDLSC-CPS-051-2022 | B116: 2022 | C116: FDLSC-CD-032-2022 | D116: https://community.secop.gov.co/Public/Tendering/OpportunityDetail/Index?noticeUID=CO1.NTC.2593579&isFromPublicArea=True&isModal=true&asPopupView=true | E116: Contratos de prestación de servicios profesionales y de apoyo a la gestión | F116: Contratación directa | G116: Prestación de servicios profesionales y de apoyo a la gestión, o para la ejecución de trabajos artísticos que sólo puedan encomendarse a determinadas personas naturales | H116: EL CONTRATISTA PRESTARA SUS SERVICIOS PROFESIONALES AL FONDO DE DESARROLLO LOCAL DE SAN CRISTOBAL EN EL MARCO DEL PLAN DE DESARROLLO 2021- 2024, REALIZANDO LA FORMULACION DE LOS PROYECTOS DE FUNCIONAMIENTO Y SEGUIMIENTO A LOS MISMOS Y LAS DEMAS ACTIVIDADES QUE SE GENEREN. | I116: Inversión | J116: Un nuevo contrato social y ambiental para la Bogotá del Siglo XXI | K116: 57 | L116: =IF(ISERROR(VLOOKUP(K116,#REF!,2,FALSE))," ",VLOOKUP(K116,#REF!,2,FALSE)) ->  | M116: =IF(ISERROR(VLOOKUP(K116,#REF!,3,FALSE))," ",VLOOKUP(K116,#REF!,3,FALSE)) ->  | N116: 1873 | O116: 0 | P116: 53092448 | Q116: MONICA ALEXANDRA GOMEZ SARMIENTO | R116: Persona Natural | T116: N/A | U116: N/A | W116: 66000000 | X116: 0 | Y116: 1 | Z116: 6000000 | AA116: =+W116+X116+Z116 -> 72000000 | AB116: 62000000 | AC116: 2022-01-19 | AD116: 2022-01-21 | AE116: 2023-01-20 | AF116: 330 | AG116: 1 | AH116: 30 | AM116: En ejecución | AN116: =IF(ISERROR(AB116/AA116),"-",(AB116/AA116)) -> 0.8611111111
A117: FDLSC-CPS-144-2022 | B117: 2022 | C117: FDLSC-CD-072-2022 | D117: https://community.secop.gov.co/Public/Tendering/OpportunityDetail/Index?noticeUID=CO1.NTC.2675641&isFromPublicArea=True&isModal=true&asPopupView=true | E117: Contratos de prestación de servicios profesionales y de apoyo a la gestión | F117: Contratación directa | G117: Prestación de servicios profesionales y de apoyo a la gestión, o para la ejecución de trabajos artísticos que sólo puedan encomendarse a determinadas personas naturales | H117: PRESTAR SUS SERVICIOS PROFESIONALES EN LA DEPURACION DE OBLIGACIONES POR PAGAR, TRAMITE DE PAGOS Y LIQUIDACIÓN DE CONTRATOS, DE CONFORMIDAD CON LAS CONDICIONES Y OBLIGACIONES ESTABLECIDAS POR EL FONDO DE DESARROLLO LOCAL | I117: Inversión | J117: Un nuevo contrato social y ambiental para la Bogotá del Siglo XXI | K117: 57 | L117: =IF(ISERROR(VLOOKUP(K117,#REF!,2,FALSE))," ",VLOOKUP(K117,#REF!,2,FALSE)) ->  | M117: =IF(ISERROR(VLOOKUP(K117,#REF!,3,FALSE))," ",VLOOKUP(K117,#REF!,3,FALSE)) ->  | N117: 1873 | O117: 0 | P117: 39632724 | Q117: LISSI OVALLE GONZALEZ | R117: Persona Natural | T117: N/A | U117: N/A | W117: 49600000 | X117: 0 | Y117: 2 | Z117: 21906666 | AA117: =+W117+X117+Z117 -> 71506666 | AB117: 61173333 | AC117: 2022-01-28 | AD117: 2022-02-05 | AE117: 2023-01-20 | AF117: 240 | AG117: 1 | AH117: 86 | AM117: En ejecución | AN117: =IF(ISERROR(AB117/AA117),"-",(AB117/AA117)) -> 0.8554913328
A118: FDLSC-CPS-203-2022 | B118: 2022 | C118: FDLSC-CD-100-2022 | D118: https://community.secop.gov.co/Public/Tendering/OpportunityDetail/Index?noticeUID=CO1.NTC.2745724&isFromPublicArea=True&isModal=true&asPopupView=true | E118: Contratos de prestación de servicios profesionales y de apoyo a la gestión | F118: Contratación directa | G118: Prestación de servicios profesionales y de apoyo a la gestión, o para la ejecución de trabajos artísticos que sólo puedan encomendarse a determinadas personas naturales | H118: PRESTAR SUS SERVICIOS PROFESIONALES EN LA GESTIÓN Y ACOMPAÑAMIENTO DE LOS PROCESOS E INSTANCIAS DE PARTICIPACIÓN CIUDADANA DE CONFORMIDAD CON EL MARCO NORMATIVO APLICABLE EN LA MATERIA. | I118: Inversión | J118: Un nuevo contrato social y ambiental para la Bogotá del Siglo XXI | K118: 55 | L118: =IF(ISERROR(VLOOKUP(K118,#REF!,2,FALSE))," ",VLOOKUP(K118,#REF!,2,FALSE)) ->  | M118: =IF(ISERROR(VLOOKUP(K118,#REF!,3,FALSE))," ",VLOOKUP(K118,#REF!,3,FALSE)) ->  | N118: 1872 | O118: 0 | P118: 1013636275 | Q118: BEBLIN LORENA BAGUI MINA | R118: Persona Natural | T118: N/A | U118: N/A | W118: 48000000 | X118: 0 | Y118: 2 | Z118: 23400000 | AA118: =+W118+X118+Z118 -> 71400000 | AB118: 59400000 | AC118: 2022-01-28 | AD118: 2022-02-04 | AE118: 2023-01-30 | AF118: 240 | AG118: 2 | AH118: 117 | AM118: En ejecución | AN118: =IF(ISERROR(AB118/AA118),"-",(AB118/AA118)) -> 0.8319327731
A119: FDLSC-CPS-261-2022 | B119: 2022 | C119: FDLSC-CD-140-2022 | D119: https://community.secop.gov.co/Public/Tendering/OpportunityDetail/Index?noticeUID=CO1.NTC.2735206&isFromPublicArea=True&isModal=true&asPopupView=true | E119: Contratos de prestación de servicios profesionales y de apoyo a la gestión | F119: Contratación directa | G119: Prestación de servicios profesionales y de apoyo a la gestión, o para la ejecución de trabajos artísticos que sólo puedan encomendarse a determinadas personas naturales | H119: PRESTAR SUS SERVICIOS PROFESIONALES EN EL FORTALECIMIENTO INSTITUCIONAL MEDIANTE EL MONITOREO CONTINUO A LAS METAS DEL PLAN DE DESARROLLO LOCAL, Y APOYO A LA ACTUALIZACIÓN, SEGUIMIENTO Y EVALUACIÓN A LOS PROYECTOS DE INVERSIÓN LOCAL. | I119: Inversión | J119: Un nuevo contrato social y ambiental para la Bogotá del Siglo XXI | K119: 57 | L119: =IF(ISERROR(VLOOKUP(K119,#REF!,2,FALSE))," ",VLOOKUP(K119,#REF!,2,FALSE)) ->  | M119: =IF(ISERROR(VLOOKUP(K119,#REF!,3,FALSE))," ",VLOOKUP(K119,#REF!,3,FALSE)) ->  | N119: 1873 | O119: 0 | P119: 1015452339 | Q119: LAURA PATRICIA LOPEZ QUIÑONES | R119: Persona Natural | T119: N/A | U119: N/A | W119: 48000000 | X119: 0 | Y119: 2 | Z119: 23400000 | AA119: =+W119+X119+Z119 -> 71400000 | AB119: 59400000 | AC119: 2022-01-27 | AD119: 2022-02-04 | AE119: 2023-01-31 | AF119: 240 | AG119: 1 | AH119: 87 | AM119: En ejecución | AN119: =IF(ISERROR(AB119/AA119),"-",(AB119/AA119)) -> 0.8319327731
A120: FDLSC-CPS-009-2022 | B120: 2022 | C120: FDLSC-CD-005-2022 | D120: https://community.secop.gov.co/Public/Tendering/OpportunityDetail/Index?noticeUID=CO1.NTC.2603868&isFromPublicArea=True&isModal=true&asPopupView=true | E120: Contratos de prestación de servicios profesionales y de apoyo a la gestión | F120: Contratación directa | G120: Prestación de servicios profesionales y de apoyo a la gestión, o para la ejecución de trabajos artísticos que sólo puedan encomendarse a determinadas personas naturales | H120: PRESTAR LOS SERVICIOS COMO ADMINISTRADOR DE RED EN LO RELACIONADO CON LA PLATAFORMA INFORMATICA Y MEDIOS TECNOLOGICOS DE LA ALCALDIA LOCAL DE SAN CRISTOBAL Y SER EL ENLACE CON LA SECRETARIA DISTRITAL DE GOBIERNO | I120: Inversión | J120: Un nuevo contrato social y ambiental para la Bogotá del Siglo XXI | K120: 57 | L120: =IF(ISERROR(VLOOKUP(K120,#REF!,2,FALSE))," ",VLOOKUP(K120,#REF!,2,FALSE)) ->  | M120: =IF(ISERROR(VLOOKUP(K120,#REF!,3,FALSE))," ",VLOOKUP(K120,#REF!,3,FALSE)) ->  | N120: 1873 | O120: 0 | P120: 1070585045 | Q120: JULIETH ANDREA MARTINEZ TOVAR | R120: Persona Natural | T120: N/A | U120: N/A | W120: 62315000 | X120: 0 | Y120: 1 | Z120: 7533333 | AA120: =+W120+X120+Z120 -> 69848333 | AB120: 58538333 | AC120: 2022-01-19 | AD120: 2022-01-21 | AE120: 2023-01-20 | AF120: 330 | AG120: 1 | AH120: 40 | AM120: En ejecución | AN120: =IF(ISERROR(AB120/AA120),"-",(AB120/AA120)) -> 0.8380777391
B121: 2022 | E121: Otros gastos | H121: FACTURA PAGO DE SERVICIO DE ELECTRICIDAD | I121: Funcionamiento | J121: Un nuevo contrato social y ambiental para la Bogotá del Siglo XXI | K121: No aplica | L121: =IF(ISERROR(VLOOKUP(K121,#REF!,2,FALSE))," ",VLOOKUP(K121,#REF!,2,FALSE)) ->  | M121: =IF(ISERROR(VLOOKUP(K121,#REF!,3,FALSE))," ",VLOOKUP(K121,#REF!,3,FALSE)) ->  | N121: 6312 | O121: 0 | W121: 68063682 | X121: 0 | Y121: 0 | Z121: 0 | AA121: =+W121+X121+Z121 -> 68063682 | AB121: 67566162 | AN121: =IF(ISERROR(AB121/AA121),"-",(AB121/AA121)) -> 0.9926903749
A122: FDLSC-CPS-100-2022 | B122: 2022 | C122: FDLSC-CD-060-2022 | D122: https://community.secop.gov.co/Public/Tendering/OpportunityDetail/Index?noticeUID=CO1.NTC.2695812&isFromPublicArea=True&isModal=true&asPopupView=true | E122: Contratos de prestación de servicios profesionales y de apoyo a la gestión | F122: Contratación directa | G122: Prestación de servicios profesionales y de apoyo a la gestión, o para la ejecución de trabajos artísticos que sólo puedan encomendarse a determinadas personas naturales | H122: PRESTAR LOS SERVICIOS PROFESIONALES A LA ALCALDÍA LOCAL DE SAN CRISTÓBALPARA LA EJECUCIÓN DE LAS ACTIVIDADES, PROCESOS ADMINISTRATIVOS Y DE CAMPO RELACIONADOS CON LA REACTIVACIÓN ECONÓMICA EN EL MARCO DE LAS NECESIDADES DEL FONDO DE DESARROLLO LOCAL Y DINAMIZACIÓN PARA LA EJECUCIÓN DE LOS PROYECTOS QUE HACEN PARTE DEL PLAN DE DESARROLLO. | I122: Inversión | J122: Un nuevo contrato social y ambiental para la Bogotá del Siglo XXI | K122: 57 | L122: =IF(ISERROR(VLOOKUP(K122,#REF!,2,FALSE))," ",VLOOKUP(K122,#REF!,2,FALSE)) ->  | M122: =IF(ISERROR(VLOOKUP(K122,#REF!,3,FALSE))," ",VLOOKUP(K122,#REF!,3,FALSE)) ->  | N122: 1873 | O122: 0 | P122: 79971383 | Q122: OSWALDO JAVIER SANCHEZ SOLER | R122: Persona Natural | T122: N/A | U122: N/A | W122: 49400000 | X122: 0 | Y122: 1 | Z122: 17922000 | AA122: =+W122+X122+Z122 -> 67322000 | AB122: 60770000 | AC122: 2022-01-26 | AD122: 2022-02-04 | AE122: 2022-12-30 | AF122: 240 | AG122: 1 | AH122: 87 | AM122: Terminado | AN122: =IF(ISERROR(AB122/AA122),"-",(AB122/AA122)) -> 0.9026766882
A123: FDLSC-CPS-103-2022 | B123: 2022 | C123: FDLSC-CD-003-2022 | D123: https://community.secop.gov.co/Public/Tendering/OpportunityDetail/Index?noticeUID=CO1.NTC.2590234&isFromPublicArea=True&isModal=true&asPopupView=true | E123: Contratos de prestación de servicios profesionales y de apoyo a la gestión | F123: Contratación directa | G123: Prestación de servicios profesionales y de apoyo a la gestión, o para la ejecución de trabajos artísticos que sólo puedan encomendarse a determinadas personas naturales | H123: APOYAR JURÍDICAMENTE LA EJECUCIÓN DE LAS ACCIONES REQUERIDAS PARA LA DEPURACIÓN DE LAS ACTUACIONES ADMINISTRATIVAS QUE CURSAN EN LA ALCALDÍA LOCAL. | I123: Inversión | J123: Un nuevo contrato social y ambiental para la Bogotá del Siglo XXI | K123: 57 | L123: =IF(ISERROR(VLOOKUP(K123,#REF!,2,FALSE))," ",VLOOKUP(K123,#REF!,2,FALSE)) ->  | M123: =IF(ISERROR(VLOOKUP(K123,#REF!,3,FALSE))," ",VLOOKUP(K123,#REF!,3,FALSE)) ->  | N123: 1873 | O123: 0 | P123: 79890536 | Q123: OMAR ALBERTO IBAÑEZ JIMENEZ | R123: Persona Natural | T123: N/A | U123: N/A | W123: 44000000 | X123: 0 | Y123: 2 | Z123: 22000000 | AA123: =+W123+X123+Z123 -> 66000000 | AB123: 56100000 | AC123: 2022-01-21 | AD123: 2022-01-25 | AE123: 2023-01-24 | AF123: 240 | AG123: 2 | AH123: 120 | AM123: En ejecución | AN123: =IF(ISERROR(AB123/AA123),"-",(AB123/AA123)) -> 0.85
A124: FDLSC-CPS-108-2022 | B124: 2022 | C124: FDLSC-CD-003-2022 | D124: https://community.secop.gov.co/Public/Tendering/OpportunityDetail/Index?noticeUID=CO1.NTC.2590234&isFromPublicArea=True&isModal=true&asPopupView=true | E124: Contratos de prestación de servicios profesionales y de apoyo a la gestión | F124: Contratación directa | G124: Prestación de servicios profesionales y de apoyo a la gestión, o para la ejecución de trabajos artísticos que sólo puedan encomendarse a determinadas personas naturales | H124: APOYAR JURÍDICAMENTE LA EJECUCIÓN DE LAS ACCIONES REQUERIDAS PARA LA DEPURACIÓN DE LAS ACTUACIONES ADMINISTRATIVAS QUE CURSAN EN LA ALCALDÍA LOCAL. | I124: Inversión | J124: Un nuevo contrato social y ambiental para la Bogotá del Siglo XXI | K124: 57 | L124: =IF(ISERROR(VLOOKUP(K124,#REF!,2,FALSE))," ",VLOOKUP(K124,#REF!,2,FALSE)) ->  | M124: =IF(ISERROR(VLOOKUP(K124,#REF!,3,FALSE))," ",VLOOKUP(K124,#REF!,3,FALSE)) ->  | N124: 1873 | O124: 0 | P124: 79812331 | Q124: DIEGO FERNEY CHILITO ALVARADO | R124: Persona Natural | T124: N/A | U124: N/A | W124: 44000000 | X124: 0 | Y124: 2 | Z124: 22000000 | AA124: =+W124+X124+Z124 -> 66000000 | AB124: 56100000 | AC124: 2022-01-24 | AD124: 2022-01-25 | AE124: 2023-01-24 | AF124: 240 | AG124: 1 | AH124: 96 | AM124: En ejecución | AN124: =IF(ISERROR(AB124/AA124),"-",(AB124/AA124)) -> 0.85
A125: FDLSC-CPS-003-2022 | B125: 2022 | C125: FDLSC-CD-003-2022 | D125: https://community.secop.gov.co/Public/Tendering/OpportunityDetail/Index?noticeUID=CO1.NTC.2590234&isFromPublicArea=True&isModal=true&asPopupView=true | E125: Contratos de prestación de servicios profesionales y de apoyo a la gestión | F125: Contratación directa | G125: Prestación de servicios profesionales y de apoyo a la gestión, o para la ejecución de trabajos artísticos que sólo puedan encomendarse a determinadas personas naturales | H125: APOYAR JURÍDICAMENTE LA EJECUCIÓN DE LAS ACCIONES REQUERIDAS PARA LA DEPURACIÓN DE LAS ACTUACIONES ADMINISTRATIVAS QUE CURSAN EN LA ALCALDÍA LOCAL. | I125: Inversión | J125: Un nuevo contrato social y ambiental para la Bogotá del Siglo XXI | K125: 57 | L125: =IF(ISERROR(VLOOKUP(K125,#REF!,2,FALSE))," ",VLOOKUP(K125,#REF!,2,FALSE)) ->  | M125: =IF(ISERROR(VLOOKUP(K125,#REF!,3,FALSE))," ",VLOOKUP(K125,#REF!,3,FALSE)) ->  | N125: 1873 | O125: 0 | P125: 80419632 | Q125: DANIEL MUNEVAR MUNEVAR | R125: Persona Natural | T125: N/A | U125: N/A | W125: 44000000 | X125: 0 | Y125: 2 | Z125: 22000000 | AA125: =+W125+X125+Z125 -> 66000000 | AB125: 57200000 | AC125: 2022-01-18 | AD125: 2022-01-19 | AE125: 2023-01-18 | AF125: 240 | AG125: 2 | AH125: 204 | AM125: En ejecución | AN125: =IF(ISERROR(AB125/AA125),"-",(AB125/AA125)) -> 0.8666666667
A126: FDLSC-CPS-007-2022 | B126: 2022 | C126: FDLSC-CD-003-2022 | D126: https://community.secop.gov.co/Public/Tendering/OpportunityDetail/Index?noticeUID=CO1.NTC.2590234&isFromPublicArea=True&isModal=true&asPopupView=true | E126: Contratos de prestación de servicios profesionales y de apoyo a la gestión | F126: Contratación directa | G126: Prestación de servicios profesionales y de apoyo a la gestión, o para la ejecución de trabajos artísticos que sólo puedan encomendarse a determinadas personas naturales | H126: APOYAR JURÍDICAMENTE LA EJECUCIÓN DE LAS ACCIONES REQUERIDAS PARA LA DEPURACIÓN DE LAS ACTUACIONES ADMINISTRATIVAS QUE CURSAN EN LA ALCALDÍA LOCAL. | I126: Inversión | J126: Un nuevo contrato social y ambiental para la Bogotá del Siglo XXI | K126: 57 | L126: =IF(ISERROR(VLOOKUP(K126,#REF!,2,FALSE))," ",VLOOKUP(K126,#REF!,2,FALSE)) ->  | M126: =IF(ISERROR(VLOOKUP(K126,#REF!,3,FALSE))," ",VLOOKUP(K126,#REF!,3,FALSE)) ->  | N126: 1873 | O126: 0 | P126: 51755468 | Q126: NUBIA ALCIRA SACRISTAN PIÑEROS | R126: Persona Natural | T126: N/A | U126: N/A | W126: 44000000 | X126: 0 | Y126: 2 | Z126: 22000000 | AA126: =+W126+X126+Z126 -> 66000000 | AB126: 57200000 | AC126: 2022-01-18 | AD126: 2022-01-19 | AE126: 2023-01-18 | AF126: 240 | AG126: 2 | AH126: 204 | AM126: En ejecución | AN126: =IF(ISERROR(AB126/AA126),"-",(AB126/AA126)) -> 0.8666666667
A127: FDLSC-CPS-097-2022 | B127: 2022 | C127: FDLSC-CD-058-2022 | D127: https://community.secop.gov.co/Public/Tendering/OpportunityDetail/Index?noticeUID=CO1.NTC.2649102&isFromPublicArea=True&isModal=true&asPopupView=true | E127: Contratos de prestación de servicios profesionales y de apoyo a la gestión | F127: Contratación directa | G127: Prestación de servicios profesionales y de apoyo a la gestión, o para la ejecución de trabajos artísticos que sólo puedan encomendarse a determinadas personas naturales | H127: PRESTAR SUS SERVICIOS PROFESIONALES ESPECIALIZADOS EN EL ÁREA DE GESTIÓN PARA EL DESARROLLO LOCAL PARA EL FORTALECIMIENTO DE LA FUNCIÓN ADMINISTRATIVA Y DESARROLLO INSTITUCIONAL DEL COMPONENTE SOCIAL EN CUMPLIMIENTO A LAS METAS ESTABLECIDAS EN EL PLAN DE DESARROLLO LOCAL 2021-2024 | I127: Inversión | J127: Un nuevo contrato social y ambiental para la Bogotá del Siglo XXI | K127: 57 | L127: =IF(ISERROR(VLOOKUP(K127,#REF!,2,FALSE))," ",VLOOKUP(K127,#REF!,2,FALSE)) ->  | M127: =IF(ISERROR(VLOOKUP(K127,#REF!,3,FALSE))," ",VLOOKUP(K127,#REF!,3,FALSE)) ->  | N127: 1873 | O127: 0 | P127: 51895879 | Q127: ALEJANDRA JARAMILLO FERNANDEZ | R127: Persona Natural | T127: N/A | U127: N/A | W127: 65920000 | X127: 0 | Y127: 0 | Z127: 0 | AA127: =+W127+X127+Z127 -> 65920000 | AB127: 59053333 | AC127: 2022-01-24 | AD127: 2022-01-26 | AE127: 2022-09-25 | AF127: 240 | AG127: 0 | AH127: 0 | AM127: Terminado | AN127: =IF(ISERROR(AB127/AA127),"-",(AB127/AA127)) -> 0.8958333283
B128: 2022 | E128: Otros gastos | H128: FACTURA PAGO DE SERVICIO DE ASEO, ACUEODUCTO Y ALCANTARILLADO | I128: Funcionamiento | J128: Un nuevo contrato social y ambiental para la Bogotá del Siglo XXI | K128: No aplica | L128: =IF(ISERROR(VLOOKUP(K128,#REF!,2,FALSE))," ",VLOOKUP(K128,#REF!,2,FALSE)) ->  | M128: =IF(ISERROR(VLOOKUP(K128,#REF!,3,FALSE))," ",VLOOKUP(K128,#REF!,3,FALSE)) ->  | N128: 0004 | O128: 0 | W128: 65967958 | X128: =-89328 -> -89328 | Y128: 0 | Z128: 0 | AA128: =+W128+X128+Z128 -> 65878630 | AB128: 39015259 | AN128: =IF(ISERROR(AB128/AA128),"-",(AB128/AA128)) -> 0.5922293618
A129: FDLSC-CPS-202-2022 | B129: 2022 | C129: FDLSC-CD-100-2022 | D129: https://community.secop.gov.co/Public/Tendering/OpportunityDetail/Index?noticeUID=CO1.NTC.2745724&isFromPublicArea=True&isModal=true&asPopupView=true | E129: Contratos de prestación de servicios profesionales y de apoyo a la gestión | F129: Contratación directa | G129: Prestación de servicios profesionales y de apoyo a la gestión, o para la ejecución de trabajos artísticos que sólo puedan encomendarse a determinadas personas naturales | H129: PRESTAR SUS SERVICIOS PROFESIONALES EN LA GESTIÓN Y ACOMPAÑAMIENTO DE LOS PROCESOS E INSTANCIAS DE PARTICIPACIÓN CIUDADANA DE CONFORMIDAD CON EL MARCO NORMATIVO APLICABLE EN LA MATERIA. | I129: Inversión | J129: Un nuevo contrato social y ambiental para la Bogotá del Siglo XXI | K129: 55 | L129: =IF(ISERROR(VLOOKUP(K129,#REF!,2,FALSE))," ",VLOOKUP(K129,#REF!,2,FALSE)) ->  | M129: =IF(ISERROR(VLOOKUP(K129,#REF!,3,FALSE))," ",VLOOKUP(K129,#REF!,3,FALSE)) ->  | N129: 1872 | O129: 0 | P129: 79746593 | Q129: CARLOS ALBERTO RIOS MONROY | R129: Persona Natural | T129: N/A | U129: N/A | W129: 48000000 | X129: 0 | Y129: 1 | Z129: 17600000 | AA129: =+W129+X129+Z129 -> 65600000 | AB129: 59600000 | AC129: 2022-01-27 | AD129: 2022-02-03 | AE129: 2022-12-30 | AF129: 240 | AG129: 1 | AH129: 88 | AM129: Terminado | AN129: =IF(ISERROR(AB129/AA129),"-",(AB129/AA129)) -> 0.9085365854
A130: FDLSC-CPS-227-2022 | B130: 2022 | C130: FDLSC-CD-113-2022 | D130: https://community.secop.gov.co/Public/Tendering/OpportunityDetail/Index?noticeUID=CO1.NTC.2736612&isFromPublicArea=True&isModal=true&asPopupView=true | E130: Contratos de prestación de servicios profesionales y de apoyo a la gestión | F130: Contratación directa | G130: Prestación de servicios profesionales y de apoyo a la gestión, o para la ejecución de trabajos artísticos que sólo puedan encomendarse a determinadas personas naturales | H130: APOYAR AL EQUIPO DE PRENSA Y COMUNICACIONES DE LA ALCALDÍA LOCAL EN LA CREACIÓN, REALIZACIÓN, PRODUCCIÓN Y EDICIÓN DE VÍDEOS, ASÍ COMO EL REGISTRO, EDICIÓN Y LA PRESENTACIÓN DE FOTOGRAFÍAS DE LOS ACONTECIMIENTOS, HECHOS Y EVENTOS EXTERNOS E INTERNOS DE LA ALCALDÍA LOCAL, PARA SER UTILIZADOS COMO INSUMOS DE COMUNICACIÓN EN LOS MEDIOS, ESPECIALMENTE ESCRITOS, DIGITALES Y AUDIOVISUALES. | I130: Inversión | J130: Un nuevo contrato social y ambiental para la Bogotá del Siglo XXI | K130: 57 | L130: =IF(ISERROR(VLOOKUP(K130,#REF!,2,FALSE))," ",VLOOKUP(K130,#REF!,2,FALSE)) ->  | M130: =IF(ISERROR(VLOOKUP(K130,#REF!,3,FALSE))," ",VLOOKUP(K130,#REF!,3,FALSE)) ->  | N130: 1873 | O130: 0 | P130: 1018472943 | Q130: ANDRES FELIPE HURTATIZ RAMIREZ | R130: Persona Natural | T130: N/A | U130: N/A | W130: 44000000 | X130: 0 | Y130: 2 | Z130: 21450000 | AA130: =+W130+X130+Z130 -> 65450000 | AB130: 53716667 | AC130: 2022-01-28 | AD130: 2022-02-04 | AE130: 2023-01-30 | AF130: 240 | AG130: 2 | AH130: 117 | AI130: 1020746027 | AJ130: JUAN CAMILO BARRIOS GOMEZ | AK130: 2022-07-23 | AL130: 13016667 | AM130: En ejecución | AN130: =IF(ISERROR(AB130/AA130),"-",(AB130/AA130)) -> 0.8207282964
A131: FDLSC-CPS-204-2022 | B131: 2022 | C131: FDLSC-CD-100-2022 | D131: https://community.secop.gov.co/Public/Tendering/OpportunityDetail/Index?noticeUID=CO1.NTC.2745724&isFromPublicArea=True&isModal=true&asPopupView=true | E131: Contratos de prestación de servicios profesionales y de apoyo a la gestión | F131: Contratación directa | G131: Prestación de servicios profesionales y de apoyo a la gestión, o para la ejecución de trabajos artísticos que sólo puedan encomendarse a determinadas personas naturales | H131: PRESTAR SUS SERVICIOS PROFESIONALES EN LA GESTIÓN Y ACOMPAÑAMIENTO DE LOS PROCESOS E INSTANCIAS DE PARTICIPACIÓN CIUDADANA DE CONFORMIDAD CON EL MARCO NORMATIVO APLICABLE EN LA MATERIA. | I131: Inversión | J131: Un nuevo contrato social y ambiental para la Bogotá del Siglo XXI | K131: 55 | L131: =IF(ISERROR(VLOOKUP(K131,#REF!,2,FALSE))," ",VLOOKUP(K131,#REF!,2,FALSE)) ->  | M131: =IF(ISERROR(VLOOKUP(K131,#REF!,3,FALSE))," ",VLOOKUP(K131,#REF!,3,FALSE)) ->  | N131: 1872 | O131: 0 | P131: 1032419460 | Q131: MARTHA ESPERANZA ROMERO NIÑO | R131: Persona Natural | T131: N/A | U131: N/A | W131: 48000000 | X131: 0 | Y131: 1 | Z131: 17400000 | AA131: =+W131+X131+Z131 -> 65400000 | AB131: 59400000 | AC131: 2022-01-28 | AD131: 2022-02-04 | AE131: 2022-12-30 | AF131: 240 | AG131: 1 | AH131: 87 | AM131: Terminado | AN131: =IF(ISERROR(AB131/AA131),"-",(AB131/AA131)) -> 0.9082568807
A132: FDLSC-CPS-223-2022 | B132: 2022 | C132: FDLSC-CD-110-2022 | D132: https://community.secop.gov.co/Public/Tendering/OpportunityDetail/Index?noticeUID=CO1.NTC.2707760&isFromPublicArea=True&isModal=true&asPopupView=true | E132: Contratos de prestación de servicios profesionales y de apoyo a la gestión | F132: Contratación directa | G132: Prestación de servicios profesionales y de apoyo a la gestión, o para la ejecución de trabajos artísticos que sólo puedan encomendarse a determinadas personas naturales | H132: PRESTAR SUS SERVICIOS PROFESIONALES DE APOYO A LA CASA DEL CONSUMIDOR EN LAS ACTUACIONES TÉCNICAS Y ADMINISTRATIVAS EN EL MARCO DEL CONVENIO INTERADMINISTRATIVO 1258 DE 2016 | I132: Inversión | J132: Un nuevo contrato social y ambiental para la Bogotá del Siglo XXI | K132: 57 | L132: =IF(ISERROR(VLOOKUP(K132,#REF!,2,FALSE))," ",VLOOKUP(K132,#REF!,2,FALSE)) ->  | M132: =IF(ISERROR(VLOOKUP(K132,#REF!,3,FALSE))," ",VLOOKUP(K132,#REF!,3,FALSE)) ->  | N132: 1873 | O132: 0 | P132: 16284289 | Q132: ALVARO ENRIQUE TASCON VALENCIA | R132: Persona Natural | T132: N/A | U132: N/A | W132: 44000000 | X132: 0 | Y132: 2 | Z132: 20900000 | AA132: =+W132+X132+Z132 -> 64900000 | AB132: 53900000 | AC132: 2022-01-27 | AD132: 2022-02-07 | AE132: 2023-01-30 | AF132: 240 | AG132: 2 | AH132: 114 | AM132: En ejecución | AN132: =IF(ISERROR(AB132/AA132),"-",(AB132/AA132)) -> 0.8305084746
A133: FDLSC-CPS-319-2022 | B133: 2022 | C133: FDLSC-CD-003-2022 | D133: https://community.secop.gov.co/Public/Tendering/OpportunityDetail/Index?noticeUID=CO1.NTC.2719871&isFromPublicArea=True&isModal=true&asPopupView=true | E133: Contratos de prestación de servicios profesionales y de apoyo a la gestión | F133: Contratación directa | G133: Prestación de servicios profesionales y de apoyo a la gestión, o para la ejecución de trabajos artísticos que sólo puedan encomendarse a determinadas personas naturales | H133: APOYAR JURÍDICAMENTE LA EJECUCIÓN DE LAS ACCIONES REQUERIDAS PARA LA DEPURACIÓN DE LAS ACTUACIONES ADMINISTRATIVAS QUE CURSAN EN LA ALCALDÍA LOCAL. | I133: Inversión | J133: Un nuevo contrato social y ambiental para la Bogotá del Siglo XXI | K133: 57 | L133: =IF(ISERROR(VLOOKUP(K133,#REF!,2,FALSE))," ",VLOOKUP(K133,#REF!,2,FALSE)) ->  | M133: =IF(ISERROR(VLOOKUP(K133,#REF!,3,FALSE))," ",VLOOKUP(K133,#REF!,3,FALSE)) ->  | N133: 1873 | O133: 0 | P133: 1031122064 | Q133: EDWARD LEONARDO GUEVARA GOMEZ | R133: Persona Natural | T133: N/A | U133: N/A | W133: 44000000 | X133: 0 | Y133: 2 | Z133: 20900000 | AA133: =+W133+X133+Z133 -> 64900000 | AB133: 53900000 | AC133: 2022-01-28 | AD133: 2022-02-07 | AE133: 2023-01-30 | AF133: 240 | AG133: 2 | AH133: 114 | AM133: En ejecución | AN133: =IF(ISERROR(AB133/AA133),"-",(AB133/AA133)) -> 0.8305084746
A134: FDLSC-CPS-059-2022 | B134: 2022 | C134: FDLSC-CD-037-2022 | D134: https://community.secop.gov.co/Public/Tendering/OpportunityDetail/Index?noticeUID=CO1.NTC.2685913&isFromPublicArea=True&isModal=true&asPopupView=true | E134: Contratos de prestación de servicios profesionales y de apoyo a la gestión | F134: Contratación directa | G134: Prestación de servicios profesionales y de apoyo a la gestión, o para la ejecución de trabajos artísticos que sólo puedan encomendarse a determinadas personas naturales | H134: PRESTAR SERVICIOS PROFESIONALES EN EL ÁREA DE GESTIÓN DE DESARROLLO LOCAL PARA LA FORMULACIÓN, EVALUACIÓN, PRESENTACIÓN Y SEGUIMIENTO A PROYECTOS DE INVERSIÓN LOCAL Y APOYAR LAS ACTIVIDADES DE PLANEACIÓN EN TEMAS ADMINISTRATIVOS Y EN LOS PROYECTOS DE INVERSIÓN LOCAL | I134: Inversión | J134: Un nuevo contrato social y ambiental para la Bogotá del Siglo XXI | K134: 57 | L134: =IF(ISERROR(VLOOKUP(K134,#REF!,2,FALSE))," ",VLOOKUP(K134,#REF!,2,FALSE)) ->  | M134: =IF(ISERROR(VLOOKUP(K134,#REF!,3,FALSE))," ",VLOOKUP(K134,#REF!,3,FALSE)) ->  | N134: 1873 | O134: 0 | P134: 1022326785 | Q134: LAURA ANDREA CUESTA VILLATE | R134: Persona Natural | T134: N/A | U134: N/A | W134: 59400000 | X134: 0 | Y134: 1 | Z134: 5040000 | AA134: =+W134+X134+Z134 -> 64440000 | AB134: 53640000 | AC134: 2022-01-25 | AD134: 2022-02-03 | AE134: 2023-01-30 | AF134: 330 | AG134: 1 | AH134: 28 | AM134: En ejecución | AN134: =IF(ISERROR(AB134/AA134),"-",(AB134/AA134)) -> 0.8324022346
A135: FDLSC-CPS-025-2022 | B135: 2022 | C135: FDLSC-CD-016-2022 | D135: https://community.secop.gov.co/Public/Tendering/OpportunityDetail/Index?noticeUID=CO1.NTC.2618789&isFromPublicArea=True&isModal=true&asPopupView=true | E135: Contratos de prestación de servicios profesionales y de apoyo a la gestión | F135: Contratación directa | G135: Prestación de servicios profesionales y de apoyo a la gestión, o para la ejecución de trabajos artísticos que sólo puedan encomendarse a determinadas personas naturales | H135: PRESTAR SERVICIOS PROFESIONALES PARA APOYO A REVISIÓN JURÍDICA EN CONTRATACIÓN DE LA ALCALDÍA LOCAL SAN CRISTÓBAL, EN LA PROYECCIÓN DE LOS DIFERENTES DOCUMENTOS QUE SE REQUIERAN EN LOS PROCESOS DE CONTRATACIÓN EN LAS ETAPAS PRECONTRACTUAL, CONTRACTUAL Y POST CONTRACTUAL, ASÍ COMO EN LAS DEMÁS ACTIVIDADES ASIGNADAS, DE CONFORMIDAD CON LAS DIRECTRICES Y POLÍTICAS DE LA ADMINISTRACIÓN LOCAL. | I135: Inversión | J135: Un nuevo contrato social y ambiental para la Bogotá del Siglo XXI | K135: 57 | L135: =IF(ISERROR(VLOOKUP(K135,#REF!,2,FALSE))," ",VLOOKUP(K135,#REF!,2,FALSE)) ->  | M135: =IF(ISERROR(VLOOKUP(K135,#REF!,3,FALSE))," ",VLOOKUP(K135,#REF!,3,FALSE)) ->  | N135: 1873 | O135: 0 | P135: 1057785620 | Q135: ESTEFANIA CASALLAS RIAÑO | R135: Persona Natural | T135: N/A | U135: N/A | W135: 41376000 | X135: 0 | Y135: 2 | Z135: 20688000 | AA135: =+W135+X135+Z135 -> 62064000 | AB135: 52926800 | AC135: 2022-01-21 | AD135: 2022-01-24 | AE135: 2023-01-23 | AF135: 240 | AG135: 2 | AH135: 120 | AM135: En ejecución | AN135: =IF(ISERROR(AB135/AA135),"-",(AB135/AA135)) -> 0.8527777778
A136: FDLSC-CPS-026-2022 | B136: 2022 | C136: FDLSC-CD-016-2022 | D136: https://community.secop.gov.co/Public/Tendering/OpportunityDetail/Index?noticeUID=CO1.NTC.2618789&isFromPublicArea=True&isModal=true&asPopupView=true | E136: Contratos de prestación de servicios profesionales y de apoyo a la gestión | F136: Contratación directa | G136: Prestación de servicios profesionales y de apoyo a la gestión, o para la ejecución de trabajos artísticos que sólo puedan encomendarse a determinadas personas naturales | H136: PRESTAR SERVICIOS PROFESIONALES PARA APOYO A REVISIÓN JURÍDICA EN CONTRATACIÓN DE LA ALCALDÍA LOCAL SAN CRISTÓBAL, EN LA PROYECCIÓN DE LOS DIFERENTES DOCUMENTOS QUE SE REQUIERAN EN LOS PROCESOS DE CONTRATACIÓN EN LAS ETAPAS PRECONTRACTUAL, CONTRACTUAL Y POST CONTRACTUAL, ASÍ COMO EN LAS DEMÁS ACTIVIDADES ASIGNADAS, DE CONFORMIDAD CON LAS DIRECTRICES Y POLÍTICAS DE LA ADMINISTRACIÓN LOCAL. | I136: Inversión | J136: Un nuevo contrato social y ambiental para la Bogotá del Siglo XXI | K136: 57 | L136: =IF(ISERROR(VLOOKUP(K136,#REF!,2,FALSE))," ",VLOOKUP(K136,#REF!,2,FALSE)) ->  | M136: =IF(ISERROR(VLOOKUP(K136,#REF!,3,FALSE))," ",VLOOKUP(K136,#REF!,3,FALSE)) ->  | N136: 1873 | O136: 0 | P136: 1016094734 | Q136: LAURA ESTEFANIA PINZÓN QUIROGA | R136: Persona Natural | T136: N/A | U136: N/A | W136: 41376000 | X136: 0 | Y136: 2 | Z136: 20688000 | AA136: =+W136+X136+Z136 -> 62064000 | AB136: 52926800 | AC136: 2022-01-19 | AD136: 2022-01-24 | AE136: 2023-01-23 | AF136: 240 | AG136: 2 | AH136: 120 | AM136: En ejecución | AN136: =IF(ISERROR(AB136/AA136),"-",(AB136/AA136)) -> 0.8527777778
A137: FDLSC-CPS-169-2022 | B137: 2022 | C137: FDLSC-CD-081-2022 | D137: https://community.secop.gov.co/Public/Tendering/OpportunityDetail/Index?noticeUID=CO1.NTC.2681054&isFromPublicArea=True&isModal=true&asPopupView=true | E137: Contratos de prestación de servicios profesionales y de apoyo a la gestión | F137: Contratación directa | G137: Prestación de servicios profesionales y de apoyo a la gestión, o para la ejecución de trabajos artísticos que sólo puedan encomendarse a determinadas personas naturales | H137: APOYAR JURÍDICAMENTE LA EJECUCIÓN DE LAS ACCIONES REQUERIDAS PARA EL TRÁMITE E IMPULSO PROCESAL DE LAS ACTUACIONES CONTRAVENCIONALES Y/O QUERELLAS QUE CURSEN EN LAS INSPECCIONES DE POLICÍA DE LA LOCALIDAD | I137: Inversión | J137: Un nuevo contrato social y ambiental para la Bogotá del Siglo XXI | K137: 57 | L137: =IF(ISERROR(VLOOKUP(K137,#REF!,2,FALSE))," ",VLOOKUP(K137,#REF!,2,FALSE)) ->  | M137: =IF(ISERROR(VLOOKUP(K137,#REF!,3,FALSE))," ",VLOOKUP(K137,#REF!,3,FALSE)) ->  | N137: 1873 | O137: 0 | P137: 1090425332 | Q137: ALEXANDRA GARCIA RODRIGUEZ | R137: Persona Natural | T137: N/A | U137: N/A | W137: 45320000 | X137: 0 | Y137: 1 | Z137: 16617333 | AA137: =+W137+X137+Z137 -> 61937333 | AB137: 56272333 | AC137: 2022-01-25 | AD137: 2022-02-03 | AE137: 2022-12-30 | AF137: 240 | AG137: 1 | AH137: 88 | AM137: Terminado | AN137: =IF(ISERROR(AB137/AA137),"-",(AB137/AA137)) -> 0.9085365849
A138: FDLSC-CPS-170-2022 | B138: 2022 | C138: FDLSC-CD-081-2022 | D138: https://community.secop.gov.co/Public/Tendering/OpportunityDetail/Index?noticeUID=CO1.NTC.2681054&isFromPublicArea=True&isModal=true&asPopupView=true | E138: Contratos de prestación de servicios profesionales y de apoyo a la gestión | F138: Contratación directa | G138: Prestación de servicios profesionales y de apoyo a la gestión, o para la ejecución de trabajos artísticos que sólo puedan encomendarse a determinadas personas naturales | H138: APOYAR JURÍDICAMENTE LA EJECUCIÓN DE LAS ACCIONES REQUERIDAS PARA EL TRÁMITE E IMPULSO PROCESAL DE LAS ACTUACIONES CONTRAVENCIONALES Y/O QUERELLAS QUE CURSEN EN LAS INSPECCIONES DE POLICÍA DE LA LOCALIDAD | I138: Inversión | J138: Un nuevo contrato social y ambiental para la Bogotá del Siglo XXI | K138: 57 | L138: =IF(ISERROR(VLOOKUP(K138,#REF!,2,FALSE))," ",VLOOKUP(K138,#REF!,2,FALSE)) ->  | M138: =IF(ISERROR(VLOOKUP(K138,#REF!,3,FALSE))," ",VLOOKUP(K138,#REF!,3,FALSE)) ->  | N138: 1873 | O138: 0 | P138: 1030641485 | Q138: DANIEL ALBERTO INFANTE SANCHEZ | R138: Persona Natural | T138: N/A | U138: N/A | W138: 45320000 | X138: 0 | Y138: 1 | Z138: 16617333 | AA138: =+W138+X138+Z138 -> 61937333 | AB138: 56272333 | AC138: 2022-01-28 | AD138: 2022-02-03 | AE138: 2022-12-30 | AF138: 240 | AG138: 1 | AH138: 88 | AM138: Terminado | AN138: =IF(ISERROR(AB138/AA138),"-",(AB138/AA138)) -> 0.9085365849
A139: FDLSC-CPS-173-2022 | B139: 2022 | C139: FDLSC-CD-082-2022 | D139: https://community.secop.gov.co/Public/Tendering/OpportunityDetail/Index?noticeUID=CO1.NTC.2681345&isFromPublicArea=True&isModal=true&asPopupView=true | E139: Contratos de prestación de servicios profesionales y de apoyo a la gestión | F139: Contratación directa | G139: Prestación de servicios profesionales y de apoyo a la gestión, o para la ejecución de trabajos artísticos que sólo puedan encomendarse a determinadas personas naturales | H139: APOYAR TÉCNICAMENTE LAS DISTINTAS ETAPAS DE LOS PROCESOS DE COMPETENCIA DE LAS INSPECCIONES DE POLICÍA DE LA LOCALIDAD, SEGÚN REPARTO. | I139: Inversión | J139: Un nuevo contrato social y ambiental para la Bogotá del Siglo XXI | K139: 57 | L139: =IF(ISERROR(VLOOKUP(K139,#REF!,2,FALSE))," ",VLOOKUP(K139,#REF!,2,FALSE)) ->  | M139: =IF(ISERROR(VLOOKUP(K139,#REF!,3,FALSE))," ",VLOOKUP(K139,#REF!,3,FALSE)) ->  | N139: 1873 | O139: 0 | P139: 80504271 | Q139: JUSTO MAURICIO CEPEDA ARENAS | R139: Persona Natural | T139: N/A | U139: N/A | W139: 45320000 | X139: 0 | Y139: 1 | Z139: 16617333 | AA139: =+W139+X139+Z139 -> 61937333 | AB139: 56272333 | AC139: 2022-01-25 | AD139: 2022-02-03 | AE139: 2022-12-30 | AF139: 240 | AG139: 1 | AH139: 88 | AM139: Terminado | AN139: =IF(ISERROR(AB139/AA139),"-",(AB139/AA139)) -> 0.9085365849
A140: FDLSC-CPS-174-2022 | B140: 2022 | C140: FDLSC-CD-082-2022 | D140: https://community.secop.gov.co/Public/Tendering/OpportunityDetail/Index?noticeUID=CO1.NTC.2681345&isFromPublicArea=True&isModal=true&asPopupView=true | E140: Contratos de prestación de servicios profesionales y de apoyo a la gestión | F140: Contratación directa | G140: Prestación de servicios profesionales y de apoyo a la gestión, o para la ejecución de trabajos artísticos que sólo puedan encomendarse a determinadas personas naturales | H140: APOYAR TÉCNICAMENTE LAS DISTINTAS ETAPAS DE LOS PROCESOS DE COMPETENCIA DE LAS INSPECCIONES DE POLICÍA DE LA LOCALIDAD, SEGÚN REPARTO. | I140: Inversión | J140: Un nuevo contrato social y ambiental para la Bogotá del Siglo XXI | K140: 57 | L140: =IF(ISERROR(VLOOKUP(K140,#REF!,2,FALSE))," ",VLOOKUP(K140,#REF!,2,FALSE)) ->  | M140: =IF(ISERROR(VLOOKUP(K140,#REF!,3,FALSE))," ",VLOOKUP(K140,#REF!,3,FALSE)) ->  | N140: 1873 | O140: 0 | P140: 1022340099 | Q140: SANDRA MILENA BARRERA ESTEPA | R140: Persona Natural | T140: N/A | U140: N/A | W140: 45320000 | X140: 0 | Y140: 1 | Z140: 16617333 | AA140: =+W140+X140+Z140 -> 61937333 | AB140: 56272333 | AC140: 2022-01-25 | AD140: 2022-02-03 | AE140: 2022-12-30 | AF140: 240 | AG140: 1 | AH140: 88 | AM140: Terminado | AN140: =IF(ISERROR(AB140/AA140),"-",(AB140/AA140)) -> 0.9085365849
A141: FDLSC-CPS-172-2022 | B141: 2022 | C141: FDLSC-CD-082-2022 | D141: https://community.secop.gov.co/Public/Tendering/OpportunityDetail/Index?noticeUID=CO1.NTC.2681345&isFromPublicArea=True&isModal=true&asPopupView=true | E141: Contratos de prestación de servicios profesionales y de apoyo a la gestión | F141: Contratación directa | G141: Prestación de servicios profesionales y de apoyo a la gestión, o para la ejecución de trabajos artísticos que sólo puedan encomendarse a determinadas personas naturales | H141: APOYAR TÉCNICAMENTE LAS DISTINTAS ETAPAS DE LOS PROCESOS DE COMPETENCIA DE LAS INSPECCIONES DE POLICÍA DE LA LOCALIDAD, SEGÚN REPARTO. | I141: Inversión | J141: Un nuevo contrato social y ambiental para la Bogotá del Siglo XXI | K141: 57 | L141: =IF(ISERROR(VLOOKUP(K141,#REF!,2,FALSE))," ",VLOOKUP(K141,#REF!,2,FALSE)) ->  | M141: =IF(ISERROR(VLOOKUP(K141,#REF!,3,FALSE))," ",VLOOKUP(K141,#REF!,3,FALSE)) ->  | N141: 1873 | O141: 0 | P141: 13509148 | Q141: JUAN JERONIMO RAMIREZ BAUTISTA | R141: Persona Natural | T141: N/A | U141: N/A | W141: 45320000 | X141: 0 | Y141: 1 | Z141: 16617333 | AA141: =+W141+X141+Z141 -> 61937333 | AB141: 56272334 | AC141: 2022-01-25 | AD141: 2022-02-03 | AE141: 2022-12-30 | AF141: 240 | AG141: 1 | AH141: 88 | AM141: Terminado | AN141: =IF(ISERROR(AB141/AA141),"-",(AB141/AA141)) -> 0.908536601
A142: FDLSC-CPS-356-2022 | B142: 2022 | C142: FDLSC-CD-063-2022 | D142: https://community.secop.gov.co/Public/Tendering/OpportunityDetail/Index?noticeUID=CO1.NTC.2686112&isFromPublicArea=True&isModal=true&asPopupView=true | E142: Contratos de prestación de servicios profesionales y de apoyo a la gestión | F142: Contratación directa | G142: Prestación de servicios profesionales y de apoyo a la gestión, o para la ejecución de trabajos artísticos que sólo puedan encomendarse a determinadas personas naturales | H142: APOYAR TÉCNICAMENTE LAS DISTINTAS ETAPAS DE LOS PROCESOS DE COMPETENCIA DE LA ALCALDÍA LOCAL PARA LA DEPURACIÓN DE ACTUACIONES ADMINISTRATIVAS. | I142: Inversión | J142: Un nuevo contrato social y ambiental para la Bogotá del Siglo XXI | K142: 57 | L142: =IF(ISERROR(VLOOKUP(K142,#REF!,2,FALSE))," ",VLOOKUP(K142,#REF!,2,FALSE)) ->  | M142: =IF(ISERROR(VLOOKUP(K142,#REF!,3,FALSE))," ",VLOOKUP(K142,#REF!,3,FALSE)) ->  | N142: 1873 | O142: 0 | P142: 1026291089 | Q142: LAURA VANESA PEÑA AVILA | R142: Persona Natural | T142: N/A | U142: N/A | W142: 44000000 | X142: 0 | Y142: 2 | Z142: 17783333 | AA142: =+W142+X142+Z142 -> 61783333 | AB142: 49316666 | AC142: 2022-01-28 | AD142: 2022-02-24 | AE142: 2023-01-30 | AF142: 240 | AG142: 2 | AH142: 97 | AI142: 1026291089 | AJ142: LAURA VANESA PEÑA AVILA | AK142: 2022-07-06 | AL142: 37583333 | AM142: En ejecución | AN142: =IF(ISERROR(AB142/AA142),"-",(AB142/AA142)) -> 0.7982195781
A143: FDLSC-CPS-225-2022 | B143: 2022 | C143: FDLSC-CD-111-2022 | D143: https://community.secop.gov.co/Public/Tendering/OpportunityDetail/Index?noticeUID=CO1.NTC.2736592&isFromPublicArea=True&isModal=true&asPopupView=true | E143: Contratos de prestación de servicios profesionales y de apoyo a la gestión | F143: Contratación directa | G143: Prestación de servicios profesionales y de apoyo a la gestión, o para la ejecución de trabajos artísticos que sólo puedan encomendarse a determinadas personas naturales | H143: APOYAR EL CUBRIMIENTO DE LAS ACTIVIDADES, CRONOGRAMAS Y AGENDAS DE LA ALCALDÍA LOCAL A NIVEL INTERNO Y EXTERNO, ASÍ COMO LA GENERACIÓN DE CONTENIDOS PERIODISTICOS. | I143: Inversión | J143: Un nuevo contrato social y ambiental para la Bogotá del Siglo XXI | K143: 57 | L143: =IF(ISERROR(VLOOKUP(K143,#REF!,2,FALSE))," ",VLOOKUP(K143,#REF!,2,FALSE)) ->  | M143: =IF(ISERROR(VLOOKUP(K143,#REF!,3,FALSE))," ",VLOOKUP(K143,#REF!,3,FALSE)) ->  | N143: 1873 | O143: 0 | P143: 52158486 | Q143: LINA MARIA RUSSI DIAZ | R143: Persona Natural | T143: N/A | U143: N/A | W143: 41376000 | X143: 0 | Y143: 2 | Z143: 20170800 | AA143: =+W143+X143+Z143 -> 61546800 | AB143: 45341200 | AC143: 2022-01-27 | AD143: 2022-02-04 | AE143: 2023-01-30 | AF143: 240 | AG143: 2 | AH143: 117 | AI143: 80203447 | AJ143: FABIAN LEONARDO YAÑEZ RAMOS | AK143: 2022-07-06 | AL143: 35514400 | AM143: En ejecución | AN143: =IF(ISERROR(AB143/AA143),"-",(AB143/AA143)) -> 0.7366946779
A144: FDLSC-CPS-224-2022 | B144: 2022 | C144: FDLSC-CD-111-2022 | D144: https://community.secop.gov.co/Public/Tendering/OpportunityDetail/Index?noticeUID=CO1.NTC.2736592&isFromPublicArea=True&isModal=true&asPopupView=true | E144: Contratos de prestación de servicios profesionales y de apoyo a la gestión | F144: Contratación directa | G144: Prestación de servicios profesionales y de apoyo a la gestión, o para la ejecución de trabajos artísticos que sólo puedan encomendarse a determinadas personas naturales | H144: APOYAR EL CUBRIMIENTO DE LAS ACTIVIDADES, CRONOGRAMAS Y AGENDAS DE LA ALCALDÍA LOCAL A NIVEL INTERNO Y EXTERNO, ASÍ COMO LA GENERACIÓN DE CONTENIDOS PERIODISTICOS. | I144: Inversión | J144: Un nuevo contrato social y ambiental para la Bogotá del Siglo XXI | K144: 57 | L144: =IF(ISERROR(VLOOKUP(K144,#REF!,2,FALSE))," ",VLOOKUP(K144,#REF!,2,FALSE)) ->  | M144: =IF(ISERROR(VLOOKUP(K144,#REF!,3,FALSE))," ",VLOOKUP(K144,#REF!,3,FALSE)) ->  | N144: 1873 | O144: 0 | P144: 1015431632 | Q144: WENDY YURANI RODRIGUEZ ALARCON | R144: Persona Natural | T144: N/A | U144: N/A | W144: 41376000 | X144: 0 | Y144: 2 | Z144: 20170800 | AA144: =+W144+X144+Z144 -> 61546800 | AB144: 51202800 | AC144: 2022-01-27 | AD144: 2022-02-04 | AE144: 2023-01-30 | AF144: 240 | AG144: 2 | AH144: 117 | AM144: En ejecución | AN144: =IF(ISERROR(AB144/AA144),"-",(AB144/AA144)) -> 0.8319327731
A145: FDLSC-CPS-128-2022 | B145: 2022 | C145: FDLSC-CD-083-2022 | D145: https://community.secop.gov.co/Public/Tendering/OpportunityDetail/Index?noticeUID=CO1.NTC.2718890&isFromPublicArea=True&isModal=true&asPopupView=true | E145: Contratos de prestación de servicios profesionales y de apoyo a la gestión | F145: Contratación directa | G145: Prestación de servicios profesionales y de apoyo a la gestión, o para la ejecución de trabajos artísticos que sólo puedan encomendarse a determinadas personas naturales | H145: PRESTAR SUS SERVICIOS PROFESIONALES PARA ATENDER TODO LO RELACIONADO AL PROYECTO 1866 "SAN CRISTÓBAL PREPARADA ANTE EMERGENCIAS, A LA LUZ DEL PLAN DE DESARROLLO LOCAL "UN NUEVO CONTRATO AMBIENTAL Y SOCIAL PARA SAN CRISTÓBAL 2021-2024" | I145: Inversión | J145: Un nuevo contrato social y ambiental para la Bogotá del Siglo XXI | K145: 30 | L145: =IF(ISERROR(VLOOKUP(K145,#REF!,2,FALSE))," ",VLOOKUP(K145,#REF!,2,FALSE)) ->  | M145: =IF(ISERROR(VLOOKUP(K145,#REF!,3,FALSE))," ",VLOOKUP(K145,#REF!,3,FALSE)) ->  | N145: 1866 | O145: 0 | P145: 1031148439 | Q145: JUAN SEBASTIAN RODRIGUEZ AMARILLO | R145: Persona Natural | T145: N/A | U145: N/A | W145: 41296000 | X145: 0 | Y145: 2 | Z145: 20131800 | AA145: =+W145+X145+Z145 -> 61427800 | AB145: 51103800 | AC145: 2022-01-27 | AD145: 2022-02-04 | AE145: 2023-01-30 | AF145: 240 | AG145: 2 | AH145: 117 | AM145: En ejecución | AN145: =IF(ISERROR(AB145/AA145),"-",(AB145/AA145)) -> 0.8319327731
A146: FDLSC-CPS-117-2022 | B146: 2022 | C146: FDLSC-CD-065-2022 | D146: https://community.secop.gov.co/Public/Tendering/OpportunityDetail/Index?noticeUID=CO1.NTC.2654843&isFromPublicArea=True&isModal=true&asPopupView=true | E146: Contratos de prestación de servicios profesionales y de apoyo a la gestión | F146: Contratación directa | G146: Prestación de servicios profesionales y de apoyo a la gestión, o para la ejecución de trabajos artísticos que sólo puedan encomendarse a determinadas personas naturales | H146: PRESTAR LOS SERVICIOS PROFESIONALES A LA ALCALDÍA LOCAL DE SAN CRISTOBAL, PARA LA EJECUCIÓN DE LAS ACTIVIDADES Y PROCESOS ADMINISTRATIVOS Y DE CAMPO RELACIONADOS CON LA REACTIVACIÓN ECONÓMICA EN EL MARCO DE LAS NECESIDADES DEL FONDO DE DESARROLLO LOCAL Y DINAMIZACIÓN PARA LA EJECUCIÓN DE LOS PROYECTOS QUE HACEN PARTE DEL PLAN DE DESARROLLO. | I146: Inversión | J146: Un nuevo contrato social y ambiental para la Bogotá del Siglo XXI | K146: 6 | L146: =IF(ISERROR(VLOOKUP(K146,#REF!,2,FALSE))," ",VLOOKUP(K146,#REF!,2,FALSE)) ->  | M146: =IF(ISERROR(VLOOKUP(K146,#REF!,3,FALSE))," ",VLOOKUP(K146,#REF!,3,FALSE)) ->  | N146: 1865 | O146: 0 | P146: 66932552 | Q146: LEIDY DAYANA SALAZAR PARDO | R146: Persona Natural | T146: N/A | U146: N/A | W146: 60500000 | X146: 0 | Y146: 0 | Z146: 0 | AA146: =+W146+X146+Z146 -> 60500000 | AB146: 54450000 | AC146: 2022-01-25 | AD146: 2022-02-04 | AE146: 2023-01-03 | AF146: 330 | AG146: 0 | AH146: 0 | AM146: En ejecución | AN146: =IF(ISERROR(AB146/AA146),"-",(AB146/AA146)) -> 0.9
A147: FDLSC-CPS-200-2022 | B147: 2022 | C147: FDLSC-CD-098-2022 | D147: https://community.secop.gov.co/Public/Tendering/OpportunityDetail/Index?noticeUID=CO1.NTC.2698153&isFromPublicArea=True&isModal=true&asPopupView=true | E147: Contratos de prestación de servicios profesionales y de apoyo a la gestión | F147: Contratación directa | G147: Prestación de servicios profesionales y de apoyo a la gestión, o para la ejecución de trabajos artísticos que sólo puedan encomendarse a determinadas personas naturales | H147: PRESTAR SUS SERVICIOS PROFESIONALES PARA ADELANTAR EL PROCESO DE COBROS PERSUASIVOS DE LAS MULTAS IMPUESTAS POR LA ALCALDÍA LOCAL DE SAN CRISTÓBAL | I147: Inversión | J147: Un nuevo contrato social y ambiental para la Bogotá del Siglo XXI | K147: 57 | L147: =IF(ISERROR(VLOOKUP(K147,#REF!,2,FALSE))," ",VLOOKUP(K147,#REF!,2,FALSE)) ->  | M147: =IF(ISERROR(VLOOKUP(K147,#REF!,3,FALSE))," ",VLOOKUP(K147,#REF!,3,FALSE)) ->  | N147: 1873 | O147: 0 | P147: 52839994 | Q147: ANGELA VIVIANA MORALES MARQUEZ | R147: Persona Natural | T147: N/A | U147: N/A | W147: 60500000 | X147: 0 | Y147: 0 | Z147: 0 | AA147: =+W147+X147+Z147 -> 60500000 | AB147: 54633333 | AC147: 2022-01-27 | AD147: 2022-02-03 | AE147: 2023-01-02 | AF147: 330 | AG147: 0 | AH147: 0 | AM147: En ejecución | AN147: =IF(ISERROR(AB147/AA147),"-",(AB147/AA147)) -> 0.9030302975
A148: FDLSC-CPS-299-2022 | B148: 2022 | C148: FDLSC-CD-152-2022 | D148: https://community.secop.gov.co/Public/Tendering/OpportunityDetail/Index?noticeUID=CO1.NTC.2789268&isFromPublicArea=True&isModal=true&asPopupView=true | E148: Contratos de prestación de servicios profesionales y de apoyo a la gestión | F148: Contratación directa | G148: Prestación de servicios profesionales y de apoyo a la gestión, o para la ejecución de trabajos artísticos que sólo puedan encomendarse a determinadas personas naturales | H148: PRESTAR SUS SERVICIOS PROFESIONALES A LA ALCALDÍA LOCAL DE SAN CRISTÓBAL, PARA APOYAR JURÍDICAMENTE AL PROYECTO 1865 EN ACTIVIDADES DE REACTIVACIÓN ECONÓMICA, EN EL SEGUIMIENTO CONTRACTUAL DE LOS PROCESOS DE CONTRATACIÓN QUE SE DERIVEN DE LAS NECESIDADES DEL FONDO DE DESARROLLO LOCAL PERMITIENDO LA DINAMIZACIÓN PARA LA EJECUCIÓN DEL PDL. | I148: Inversión | J148: Un nuevo contrato social y ambiental para la Bogotá del Siglo XXI | K148: 6 | L148: =IF(ISERROR(VLOOKUP(K148,#REF!,2,FALSE))," ",VLOOKUP(K148,#REF!,2,FALSE)) ->  | M148: =IF(ISERROR(VLOOKUP(K148,#REF!,3,FALSE))," ",VLOOKUP(K148,#REF!,3,FALSE)) ->  | N148: 1865 | O148: 0 | P148: 80052435 | Q148: FABIAN MAURICIO NOMEZQUI GONZALEZ | R148: Persona Natural | T148: N/A | U148: N/A | W148: 44000000 | X148: 0 | Y148: 1 | Z148: 15950000 | AA148: =+W148+X148+Z148 -> 59950000 | AB148: 53716666 | AC148: 2022-01-28 | AD148: 2022-02-04 | AE148: 2022-12-30 | AF148: 240 | AG148: 1 | AH148: 87 | AI148: 1105685143 | AJ148: VANESSA ALEJANDRA HERNANDEZ COLLAZOS | AK148: 2022-06-14 | AL148: 36300000 | AM148: Terminado | AN148: =IF(ISERROR(AB148/AA148),"-",(AB148/AA148)) -> 0.8960244537
A149: FDLSC-CPS-318-2022 | B149: 2022 | C149: FDLSC-CD-003-2022 | D149: https://community.secop.gov.co/Public/Tendering/OpportunityDetail/Index?noticeUID=CO1.NTC.2590234&isFromPublicArea=True&isModal=true&asPopupView=true | E149: Contratos de prestación de servicios profesionales y de apoyo a la gestión | F149: Contratación directa | G149: Prestación de servicios profesionales y de apoyo a la gestión, o para la ejecución de trabajos artísticos que sólo puedan encomendarse a determinadas personas naturales | H149: APOYAR JURÍDICAMENTE LA EJECUCIÓN DE LAS ACCIONES REQUERIDAS PARA LA DEPURACIÓN DE LAS ACTUACIONES ADMINISTRATIVAS QUE CURSAN EN LA ALCALDÍA LOCAL. | I149: Inversión | J149: Un nuevo contrato social y ambiental para la Bogotá del Siglo XXI | K149: 57 | L149: =IF(ISERROR(VLOOKUP(K149,#REF!,2,FALSE))," ",VLOOKUP(K149,#REF!,2,FALSE)) ->  | M149: =IF(ISERROR(VLOOKUP(K149,#REF!,3,FALSE))," ",VLOOKUP(K149,#REF!,3,FALSE)) ->  | N149: 1873 | O149: 0 | P149: 52201860 | Q149: MAGDA BARRAGAN RAMIREZ | R149: Persona Natural | T149: N/A | U149: N/A | W149: 44000000 | X149: 0 | Y149: 1 | Z149: 15950000 | AA149: =+W149+X149+Z149 -> 59950000 | AB149: 54449999 | AC149: 2022-01-28 | AD149: 2022-02-04 | AE149: 2022-12-30 | AF149: 240 | AG149: 1 | AH149: 87 | AM149: Terminado | AN149: =IF(ISERROR(AB149/AA149),"-",(AB149/AA149)) -> 0.9082568641
A150: FDLSC-CPS-183-2022 | B150: 2022 | C150: FDLSC-CD-085-2022 | D150: https://community.secop.gov.co/Public/Tendering/OpportunityDetail/Index?noticeUID=CO1.NTC.2694444&isFromPublicArea=True&isModal=true&asPopupView=true | E150: Contratos de prestación de servicios profesionales y de apoyo a la gestión | F150: Contratación directa | G150: Prestación de servicios profesionales y de apoyo a la gestión, o para la ejecución de trabajos artísticos que sólo puedan encomendarse a determinadas personas naturales | H150: PRESTAR SUS SERVICIOS PROFESIONALES PARA APOYAR LA GESTIÓN LOCAL Y TERRITORIAL DE LOS TEMAS DE SEGURIDAD Y CONVIVENCIA CIUDADANA, EN EL MARCO DE LAS ACCIONES EN TERRITORIO Y EL TRABAJO INTERINSTITUCIONAL QUE DEMANDA EL CUMPLIMIENTO DEL PLAN DE DESARROLLO LOCAL 2021 -2024. | I150: Inversión | J150: Un nuevo contrato social y ambiental para la Bogotá del Siglo XXI | K150: 57 | L150: =IF(ISERROR(VLOOKUP(K150,#REF!,2,FALSE))," ",VLOOKUP(K150,#REF!,2,FALSE)) ->  | M150: =IF(ISERROR(VLOOKUP(K150,#REF!,3,FALSE))," ",VLOOKUP(K150,#REF!,3,FALSE)) ->  | N150: 1873 | O150: 0 | P150: 19413321 | Q150: DAGOBERTO CASTILLO REYES | R150: Persona Natural | T150: N/A | U150: N/A | W150: 44000000 | X150: 0 | Y150: 1 | Z150: 15950000 | AA150: =+W150+X150+Z150 -> 59950000 | AB150: 54450000 | AC150: 2022-01-26 | AD150: 2022-02-04 | AE150: 2022-12-30 | AF150: 240 | AG150: 1 | AH150: 87 | AM150: Terminado | AN150: =IF(ISERROR(AB150/AA150),"-",(AB150/AA150)) -> 0.9082568807
A151: FDLSC-CPS-325-2022 | B151: 2022 | C151: FDLSC-CD-163-2022 | D151: https://community.secop.gov.co/Public/Tendering/OpportunityDetail/Index?noticeUID=CO1.NTC.2770963&isFromPublicArea=True&isModal=true&asPopupView=true | E151: Contratos de prestación de servicios profesionales y de apoyo a la gestión | F151: Contratación directa | G151: Prestación de servicios profesionales y de apoyo a la gestión, o para la ejecución de trabajos artísticos que sólo puedan encomendarse a determinadas personas naturales | H151: PRESTACIÓN DE SERVICIOS PROFESIONALES ESPECIALIZADOS AL FONDO DE DESARROLLO LOCAL DE SAN CRISTÓBAL PARA APOYAR LAS ACTUACIONES Y GESTIONES INHERENTES A LA DEPURACIÓN DE OBLIGACIONES POR PAGAR Y LA LIQUIDACIÓN Y PAGO DE LOS CONTRATOS SUSCRITOS CON RECURSOS DEL FDLSC. | I151: Inversión | J151: Un nuevo contrato social y ambiental para la Bogotá del Siglo XXI | K151: 57 | L151: =IF(ISERROR(VLOOKUP(K151,#REF!,2,FALSE))," ",VLOOKUP(K151,#REF!,2,FALSE)) ->  | M151: =IF(ISERROR(VLOOKUP(K151,#REF!,3,FALSE))," ",VLOOKUP(K151,#REF!,3,FALSE)) ->  | N151: 1873 | O151: 0 | P151: 15244097 | Q151: CARLOS ALBERTO DIAZ ROBINSON | R151: Persona Natural | T151: N/A | U151: N/A | W151: 57680000 | X151: 0 | Y151: 0 | Z151: 0 | AA151: =+W151+X151+Z151 -> 57680000 | AB151: 0 | AC151: 2022-01-28 | AD151: 2022-02-01 | AE151: 2022-06-01 | AF151: 240 | AG151: 0 | AH151: 0 | AM151: Terminado | AN151: =IF(ISERROR(AB151/AA151),"-",(AB151/AA151)) -> 0
A152: FDLSC-CPS-196-2022 | B152: 2022 | C152: FDLSC-CD-095-2022 | D152: https://community.secop.gov.co/Public/Tendering/OpportunityDetail/Index?noticeUID=CO1.NTC.2718436&isFromPublicArea=True&isModal=true&asPopupView=true | E152: Contratos de prestación de servicios profesionales y de apoyo a la gestión | F152: Contratación directa | G152: Prestación de servicios profesionales y de apoyo a la gestión, o para la ejecución de trabajos artísticos que sólo puedan encomendarse a determinadas personas naturales | H152: PRESTAR SUS SERVICIOS PROFESIONALES PARA APOYAR AL ALCALDE LOCAL EN LA PROMOCIÓN, ACOMPAÑAMIENTO Y ATENCIÓN DE LAS INSTANCIAS DE COORDINACIÓN INTERINSTITUCIONALES Y LAS INSTANCIAS DE PARTICIPACIÓN LOCALES, ASÍ COMO LOS PROCESOS COMUNITARIOS EN LA LOCALIDAD. | I152: Inversión | J152: Un nuevo contrato social y ambiental para la Bogotá del Siglo XXI | K152: 57 | L152: =IF(ISERROR(VLOOKUP(K152,#REF!,2,FALSE))," ",VLOOKUP(K152,#REF!,2,FALSE)) ->  | M152: =IF(ISERROR(VLOOKUP(K152,#REF!,3,FALSE))," ",VLOOKUP(K152,#REF!,3,FALSE)) ->  | N152: 1873 | O152: 0 | P152: 52883153 | Q152: JACQUELINE ADRIANA MEJIA MENDEZ | R152: Persona Natural | T152: N/A | U152: N/A | W152: 56424000 | X152: 0 | Y152: 0 | Z152: 0 | AA152: =+W152+X152+Z152 -> 56424000 | AB152: 55953800 | AC152: 2022-01-27 | AD152: 2022-02-03 | AE152: 2022-10-02 | AF152: 240 | AG152: 0 | AH152: 0 | AM152: Terminado | AN152: =IF(ISERROR(AB152/AA152),"-",(AB152/AA152)) -> 0.9916666667
A153: FDLSC-CPS-205-2022 | B153: 2022 | C153: FDLSC-CD-088-2022 | D153: https://community.secop.gov.co/Public/Tendering/OpportunityDetail/Index?noticeUID=CO1.NTC.2784844&isFromPublicArea=True&isModal=true&asPopupView=true | E153: Contratos de prestación de servicios profesionales y de apoyo a la gestión | F153: Contratación directa | G153: Prestación de servicios profesionales y de apoyo a la gestión, o para la ejecución de trabajos artísticos que sólo puedan encomendarse a determinadas personas naturales | H153: PRESTAR SUS SERVICIOS PROFESIONALES AL FDLSC PARA REALIZAR LA FORMULACIÓN, PRESENTACIÓN, EVALUACIÓN, SEGUIMIENTO Y APOYAR LA SUPERVISIÓN DE LOS PROCESOS CONTRACTUALES DERIVADOS DE TEMAS DE RECREACIÓN, CULTURA Y DEPORTE, Y LOS DEMAS QUE LE SEAN ASIGNADOS PARA LA PLANEACION. | I153: Inversión | J153: Un nuevo contrato social y ambiental para la Bogotá del Siglo XXI | K153: 57 | L153: =IF(ISERROR(VLOOKUP(K153,#REF!,2,FALSE))," ",VLOOKUP(K153,#REF!,2,FALSE)) ->  | M153: =IF(ISERROR(VLOOKUP(K153,#REF!,3,FALSE))," ",VLOOKUP(K153,#REF!,3,FALSE)) ->  | N153: 1873 | O153: 0 | P153: 79636537 | Q153: JOHN JAIRO RUIZ MARTINEZ | R153: Persona Natural | T153: N/A | U153: N/A | W153: 41035200 | X153: 0 | Y153: 1 | Z153: 14704280 | AA153: =+W153+X153+Z153 -> 55739480 | AB153: 45480680 | AC153: 2022-01-28 | AD153: 2022-02-05 | AE153: 2022-12-30 | AF153: 240 | AG153: 1 | AH153: 86 | AM153: Terminado | AN153: =IF(ISERROR(AB153/AA153),"-",(AB153/AA153)) -> 0.8159509202
A154: FDLSC-CPS-015-2022 | B154: 2022 | C154: FDLSC-CD-009-2022 | D154: https://community.secop.gov.co/Public/Tendering/OpportunityDetail/Index?noticeUID=CO1.NTC.2587171&isFromPublicArea=True&isModal=true&asPopupView=true | E154: Contratos de prestación de servicios profesionales y de apoyo a la gestión | F154: Contratación directa | G154: Prestación de servicios profesionales y de apoyo a la gestión, o para la ejecución de trabajos artísticos que sólo puedan encomendarse a determinadas personas naturales | H154: PRESTAR SUS SERVICIOS PROFESIONALES PARA APOYAR LOS TEMAS PRESUPUESTALES EN EL MARCO DEL PLAN DE DESARROLLO 2021-2024. | I154: Inversión | J154: Un nuevo contrato social y ambiental para la Bogotá del Siglo XXI | K154: 57 | L154: =IF(ISERROR(VLOOKUP(K154,#REF!,2,FALSE))," ",VLOOKUP(K154,#REF!,2,FALSE)) ->  | M154: =IF(ISERROR(VLOOKUP(K154,#REF!,3,FALSE))," ",VLOOKUP(K154,#REF!,3,FALSE)) ->  | N154: 1873 | O154: 0 | P154: 1088344980 | Q154: MARIA CAMILA MONJE RAMIREZ | R154: Persona Natural | T154: N/A | U154: N/A | W154: 49410130 | X154: 0 | Y154: 1 | Z154: 5989107 | AA154: =+W154+X154+Z154 -> 55399237 | AB154: 46715032 | AC154: 2022-01-18 | AD154: 2022-01-19 | AE154: 2023-01-28 | AF154: 330 | AG154: 1 | AH154: 40 | AM154: En ejecución | AN154: =IF(ISERROR(AB154/AA154),"-",(AB154/AA154)) -> 0.8432432382
A155: FDLSC-CPS-016-2022 | B155: 2022 | C155: FDLSC-CD-009-2022 | D155: https://community.secop.gov.co/Public/Tendering/OpportunityDetail/Index?noticeUID=CO1.NTC.2587171&isFromPublicArea=True&isModal=true&asPopupView=true | E155: Contratos de prestación de servicios profesionales y de apoyo a la gestión | F155: Contratación directa | G155: Prestación de servicios profesionales y de apoyo a la gestión, o para la ejecución de trabajos artísticos que sólo puedan encomendarse a determinadas personas naturales | H155: PRESTAR SUS SERVICIOS PROFESIONALES PARA APOYAR LOS TEMAS PRESUPUESTALES EN EL MARCO DEL PLAN DE DESARROLLO 2021-2024. | I155: Inversión | J155: Un nuevo contrato social y ambiental para la Bogotá del Siglo XXI | K155: 57 | L155: =IF(ISERROR(VLOOKUP(K155,#REF!,2,FALSE))," ",VLOOKUP(K155,#REF!,2,FALSE)) ->  | M155: =IF(ISERROR(VLOOKUP(K155,#REF!,3,FALSE))," ",VLOOKUP(K155,#REF!,3,FALSE)) ->  | N155: 1873 | O155: 0 | P155: 79607845 | Q155: JOSE JAVIER RUIZ CALDERON | R155: Persona Natural | T155: N/A | U155: N/A | W155: 49410130 | X155: 0 | Y155: 1 | Z155: 5989107 | AA155: =+W155+X155+Z155 -> 55399237 | AB155: 46715032 | AC155: 2022-01-18 | AD155: 2022-01-19 | AE155: 2023-01-28 | AF155: 330 | AG155: 1 | AH155: 40 | AM155: En ejecución | AN155: =IF(ISERROR(AB155/AA155),"-",(AB155/AA155)) -> 0.8432432382
A156: FDLSC-CPS-265-2022 | B156: 2022 | C156: FDLSC-CD-142-2022 | D156: https://community.secop.gov.co/Public/Tendering/OpportunityDetail/Index?noticeUID=CO1.NTC.2742940&isFromPublicArea=True&isModal=true&asPopupView=true | E156: Contratos de prestación de servicios profesionales y de apoyo a la gestión | F156: Contratación directa | G156: Prestación de servicios profesionales y de apoyo a la gestión, o para la ejecución de trabajos artísticos que sólo puedan encomendarse a determinadas personas naturales | H156: PRESTAR LOS SERVICIOS PROFESIONALES PARA LA OPERACIÓN, PRESTACIÓN, SEGUIMIENTO Y CUMPLIMIENTO DE LOS PROCEDIMIENTOS ADMINISTRATIVOS, OPERATIVOS Y PROGRAMÁTICOS DEL SERVICIO APOYO ECONÓMICO TIPO C, QUE CONTRIBUYAN A LA GARANTÍA DE LOS DERECHOS DE LA POBLACIÓN MAYOR EN EL MARCO DE LA POLÍTICA PÚBLICA SOCIAL PARA EL ENVEJECIMIENTO Y LA VEJEZ EN EL DISTRITO CAPITAL A CARGO DE LA ALCALDÍA LOCAL | I156: Inversión | J156: Un nuevo contrato social y ambiental para la Bogotá del Siglo XXI | K156: 1 | L156: =IF(ISERROR(VLOOKUP(K156,#REF!,2,FALSE))," ",VLOOKUP(K156,#REF!,2,FALSE)) ->  | M156: =IF(ISERROR(VLOOKUP(K156,#REF!,3,FALSE))," ",VLOOKUP(K156,#REF!,3,FALSE)) ->  | N156: 1852 | O156: 0 | P156: 80114984 | Q156: SERGIO ENRIQUE MORALES GIL | R156: Persona Natural | T156: N/A | U156: N/A | W156: 37264000 | X156: 0 | Y156: 2 | Z156: 18010933 | AA156: =+W156+X156+Z156 -> 55274933 | AB156: 45958933 | AC156: 2022-01-27 | AD156: 2022-02-05 | AE156: 2022-12-30 | AF156: 240 | AG156: 1 | AH156: 86 | AI156: 1023965638 | AJ156: EMILY VANESSA ORJUELA MARTINEZ | AK156: 2022-04-06 | AL156: 45803667 | AM156: Terminado | AN156: =IF(ISERROR(AB156/AA156),"-",(AB156/AA156)) -> 0.8314606731
A157: FDLSC-CPS-266-2022 | B157: 2022 | C157: FDLSC-CD-142-2022 | D157: https://community.secop.gov.co/Public/Tendering/OpportunityDetail/Index?noticeUID=CO1.NTC.2742940&isFromPublicArea=True&isModal=true&asPopupView=true | E157: Contratos de prestación de servicios profesionales y de apoyo a la gestión | F157: Contratación directa | G157: Prestación de servicios profesionales y de apoyo a la gestión, o para la ejecución de trabajos artísticos que sólo puedan encomendarse a determinadas personas naturales | H157: PRESTAR LOS SERVICIOS PROFESIONALES PARA LA OPERACIÓN, PRESTACIÓN, SEGUIMIENTO Y CUMPLIMIENTO DE LOS PROCEDIMIENTOS ADMINISTRATIVOS, OPERATIVOS Y PROGRAMÁTICOS DEL SERVICIO APOYO ECONÓMICO TIPO C, QUE CONTRIBUYAN A LA GARANTÍA DE LOS DERECHOS DE LA POBLACIÓN MAYOR EN EL MARCO DE LA POLÍTICA PÚBLICA SOCIAL PARA EL ENVEJECIMIENTO Y LA VEJEZ EN EL DISTRITO CAPITAL A CARGO DE LA ALCALDÍA LOCAL | I157: Inversión | J157: Un nuevo contrato social y ambiental para la Bogotá del Siglo XXI | K157: 1 | L157: =IF(ISERROR(VLOOKUP(K157,#REF!,2,FALSE))," ",VLOOKUP(K157,#REF!,2,FALSE)) ->  | M157: =IF(ISERROR(VLOOKUP(K157,#REF!,3,FALSE))," ",VLOOKUP(K157,#REF!,3,FALSE)) ->  | N157: 1852 | O157: 0 | P157: 1023875783 | Q157: JAIRO YECID VILLALBA AREVALO | R157: Persona Natural | T157: N/A | U157: N/A | W157: 37264000 | X157: 0 | Y157: 2 | Z157: 18010933 | AA157: =+W157+X157+Z157 -> 55274933 | AB157: 45958933 | AC157: 2022-01-27 | AD157: 2022-02-05 | AE157: 2023-01-30 | AF157: 240 | AG157: 1 | AH157: 86 | AM157: En ejecución | AN157: =IF(ISERROR(AB157/AA157),"-",(AB157/AA157)) -> 0.8314606731
A158: FDLSC-CPS-269-2022 | B158: 2022 | C158: FDLSC-CD-142-2022 | D158: https://community.secop.gov.co/Public/Tendering/OpportunityDetail/Index?noticeUID=CO1.NTC.2742940&isFromPublicArea=True&isModal=true&asPopupView=true | E158: Contratos de prestación de servicios profesionales y de apoyo a la gestión | F158: Contratación directa | G158: Prestación de servicios profesionales y de apoyo a la gestión, o para la ejecución de trabajos artísticos que sólo puedan encomendarse a determinadas personas naturales | H158: PRESTAR LOS SERVICIOS PROFESIONALES PARA LA OPERACIÓN, PRESTACIÓN, SEGUIMIENTO Y CUMPLIMIENTO DE LOS PROCEDIMIENTOS ADMINISTRATIVOS, OPERATIVOS Y PROGRAMÁTICOS DEL SERVICIO APOYO ECONÓMICO TIPO C, QUE CONTRIBUYAN A LA GARANTÍA DE LOS DERECHOS DE LA POBLACIÓN MAYOR EN EL MARCO DE LA POLÍTICA PÚBLICA SOCIAL PARA EL ENVEJECIMIENTO Y LA VEJEZ EN EL DISTRITO CAPITAL A CARGO DE LA ALCALDÍA LOCAL | I158: Inversión | J158: Un nuevo contrato social y ambiental para la Bogotá del Siglo XXI | K158: 1 | L158: =IF(ISERROR(VLOOKUP(K158,#REF!,2,FALSE))," ",VLOOKUP(K158,#REF!,2,FALSE)) ->  | M158: =IF(ISERROR(VLOOKUP(K158,#REF!,3,FALSE))," ",VLOOKUP(K158,#REF!,3,FALSE)) ->  | N158: 1852 | O158: 0 | P158: 1033774824 | Q158: ERIKA ALEXANDRA VANEGAS VELASQUEZ | R158: Persona Natural | T158: N/A | U158: N/A | W158: 37264000 | X158: 0 | Y158: 2 | Z158: 18010933 | AA158: =+W158+X158+Z158 -> 55274933 | AB158: 45958933 | AC158: 2022-01-28 | AD158: 2022-02-05 | AE158: 2023-01-30 | AF158: 240 | AG158: 1 | AH158: 86 | AM158: En ejecución | AN158: =IF(ISERROR(AB158/AA158),"-",(AB158/AA158)) -> 0.8314606731
A159: FDLSC-CPS-270-2022 | B159: 2022 | C159: FDLSC-CD-142-2022 | D159: https://community.secop.gov.co/Public/Tendering/OpportunityDetail/Index?noticeUID=CO1.NTC.2742940&isFromPublicArea=True&isModal=true&asPopupView=true | E159: Contratos de prestación de servicios profesionales y de apoyo a la gestión | F159: Contratación directa | G159: Prestación de servicios profesionales y de apoyo a la gestión, o para la ejecución de trabajos artísticos que sólo puedan encomendarse a determinadas personas naturales | H159: PRESTAR LOS SERVICIOS PROFESIONALES PARA LA OPERACIÓN, PRESTACIÓN, SEGUIMIENTO Y CUMPLIMIENTO DE LOS PROCEDIMIENTOS ADMINISTRATIVOS, OPERATIVOS Y PROGRAMÁTICOS DEL SERVICIO APOYO ECONÓMICO TIPO C, QUE CONTRIBUYAN A LA GARANTÍA DE LOS DERECHOS DE LA POBLACIÓN MAYOR EN EL MARCO DE LA POLÍTICA PÚBLICA SOCIAL PARA EL ENVEJECIMIENTO Y LA VEJEZ EN EL DISTRITO CAPITAL A CARGO DE LA ALCALDÍA LOCAL | I159: Inversión | J159: Un nuevo contrato social y ambiental para la Bogotá del Siglo XXI | K159: 1 | L159: =IF(ISERROR(VLOOKUP(K159,#REF!,2,FALSE))," ",VLOOKUP(K159,#REF!,2,FALSE)) ->  | M159: =IF(ISERROR(VLOOKUP(K159,#REF!,3,FALSE))," ",VLOOKUP(K159,#REF!,3,FALSE)) ->  | N159: 1852 | O159: 0 | P159: 52220503 | Q159: DIANA CONSTANZA REINA MORENO | R159: Persona Natural | T159: N/A | U159: N/A | W159: 37264000 | X159: 0 | Y159: 2 | Z159: 18010933 | AA159: =+W159+X159+Z159 -> 55274933 | AB159: 45958933 | AC159: 2022-01-28 | AD159: 2022-02-05 | AE159: 2023-01-30 | AF159: 240 | AG159: 1 | AH159: 86 | AM159: En ejecución | AN159: =IF(ISERROR(AB159/AA159),"-",(AB159/AA159)) -> 0.8314606731
A160: FDLSC-CPS-303-2022 | B160: 2022 | C160: FDLSC-CD-155-2022 | D160: https://community.secop.gov.co/Public/Tendering/OpportunityDetail/Index?noticeUID=CO1.NTC.2769792&isFromPublicArea=True&isModal=true&asPopupView=true | E160: Contratos de prestación de servicios profesionales y de apoyo a la gestión | F160: Contratación directa | G160: Prestación de servicios profesionales y de apoyo a la gestión, o para la ejecución de trabajos artísticos que sólo puedan encomendarse a determinadas personas naturales | H160: PRESTAR SERVICIOS PROFESIONALES EN EL DESPACHO DEL ALCALDE LOCAL DE SAN CRISTÓBAL PARA APOYAR LA REVISIÓN, VERIFICACIÓN Y ACOMPAÑAMIENTO DE LOS ASPECTOS ADMINISTRATIVOS DE LOS ASUNTOS RELACIONADOS CON ACCESIBILIDAD UNIVERSAL Y LA GARANTÍA DE LOS DERECHOS DE LAS PERSONAS CON DISCAPACIDAD, EN EL EL DESARROLLO DE LOS PROCESOS DE MALLA VIAL, ESPACIO PÚBLICO, INFRAESTRUCTURA DE OBRAS DE INGENIERÍA O ARQUITECTURA DEL FDLSC, DE CONFORMIDAD CON EL MARCO NORMATIVO APLICABLE EN LA MATERIA. | I160: Inversión | J160: Un nuevo contrato social y ambiental para la Bogotá del Siglo XXI | K160: 57 | L160: =IF(ISERROR(VLOOKUP(K160,#REF!,2,FALSE))," ",VLOOKUP(K160,#REF!,2,FALSE)) ->  | M160: =IF(ISERROR(VLOOKUP(K160,#REF!,3,FALSE))," ",VLOOKUP(K160,#REF!,3,FALSE)) ->  | N160: 1873 | O160: 0 | P160: 9534873 | Q160: ELKIN JAVIER ROJAS RUIZ | R160: Persona Natural | T160: N/A | U160: N/A | W160: 55000000 | X160: 0 | Y160: 0 | Z160: 0 | AA160: =+W160+X160+Z160 -> 55000000 | AB160: 39833333 | AC160: 2022-01-28 | AD160: 2022-02-02 | AE160: 2023-01-01 | AF160: 330 | AG160: 0 | AH160: 0 | AM160: En ejecución | AN160: =IF(ISERROR(AB160/AA160),"-",(AB160/AA160)) -> 0.7242424182
A161: FDLSC-CPS-237-2022 | B161: 2022 | C161: FDLSC-CD-122-2022 | D161: https://community.secop.gov.co/Public/Tendering/OpportunityDetail/Index?noticeUID=CO1.NTC.2753073&isFromPublicArea=True&isModal=true&asPopupView=true | E161: Contratos de prestación de servicios profesionales y de apoyo a la gestión | F161: Contratación directa | G161: Prestación de servicios profesionales y de apoyo a la gestión, o para la ejecución de trabajos artísticos que sólo puedan encomendarse a determinadas personas naturales | H161: PRESTAR LOS SERVICIOS PROFESIONALES A LA ALCALDÍA LOCAL DE SAN CRISTÓBAL, PARA LA FORMULACIÓN, EVALUACIÓN , APOYO A LA SUPERVISIÓN Y EJECUCIÓN DE LAS ACTIVIDADES Y PROCESOS ADMINISTRATIVOS Y DE CAMPO RELACIONADOS CON LA ATENCIÓN A VÍCTIMAS EN EL MARCO DE LAS NECESIDADES DEL FONDO DE DESARROLLO LOCAL Y DINAMIZACIÓN PARA LA EJECUCIÓN DE LOS PROYECTOS QUE HACEN PARTE DEL PLAN DE DESARROLLO. | I161: Inversión | J161: Un nuevo contrato social y ambiental para la Bogotá del Siglo XXI | K161: 39 | L161: =IF(ISERROR(VLOOKUP(K161,#REF!,2,FALSE))," ",VLOOKUP(K161,#REF!,2,FALSE)) ->  | M161: =IF(ISERROR(VLOOKUP(K161,#REF!,3,FALSE))," ",VLOOKUP(K161,#REF!,3,FALSE)) ->  | N161: 1869 | O161: 0 | P161: 43627942 | Q161: TATIANA PELAEZ MANTILLA | R161: Persona Natural | T161: N/A | U161: N/A | W161: 40000000 | X161: 0 | Y161: 1 | Z161: 14333333 | AA161: =+W161+X161+Z161 -> 54333333 | AB161: 47500000 | AC161: 2022-01-28 | AD161: 2022-02-05 | AE161: 2023-01-30 | AF161: 240 | AG161: 1 | AH161: 86 | AI161: 5492352 | AJ161: CARLOS MARTIN MENDOZA PARADA | AK161: 2022-08-12 | AL161: 9166667 | AM161: En ejecución | AN161: =IF(ISERROR(AB161/AA161),"-",(AB161/AA161)) -> 0.8742331342
A162: FDLSC-CPS-027-2022 | B162: 2022 | C162: FDLSC-CD-017-2022 | D162: https://community.secop.gov.co/Public/Tendering/OpportunityDetail/Index?noticeUID=CO1.NTC.2622154&isFromPublicArea=True&isModal=False | E162: Contratos de prestación de servicios profesionales y de apoyo a la gestión | F162: Contratación directa | G162: Prestación de servicios profesionales y de apoyo a la gestión, o para la ejecución de trabajos artísticos que sólo puedan encomendarse a determinadas personas naturales | H162: PRESTAR SUS SERVICIOS PROFESIONALES PARA EL APOYO TÉCNICO DEL PROYECTO DE SEPARACIÓN EN LA FUENTE, A LA LUZ DEL PLAN DE DESARROLLO 2021-2024 UN NUEVO CONTRATO AMBIENTAL Y SOCIAL PARA SAN CRISTÓBAL. | I162: Inversión | J162: Un nuevo contrato social y ambiental para la Bogotá del Siglo XXI | K162: 38 | L162: =IF(ISERROR(VLOOKUP(K162,#REF!,2,FALSE))," ",VLOOKUP(K162,#REF!,2,FALSE)) ->  | M162: =IF(ISERROR(VLOOKUP(K162,#REF!,3,FALSE))," ",VLOOKUP(K162,#REF!,3,FALSE)) ->  | N162: 1868 | O162: 0 | P162: 1077870637 | Q162: JHONATAN ORLANDO NUÑEZ FERRO | R162: Persona Natural | T162: N/A | U162: N/A | W162: 36112000 | X162: 0 | Y162: 2 | Z162: 18055267 | AA162: =+W162+X162+Z162 -> 54167267 | AB162: 46193267 | AC162: 2022-01-20 | AD162: 2022-01-24 | AE162: 2023-01-23 | AF162: 240 | AG162: 2 | AH162: 120 | AM162: En ejecución | AN162: =IF(ISERROR(AB162/AA162),"-",(AB162/AA162)) -> 0.8527893239
A163: FDLSC-CPS-222-2022 | B163: 2022 | C163: FDLSC-CD-109-2022 | D163: https://community.secop.gov.co/Public/Tendering/OpportunityDetail/Index?noticeUID=CO1.NTC.2707364&isFromPublicArea=True&isModal=False | E163: Contratos de prestación de servicios profesionales y de apoyo a la gestión | F163: Contratación directa | G163: Prestación de servicios profesionales y de apoyo a la gestión, o para la ejecución de trabajos artísticos que sólo puedan encomendarse a determinadas personas naturales | H163: PRESTAR SUS SERVICIOS PROFESIONALES PARA LA IMPLEMENTACIÓN DE LAS ACCIONES Y LINEAMIENTOS TÉCNICOS SURTIDOS DEL PROGRAMA DE GESTIÓN DOCUMENTAL Y DEMÁS INSTRUMENTOS TÉCNICOS ARCHIVÍSTICOS | I163: Inversión | J163: Un nuevo contrato social y ambiental para la Bogotá del Siglo XXI | K163: 57 | L163: =IF(ISERROR(VLOOKUP(K163,#REF!,2,FALSE))," ",VLOOKUP(K163,#REF!,2,FALSE)) ->  | M163: =IF(ISERROR(VLOOKUP(K163,#REF!,3,FALSE))," ",VLOOKUP(K163,#REF!,3,FALSE)) ->  | N163: 1873 | O163: 0 | P163: 1010208060 | Q163: ELIANA GIZETH TRIANA TORRES | R163: Persona Natural | T163: N/A | U163: N/A | W163: 36112000 | X163: 0 | Y163: 2 | Z163: 17905533 | AA163: =+W163+X163+Z163 -> 54017533 | AB163: 44989533 | AC163: 2022-01-27 | AD163: 2022-02-02 | AE163: 2023-01-30 | AF163: 240 | AG163: 2 | AH163: 119 | AM163: En ejecución | AN163: =IF(ISERROR(AB163/AA163),"-",(AB163/AA163)) -> 0.8328690797
A164: FDLSC-CPS-393-2022 | B164: 2022 | C164: FDLSC-CD-187-2022 | D164: https://community.secop.gov.co/Public/Tendering/OpportunityDetail/Index?noticeUID=CO1.NTC.3075956&isFromPublicArea=True&isModal=true&asPopupView=true | E164: Contratos de prestación de servicios profesionales y de apoyo a la gestión | F164: Contratación directa | G164: Prestación de servicios profesionales y de apoyo a la gestión, o para la ejecución de trabajos artísticos que sólo puedan encomendarse a determinadas personas naturales | H164: PRESTAR SUS SERVICIOS PROFESIONALES ESPECIALIZADOS PARA APOYAR LA GESTION DE LOS ASUNTOS RELACIONADOS CON EL DESARROLLO DE LOS PROCESOS DE MALLA VIAL, ESPACIO PÚBLICO, INFRAESTRUCTURA DE OBRAS DE INGENIERÍA O ARQUITECTURA DEL FDLSC, DE CONFORMIDAD CON EL MARCO NORMATIVO APLICABLE EN LA MATERIA.” | I164: Inversión | J164: Un nuevo contrato social y ambiental para la Bogotá del Siglo XXI | K164: 57 | L164: =IF(ISERROR(VLOOKUP(K164,#REF!,2,FALSE))," ",VLOOKUP(K164,#REF!,2,FALSE)) ->  | M164: =IF(ISERROR(VLOOKUP(K164,#REF!,3,FALSE))," ",VLOOKUP(K164,#REF!,3,FALSE)) ->  | N164: 1873 | O164: 0 | P164: 1013597108 | Q164: SANDRA YINETH FAJARDO USAQUÉN | R164: Persona Natural | T164: N/A | U164: N/A | W164: 45000000 | X164: 0 | Y164: 1 | Z164: 9000000 | AA164: =+W164+X164+Z164 -> 54000000 | AB164: 36600000 | AC164: 2022-07-27 | AD164: 2022-07-29 | AE164: 2023-01-28 | AF164: 150 | AG164: 0 | AH164: 0 | AM164: En ejecución | AN164: =IF(ISERROR(AB164/AA164),"-",(AB164/AA164)) -> 0.6777777778
A165: FDLSC-CPS-096-2022 | B165: 2022 | C165: FDLSC-CD-057-2022 | D165: https://community.secop.gov.co/Public/Tendering/OpportunityDetail/Index?noticeUID=CO1.NTC.2648658&isFromPublicArea=True&isModal=true&asPopupView=true | E165: Contratos de prestación de servicios profesionales y de apoyo a la gestión | F165: Contratación directa | G165: Prestación de servicios profesionales y de apoyo a la gestión, o para la ejecución de trabajos artísticos que sólo puedan encomendarse a determinadas personas naturales | H165: PRESTAR SUS SERVICIOS PROFESIONALES ESPECIALIZADOS PARA APOYAR LA GESTION DE LOS ASUNTOS RELACIONADOS CON EL DESARROLLO DE LOS PROCESOS DE MALLA VIAL, ESPACIO PÚBLICO, INFRAESTRUCTURA DE OBRAS DE INGENIERÍA O ARQUITECTURA DEL FDLSC, DE CONFORMIDAD CON EL MARCO NORMATIVO APLICABLE EN LA MATERIA. | I165: Inversión | J165: Un nuevo contrato social y ambiental para la Bogotá del Siglo XXI | K165: 57 | L165: =IF(ISERROR(VLOOKUP(K165,#REF!,2,FALSE))," ",VLOOKUP(K165,#REF!,2,FALSE)) ->  | M165: =IF(ISERROR(VLOOKUP(K165,#REF!,3,FALSE))," ",VLOOKUP(K165,#REF!,3,FALSE)) ->  | N165: 1873 | O165: 0 | P165: 1013597108 | Q165: SANDRA YINETH FAJARDO USAQUÉN | R165: Persona Natural | T165: N/A | U165: N/A | W165: 54000000 | X165: 0 | Y165: 0 | Z165: 0 | AA165: =+W165+X165+Z165 -> 54000000 | AB165: 54000000 | AC165: 2022-01-24 | AD165: 2022-01-27 | AE165: 2022-07-26 | AF165: 180 | AG165: 0 | AH165: 0 | AM165: Terminado | AN165: =IF(ISERROR(AB165/AA165),"-",(AB165/AA165)) -> 1
A166: FDLSC-CPS-153-2022 | B166: 2022 | C166: FDLSC-CD-076-2022 | D166: https://community.secop.gov.co/Public/Tendering/OpportunityDetail/Index?noticeUID=CO1.NTC.2685749&isFromPublicArea=True&isModal=true&asPopupView=true | E166: Contratos de prestación de servicios profesionales y de apoyo a la gestión | F166: Contratación directa | G166: Prestación de servicios profesionales y de apoyo a la gestión, o para la ejecución de trabajos artísticos que sólo puedan encomendarse a determinadas personas naturales | H166: PRESTAR SUS SERVICIOS PROFESIONALES PARA LA GESTIÓN DEL RIESGO, A LA LUZ DEL PLAN DE DESARROLLO 2021-2024, UN NUEVO CONTRATO AMBIENTAL Y SOCIAL PARA SAN CRISTÓBAL. | I166: Inversión | J166: Un nuevo contrato social y ambiental para la Bogotá del Siglo XXI | K166: 30 | L166: =IF(ISERROR(VLOOKUP(K166,#REF!,2,FALSE))," ",VLOOKUP(K166,#REF!,2,FALSE)) ->  | M166: =IF(ISERROR(VLOOKUP(K166,#REF!,3,FALSE))," ",VLOOKUP(K166,#REF!,3,FALSE)) ->  | N166: 1866 | O166: 0 | P166: 1010205046 | Q166: GINNA MILENA CEPEDA VELASCO | R166: Persona Natural | T166: N/A | U166: N/A | W166: 36112000 | X166: 0 | Y166: 2 | Z166: 17604600 | AA166: =+W166+X166+Z166 -> 53716600 | AB166: 44688600 | AC166: 2022-01-25 | AD166: 2022-02-04 | AE166: 2023-01-30 | AF166: 240 | AG166: 2 | AH166: 117 | AM166: En ejecución | AN166: =IF(ISERROR(AB166/AA166),"-",(AB166/AA166)) -> 0.8319327731
A167: FDLSC-CPS-047-2022 | B167: 2022 | C167: FDLSC-CD-018-2022 | D167: https://community.secop.gov.co/Public/Tendering/OpportunityDetail/Index?noticeUID=CO1.NTC.2604610&isFromPublicArea=True&isModal=true&asPopupView=true | E167: Contratos de prestación de servicios profesionales y de apoyo a la gestión | F167: Contratación directa | G167: Prestación de servicios profesionales y de apoyo a la gestión, o para la ejecución de trabajos artísticos que sólo puedan encomendarse a determinadas personas naturales | H167: PRESTAR LOS SERVICIOS PROFESIONALES PARA LA OPERACIÓN, SEGUIMIENTO Y CUMPLIMIENTO DE LOS PROCESOS Y PROCEDIMIENTOS DEL SERVICIO APOYO ECONÓMICO TIPO C, REQUERIDOS PARA EL OPORTUNO Y ADECUADO REGISTRO, CRUCE Y REPORTE DE LOS DATOS EN EL SISTEMA MISIONAL SIRBE, QUE CONTRIBUYAN A LA GARANTÍA DE LOS DERECHOS DE LA POBLACIÓN MAYOR EN EL MARCO DE LA POLÍTICA PÚBLICA SOCIAL PARA EL ENVEJECIMIENTO Y LA VEJEZ EN EL DISTRITO CAPITAL A CARGO DE LA ALCALDÍA LOCAL | I167: Inversión | J167: Un nuevo contrato social y ambiental para la Bogotá del Siglo XXI | K167: 1 | L167: =IF(ISERROR(VLOOKUP(K167,#REF!,2,FALSE))," ",VLOOKUP(K167,#REF!,2,FALSE)) ->  | M167: =IF(ISERROR(VLOOKUP(K167,#REF!,3,FALSE))," ",VLOOKUP(K167,#REF!,3,FALSE)) ->  | N167: 1852 | O167: 0 | P167: 53102990 | Q167: NYDIA EDITH GUTIERREZ GARZON | R167: Persona Natural | T167: N/A | U167: N/A | W167: 36160000 | X167: 0 | Y167: 2 | Z167: 17477333 | AA167: =+W167+X167+Z167 -> 53637333 | AB167: 44597333 | AC167: 2022-01-25 | AD167: 2022-02-05 | AE167: 2023-01-30 | AF167: 240 | AG167: 1 | AH167: 86 | AM167: En ejecución | AN167: =IF(ISERROR(AB167/AA167),"-",(AB167/AA167)) -> 0.8314606731
A168: 353 | B168: 2021 | C168: FDLSC-SASI-002-2021 | D168: https://community.secop.gov.co/Public/Tendering/OpportunityDetail/Index?noticeUID=CO1.NTC.2139275&isFromPublicArea=True&isModal=False | E168: Suministro | F168: Selección abreviada | G168: Subasta inversa | H168: CONTRATAR A MONTO AGOTABLE EL SUMINISTRO DE INSUMOS, REFRIGERIOS Y ELEMENTOS DE MERCHANDISING REQUERIDOS PARA EL DESARROLLO LOGISTICO Y OPERATIVO DEL PROGRAMA “RETO LOCAL JOVENES Y ENTORNOS SEGUROS” EN LA LOCALIDAD DE SAN CRISTÓBAL POR EL LOTE 2 | I168: Inversión | J168: Un nuevo contrato social y ambiental para la Bogotá del Siglo XXI | K168: 1 | L168: =IF(ISERROR(VLOOKUP(K168,#REF!,2,FALSE))," ",VLOOKUP(K168,#REF!,2,FALSE)) ->  | M168: =IF(ISERROR(VLOOKUP(K168,#REF!,3,FALSE))," ",VLOOKUP(K168,#REF!,3,FALSE)) ->  | N168: 1852 | O168: 0 | P168: 900879034 | Q168: INVERSIONES AYL SAS | R168: Persona Jurídica | S168: N/A | T168: N/A | U168: N/A | W168: 0 | X168: 0 | Y168: 1 | Z168: 52550000 | AA168: =+W168+X168+Z168 -> 52550000 | AB168: 39064010 | AC168: 2022-05-16 | AD168: 2022-08-27 | AE168: 2022-08-26 | AF168: 360 | AG168: 0 | AH168: 0 | AM168: Liquidado | AN168: =IF(ISERROR(AB168/AA168),"-",(AB168/AA168)) -> 0.743368411
A169: FDLSC-CPS-241-2022 | B169: 2022 | C169: FDLSC-CD-119-2022 | D169: https://community.secop.gov.co/Public/Tendering/OpportunityDetail/Index?noticeUID=CO1.NTC.2728056&isFromPublicArea=True&isModal=true&asPopupView=true | E169: Contratos de prestación de servicios profesionales y de apoyo a la gestión | F169: Contratación directa | G169: Prestación de servicios profesionales y de apoyo a la gestión, o para la ejecución de trabajos artísticos que sólo puedan encomendarse a determinadas personas naturales | H169: PRESTAR SUS SERVICIOS PROFESIONALES PARA APOYAR LOS TEMAS RELACIONADOS AL SISTEMA INTEGRADO DE GESTIÓN DE CALIDAD (SIG) DE ACUERDO CON LAS SOLCITUDES DE LA ADMINISTRACIÓN LOCAL. | I169: Inversión | J169: Un nuevo contrato social y ambiental para la Bogotá del Siglo XXI | K169: 57 | L169: =IF(ISERROR(VLOOKUP(K169,#REF!,2,FALSE))," ",VLOOKUP(K169,#REF!,2,FALSE)) ->  | M169: =IF(ISERROR(VLOOKUP(K169,#REF!,3,FALSE))," ",VLOOKUP(K169,#REF!,3,FALSE)) ->  | N169: 1873 | O169: 0 | P169: 79967309 | Q169: VICTOR JOVANI MORENO YEPES | R169: Persona Natural | T169: N/A | U169: N/A | W169: 52000000 | X169: 0 | Y169: 0 | Z169: 0 | AA169: =+W169+X169+Z169 -> 52000000 | AB169: 48183333 | AC169: 2022-01-27 | AD169: 2022-02-02 | AE169: 2022-08-12 | AF169: 240 | AG169: 0 | AH169: 0 | AM169: Liquidado | AN169: =IF(ISERROR(AB169/AA169),"-",(AB169/AA169)) -> 0.9266025577
A170: FDLSC-CPS-666-2022 | B170: 2022 | C170: FDLSC-SAMC-005-2022 | D170: https://community.secop.gov.co/Public/Tendering/OpportunityDetail/Index?noticeUID=CO1.NTC.3601213&isFromPublicArea=True&isModal=true&asPopupView=true | E170: Contratos de prestación de servicios | F170: Selección abreviada | G170: Selección abreviada por menor cuantía | H170: CONTRATAR LOS SERVICIOS DE APOYO LOGÍSTICOS, TRANSPORTE, PUBLICITARIOS, ELEMENTOS DE MERCHANDISING Y CATERING REQUERIDOS PARA EL DESARROLLO OPERATIVO DE LOS EVENTOS LIDERADOS POR LA ALCALDIA LOCAL DE SAN CRISTÓBAL | I170: Inversión | J170: Un nuevo contrato social y ambiental para la Bogotá del Siglo XXI | K170: 55 | L170: =IF(ISERROR(VLOOKUP(K170,#REF!,2,FALSE))," ",VLOOKUP(K170,#REF!,2,FALSE)) ->  | M170: =IF(ISERROR(VLOOKUP(K170,#REF!,3,FALSE))," ",VLOOKUP(K170,#REF!,3,FALSE)) ->  | N170: 1872 | O170: 1 | P170: 900521780 | Q170: B2 NETWORKS S A S | R170: Persona Jurídica | T170: N/A | U170: N/A | W170: 51971024 | X170: 0 | Y170: 0 | Z170: 0 | AA170: =+W170+X170+Z170 -> 51971024 | AB170: 0 | AC170: 2022-12-28 | AF170: 180 | AM170: Celebrado o por iniciar | AN170: =IF(ISERROR(AB170/AA170),"-",(AB170/AA170)) -> 0
A171: FDLSC-CPS-239-2022 | B171: 2022 | C171: FDLSC-CD-124-2022 | D171: https://community.secop.gov.co/Public/Tendering/OpportunityDetail/Index?noticeUID=CO1.NTC.2745217&isFromPublicArea=True&isModal=true&asPopupView=true | E171: Contratos de prestación de servicios profesionales y de apoyo a la gestión | F171: Contratación directa | G171: Prestación de servicios profesionales y de apoyo a la gestión, o para la ejecución de trabajos artísticos que sólo puedan encomendarse a determinadas personas naturales | H171: PRESTAR SUS SERVICIOS PROFESIONALES PARA APOYAR EN LA FORMULACIÓN Y ACOMPAÑAMIENTO DE LOS ACUERDOS QUE PROMUEVAN LA FORMALIDAD, EL ACCESO PARA EL APROVECHAMIENTO DEL ESPACIO PÚBLICO. | I171: Inversión | J171: Un nuevo contrato social y ambiental para la Bogotá del Siglo XXI | K171: 45 | L171: =IF(ISERROR(VLOOKUP(K171,#REF!,2,FALSE))," ",VLOOKUP(K171,#REF!,2,FALSE)) ->  | M171: =IF(ISERROR(VLOOKUP(K171,#REF!,3,FALSE))," ",VLOOKUP(K171,#REF!,3,FALSE)) ->  | N171: 1835 | O171: 0 | P171: 79387457 | Q171: JOSE MARTIN MORALES TORRES | R171: Persona Natural | T171: N/A | U171: N/A | W171: 36112000 | X171: 0 | Y171: 2 | Z171: 15799000 | AA171: =+W171+X171+Z171 -> 51911000 | AB171: 42883000 | AC171: 2022-01-27 | AD171: 2022-02-16 | AE171: 2023-01-30 | AF171: 240 | AG171: 2 | AH171: 105 | AM171: En ejecución | AN171: =IF(ISERROR(AB171/AA171),"-",(AB171/AA171)) -> 0.8260869565
A172: FDLSC-INTV-642-2022 | B172: 2022 | C172: FDLSC-CMA-005-2022 | D172: https://community.secop.gov.co/Public/Tendering/OpportunityDetail/Index?noticeUID=CO1.NTC.3623449&isFromPublicArea=True&isModal=true&asPopupView=true | E172: Interventoría | F172: Concurso de méritos | G172: No aplica | H172: REALIZAR LA INTERVENTORÍA TÉCNICA, ADMINISTRATIVA, FINANCIERA, SOCIAL, CONTABLE, AMBIENTAL Y JURÍDICA AL CONTRATO QUE TIENE POR OBJETO CONTRATAR LA ELABORACIÓN DE ESTUDIOS, DISEÑOS Y OBTENCIÓN DE LA LICENCIA DE CONSTRUCCIÓN EN LA MODALIDAD QUE CORRESPONDA Y DISPONIBILIDAD DE SERVICIOS PUBLICOS PARA LA CONSTRUCCIÓN DE SALONES COMUNALES EN LA LOCALIDAD DE SAN CRISTOBAL DE LA CIUDAD DE BOGOTÁ D. C | I172: Inversión | J172: Un nuevo contrato social y ambiental para la Bogotá del Siglo XXI | K172: 55 | L172: =IF(ISERROR(VLOOKUP(K172,#REF!,2,FALSE))," ",VLOOKUP(K172,#REF!,2,FALSE)) ->  | M172: =IF(ISERROR(VLOOKUP(K172,#REF!,3,FALSE))," ",VLOOKUP(K172,#REF!,3,FALSE)) ->  | N172: 1872 | O172: 2 | P172: 900160387 | Q172: CEYCO INGENIERIA SAS | R172: Persona Jurídica | T172: N/A | U172: N/A | W172: 51524376 | X172: 0 | Y172: 0 | Z172: 0 | AA172: =+W172+X172+Z172 -> 51524376 | AB172: 0 | AC172: 2022-12-23 | AF172: 180 | AM172: Celebrado o por iniciar | AN172: =IF(ISERROR(AB172/AA172),"-",(AB172/AA172)) -> 0
A173: FDLSC-CPS-041-2022 | B173: 2022 | C173: FDLSC-CD-025-2022 | D173: https://community.secop.gov.co/Public/Tendering/OpportunityDetail/Index?noticeUID=CO1.NTC.2645012&isFromPublicArea=True&isModal=true&asPopupView=true | E173: Contratos de prestación de servicios profesionales y de apoyo a la gestión | F173: Contratación directa | G173: Prestación de servicios profesionales y de apoyo a la gestión, o para la ejecución de trabajos artísticos que sólo puedan encomendarse a determinadas personas naturales | H173: PRESTAR SERVICIOS PROFESIONALES ESPECIALIZADOS PARA TRAMITAR LAS ETAPAS PRECONTRACTUALES Y CONTRACTUALES DE ACUERDO CON EL PLAN DE ADQUISICIONES Y AL PLAN DE CONTRATACIÓN QUE ADELANTE EL FONDO DE DESARROLLO LOCAL DE SAN CRISTÓBAL EN EL MARCO DEL PLAN DE DESARROLLO 2021-2024. | I173: Inversión | J173: Un nuevo contrato social y ambiental para la Bogotá del Siglo XXI | K173: 57 | L173: =IF(ISERROR(VLOOKUP(K173,#REF!,2,FALSE))," ",VLOOKUP(K173,#REF!,2,FALSE)) ->  | M173: =IF(ISERROR(VLOOKUP(K173,#REF!,3,FALSE))," ",VLOOKUP(K173,#REF!,3,FALSE)) ->  | N173: 1873 | O173: 0 | P173: 79906188 | Q173: RODNY FABIAN ORTIZ CHAMORRO | R173: Persona Natural | T173: N/A | U173: N/A | W173: 51170400 | X173: 0 | Y173: 0 | Z173: 0 | AA173: =+W173+X173+Z173 -> 51170400 | AB173: 51170400 | AC173: 2022-01-21 | AD173: 2022-01-25 | AE173: 2022-07-24 | AF173: 180 | AG173: 0 | AH173: 0 | AM173: Terminado | AN173: =IF(ISERROR(AB173/AA173),"-",(AB173/AA173)) -> 1
A174: FDLSC-CPS-210-2022 | B174: 2022 | C174: FDLSC-CD-068-2022 | D174: https://community.secop.gov.co/Public/Tendering/OpportunityDetail/Index?noticeUID=CO1.NTC.2713299&isFromPublicArea=True&isModal=False | E174: Contratos de prestación de servicios profesionales y de apoyo a la gestión | F174: Contratación directa | G174: Prestación de servicios profesionales y de apoyo a la gestión, o para la ejecución de trabajos artísticos que sólo puedan encomendarse a determinadas personas naturales | H174: PRESTAR LOS SERVICIOS DE APOYO TECNICO A LA GESTIÓN DE LA ALCALDÍA LOCAL DE SAN CRISTOBAL EN EL DESARROLLO DE ACTIVIDADES DE REACTIVACIÓN ECONOMICA, ACOMPAÑAMIENTO EN CAMPO Y PARTICIPACIÓN EN LOS PROCESOS NECESARIOS PARA LA CORRECTA EJECUCIÓN DE LOS EVENTOS RELACIONADOS Y DE LAS NECESIDADES DE LA ALCALDIA LOCAL. | I174: Inversión | J174: Un nuevo contrato social y ambiental para la Bogotá del Siglo XXI | K174: 6 | L174: =IF(ISERROR(VLOOKUP(K174,#REF!,2,FALSE))," ",VLOOKUP(K174,#REF!,2,FALSE)) ->  | M174: =IF(ISERROR(VLOOKUP(K174,#REF!,3,FALSE))," ",VLOOKUP(K174,#REF!,3,FALSE)) ->  | N174: 1865 | O174: 0 | P174: 79685883 | Q174: JUAN CARLOS HIGUERA TRIANA | R174: Persona Natural | T174: N/A | U174: N/A | W174: 34400000 | X174: 0 | Y174: 2 | Z174: 16626667 | AA174: =+W174+X174+Z174 -> 51026667 | AB174: 42426666 | AC174: 2022-01-26 | AD174: 2022-02-05 | AE174: 2023-01-30 | AF174: 240 | AG174: 1 | AH174: 86 | AM174: En ejecución | AN174: =IF(ISERROR(AB174/AA174),"-",(AB174/AA174)) -> 0.8314606557
A175: FDLSC-CPS-171-2022 | B175: 2022 | C175: FDLSC-CD-082-2022 | D175: https://community.secop.gov.co/Public/Tendering/OpportunityDetail/Index?noticeUID=CO1.NTC.2681345&isFromPublicArea=True&isModal=true&asPopupView=true | E175: Contratos de prestación de servicios profesionales y de apoyo a la gestión | F175: Contratación directa | G175: Prestación de servicios profesionales y de apoyo a la gestión, o para la ejecución de trabajos artísticos que sólo puedan encomendarse a determinadas personas naturales | H175: APOYAR TÉCNICAMENTE LAS DISTINTAS ETAPAS DE LOS PROCESOS DE COMPETENCIA DE LAS INSPECCIONES DE POLICÍA DE LA LOCALIDAD, SEGÚN REPARTO. | I175: Inversión | J175: Un nuevo contrato social y ambiental para la Bogotá del Siglo XXI | K175: 57 | L175: =IF(ISERROR(VLOOKUP(K175,#REF!,2,FALSE))," ",VLOOKUP(K175,#REF!,2,FALSE)) ->  | M175: =IF(ISERROR(VLOOKUP(K175,#REF!,3,FALSE))," ",VLOOKUP(K175,#REF!,3,FALSE)) ->  | N175: 1873 | O175: 0 | P175: 19427171 | Q175: JOSE GABRIEL MOLINA LAGOS | R175: Persona Natural | T175: N/A | U175: N/A | W175: 50985000 | X175: 0 | Y175: 0 | Z175: 0 | AA175: =+W175+X175+Z175 -> 50985000 | AB175: 50985000 | AC175: 2022-01-25 | AD175: 2022-02-03 | AE175: 2022-11-02 | AF175: 270 | AG175: 0 | AH175: 0 | AM175: Terminado | AN175: =IF(ISERROR(AB175/AA175),"-",(AB175/AA175)) -> 1
A176: FDLSC-CPS-032-2022 | B176: 2022 | C176: FDLSC-CD-017-2022 | D176: https://community.secop.gov.co/Public/Tendering/OpportunityDetail/Index?noticeUID=CO1.NTC.2622154&isFromPublicArea=True&isModal=False | E176: Contratos de prestación de servicios profesionales y de apoyo a la gestión | F176: Contratación directa | G176: Prestación de servicios profesionales y de apoyo a la gestión, o para la ejecución de trabajos artísticos que sólo puedan encomendarse a determinadas personas naturales | H176: PRESTAR SUS SERVICIOS PROFESIONALES PARA EL APOYO TÉCNICO DEL PROYECTO DE SEPARACIÓN EN LA FUENTE, A LA LUZ DEL PLAN DE DESARROLLO 2021-2024 UN NUEVO CONTRATO AMBIENTAL Y SOCIAL PARA SAN CRISTÓBAL. | I176: Inversión | J176: Un nuevo contrato social y ambiental para la Bogotá del Siglo XXI | K176: 38 | L176: =IF(ISERROR(VLOOKUP(K176,#REF!,2,FALSE))," ",VLOOKUP(K176,#REF!,2,FALSE)) ->  | M176: =IF(ISERROR(VLOOKUP(K176,#REF!,3,FALSE))," ",VLOOKUP(K176,#REF!,3,FALSE)) ->  | N176: 1868 | O176: 0 | P176: 1019093729 | Q176: KEVIN CAMILO CUBILLOS SANCHEZ | R176: Persona Natural | T176: N/A | U176: N/A | W176: 36112000 | X176: 0 | Y176: 1 | Z176: 14595267 | AA176: =+W176+X176+Z176 -> 50707267 | AB176: 43936267 | AC176: 2022-01-21 | AD176: 2022-01-24 | AE176: 2022-12-30 | AF176: 240 | AG176: 1 | AH176: 97 | AI176: 79279593 | AJ176: EDGAR RODRIGO DOMINGUEZ AMADO | AK176: 2022-05-11 | AL176: 33855000 | AM176: Terminado | AN176: =IF(ISERROR(AB176/AA176),"-",(AB176/AA176)) -> 0.8664688436
A177: FDLSC-CPS-028-2022 | B177: 2022 | C177: FDLSC-CD-017-2022 | D177: https://www.secop.gov.co/CO1ContractsManagement/Tendering/ProcurementContractEdit/View?docUniqueIdentifier=CO1.PCCNTR.3312966&prevCtxUrl=https%3a%2f%2fwww.secop.gov.co%2fCO1ContractsManagement%2fTendering%2fProcurementContractManagement%2fIndex&prevCtxLbl=Contratos+ | E177: Contratos de prestación de servicios profesionales y de apoyo a la gestión | F177: Contratación directa | G177: Prestación de servicios profesionales y de apoyo a la gestión, o para la ejecución de trabajos artísticos que sólo puedan encomendarse a determinadas personas naturales | H177: PRESTAR SUS SERVICIOS PROFESIONALES PARA EL APOYO TÉCNICO DEL PROYECTO DE SEPARACIÓN EN LA FUENTE, A LA LUZ DEL PLAN DE DESARROLLO 2021-2024 UN NUEVO CONTRATO AMBIENTAL Y SOCIAL PARA SAN CRISTÓBAL. | I177: Inversión | J177: Un nuevo contrato social y ambiental para la Bogotá del Siglo XXI | K177: 38 | L177: =IF(ISERROR(VLOOKUP(K177,#REF!,2,FALSE))," ",VLOOKUP(K177,#REF!,2,FALSE)) ->  | M177: =IF(ISERROR(VLOOKUP(K177,#REF!,3,FALSE))," ",VLOOKUP(K177,#REF!,3,FALSE)) ->  | N177: 1868 | O177: 0 | P177: 1096200620 | Q177: DIANA ASTRID CHAMORRO RIVEROS | R177: Persona Natural | T177: N/A | U177: N/A | W177: 36112000 | X177: 0 | Y177: 1 | Z177: 14595267 | AA177: =+W177+X177+Z177 -> 50707267 | AB177: 46193267 | AC177: 2022-01-21 | AD177: 2022-01-24 | AE177: 2022-12-30 | AF177: 240 | AG177: 1 | AH177: 97 | AM177: Terminado | AN177: =IF(ISERROR(AB177/AA177),"-",(AB177/AA177)) -> 0.9109792291
A178: FDLSC-CPS-249-2022 | B178: 2022 | C178: FDLSC-CD-131-2022 | D178: https://community.secop.gov.co/Public/Tendering/OpportunityDetail/Index?noticeUID=CO1.NTC.2744931&isFromPublicArea=True&isModal=true&asPopupView=true | E178: Contratos de prestación de servicios profesionales y de apoyo a la gestión | F178: Contratación directa | G178: Prestación de servicios profesionales y de apoyo a la gestión, o para la ejecución de trabajos artísticos que sólo puedan encomendarse a determinadas personas naturales | H178: EL CONTRATISTA PRESTARÁ SUS SERVICIOS PROFESIONALES PARA EL APOYO A LOS PROCESOS DE PROTECCIÓN Y BIENESTAR ANIMAL DEL FONDO DE DESARROLLO LOCAL DE SAN CRISTOBAL EN MATERIA ADMINISTRATIVA, ASI COMO LABORES DE CAMPO. | I178: Inversión | J178: Un nuevo contrato social y ambiental para la Bogotá del Siglo XXI | K178: 34 | L178: =IF(ISERROR(VLOOKUP(K178,#REF!,2,FALSE))," ",VLOOKUP(K178,#REF!,2,FALSE)) ->  | M178: =IF(ISERROR(VLOOKUP(K178,#REF!,3,FALSE))," ",VLOOKUP(K178,#REF!,3,FALSE)) ->  | N178: 1826 | O178: 0 | P178: 1082772768 | Q178: PAOLA ZUNILDA ORDOÑEZ MOTTA | R178: Persona Natural | T178: N/A | U178: N/A | W178: 37080000 | X178: 0 | Y178: 1 | Z178: 13441500 | AA178: =+W178+X178+Z178 -> 50521500 | AB178: 45886500 | AC178: 2022-01-27 | AD178: 2022-02-04 | AE178: 2022-12-30 | AF178: 240 | AG178: 1 | AH178: 87 | AM178: Terminado | AN178: =IF(ISERROR(AB178/AA178),"-",(AB178/AA178)) -> 0.9082568807
A179: FDLSC-CPS-143-2022 | B179: 2022 | C179: FDLSC-CD-072-2022 | D179: https://community.secop.gov.co/Public/Tendering/OpportunityDetail/Index?noticeUID=CO1.NTC.2675641&isFromPublicArea=True&isModal=true&asPopupView=true | E179: Contratos de prestación de servicios profesionales y de apoyo a la gestión | F179: Contratación directa | G179: Prestación de servicios profesionales y de apoyo a la gestión, o para la ejecución de trabajos artísticos que sólo puedan encomendarse a determinadas personas naturales | H179: PRESTAR SUS SERVICIOS PROFESIONALES EN LA DEPURACION DE OBLIGACIONES POR PAGAR, TRAMITE DE PAGOS Y LIQUIDACIÓN DE CONTRATOS, DE CONFORMIDAD CON LAS CONDICIONES Y OBLIGACIONES ESTABLECIDAS POR EL FONDO DE DESARROLLO LOCAL | I179: Inversión | J179: Un nuevo contrato social y ambiental para la Bogotá del Siglo XXI | K179: 57 | L179: =IF(ISERROR(VLOOKUP(K179,#REF!,2,FALSE))," ",VLOOKUP(K179,#REF!,2,FALSE)) ->  | M179: =IF(ISERROR(VLOOKUP(K179,#REF!,3,FALSE))," ",VLOOKUP(K179,#REF!,3,FALSE)) ->  | N179: 1873 | O179: 0 | P179: 51563254 | Q179: MARTHA CECILIA HERNANDEZ TIBADUIZA | R179: Persona Natural | T179: N/A | U179: N/A | W179: 49600000 | X179: 0 | Y179: 0 | Z179: 0 | AA179: =+W179+X179+Z179 -> 49600000 | AB179: 49600000 | AC179: 2022-01-26 | AD179: 2022-02-01 | AE179: 2022-09-30 | AF179: 240 | AG179: 0 | AH179: 0 | AM179: Terminado | AN179: =IF(ISERROR(AB179/AA179),"-",(AB179/AA179)) -> 1
A180: FDLSC-CPS-252-2022 | B180: 2022 | C180: FDLSC-CD-134-2022 | D180: https://community.secop.gov.co/Public/Tendering/OpportunityDetail/Index?noticeUID=CO1.NTC.2767388&isFromPublicArea=True&isModal=true&asPopupView=true | E180: Contratos de prestación de servicios profesionales y de apoyo a la gestión | F180: Contratación directa | G180: Prestación de servicios profesionales y de apoyo a la gestión, o para la ejecución de trabajos artísticos que sólo puedan encomendarse a determinadas personas naturales | H180: PRESTAR SUS SERVICIOS PROFESIONALES AL FDLSC PARA REALIZAR LA FORMULACIÓN, PRESENTACIÓN, EVALUACIÓN, SEGUIMIENTO Y APOYO A LA SUPERVISIÓN DE LOS PROCESOS CONTRACTUALES DERIVADOS DEL PROYECTO DE INVERSIÓN 1801 SAN CRISTÓBAL ES DEPORTE Y LOS DEMÁS QUE LE SEAN ASIGNADOS POR PLANEACION. | I180: Inversión | J180: Un nuevo contrato social y ambiental para la Bogotá del Siglo XXI | K180: 57 | L180: =IF(ISERROR(VLOOKUP(K180,#REF!,2,FALSE))," ",VLOOKUP(K180,#REF!,2,FALSE)) ->  | M180: =IF(ISERROR(VLOOKUP(K180,#REF!,3,FALSE))," ",VLOOKUP(K180,#REF!,3,FALSE)) ->  | N180: 1873 | O180: 0 | P180: 79646805 | Q180: FREDY ALBERTO HERNANDEZ PAEZ | R180: Persona Natural | T180: N/A | U180: N/A | W180: 37080000 | X180: 0 | Y180: 1 | Z180: 12360000 | AA180: =+W180+X180+Z180 -> 49440000 | AB180: 49440000 | AC180: 2022-01-28 | AD180: 2022-02-11 | AE180: 2022-10-11 | AF180: 180 | AG180: 1 | AH180: 60 | AM180: Terminado | AN180: =IF(ISERROR(AB180/AA180),"-",(AB180/AA180)) -> 1
A181: FDLSC-CPS-201-2022 | B181: 2022 | C181: FDLSC-CD-099-2022 | D181: https://community.secop.gov.co/Public/Tendering/OpportunityDetail/Index?noticeUID=CO1.NTC.2697591&isFromPublicArea=True&isModal=true&asPopupView=true | E181: Contratos de prestación de servicios profesionales y de apoyo a la gestión | F181: Contratación directa | G181: Prestación de servicios profesionales y de apoyo a la gestión, o para la ejecución de trabajos artísticos que sólo puedan encomendarse a determinadas personas naturales | H181: PRESTAR SUS SERVICIOS PROFESIONALES EN EL APOYO DE LOS PROCESOS E INSTANCIAS DE PARTICIPACIÓN CIUDADANA DE CONFORMIDAD CON EL MARCO NORMATIVO APLICABLE EN LA MATERIA. | I181: Inversión | J181: Un nuevo contrato social y ambiental para la Bogotá del Siglo XXI | K181: 55 | L181: =IF(ISERROR(VLOOKUP(K181,#REF!,2,FALSE))," ",VLOOKUP(K181,#REF!,2,FALSE)) ->  | M181: =IF(ISERROR(VLOOKUP(K181,#REF!,3,FALSE))," ",VLOOKUP(K181,#REF!,3,FALSE)) ->  | N181: 1872 | O181: 0 | P181: 1023947690 | Q181: ANGIE LORENA PARRA GALINDO | R181: Persona Natural | T181: N/A | U181: N/A | W181: 36108456 | X181: 0 | Y181: 1 | Z181: 13239767 | AA181: =+W181+X181+Z181 -> 49348223 | AB181: 44834665 | AC181: 2022-01-26 | AD181: 2022-02-03 | AE181: 2022-12-30 | AF181: 240 | AG181: 1 | AH181: 88 | AI181: 79604201 | AJ181: PEDRO MIGUEL RODRIGUEZ BARBOSA | AK181: 2022-04-20 | AL181: 24523660 | AM181: Terminado | AN181: =IF(ISERROR(AB181/AA181),"-",(AB181/AA181)) -> 0.9085365647
A182: FDLSC-CPS-228-2022 | B182: 2022 | C182: FDLSC-CD-114-2022 | D182: https://community.secop.gov.co/Public/Tendering/OpportunityDetail/Index?noticeUID=CO1.NTC.2735351&isFromPublicArea=True&isModal=true&asPopupView=true | E182: Contratos de prestación de servicios profesionales y de apoyo a la gestión | F182: Contratación directa | G182: Prestación de servicios profesionales y de apoyo a la gestión, o para la ejecución de trabajos artísticos que sólo puedan encomendarse a determinadas personas naturales | H182: PRESTAR SUS SERVICIOS PROFESIONALES PARA APOYAR EN LA PRODUCCIÓN, MONTAJE Y REALIZACIÓN DE EVENTOS DE LA ALCALDÍA LOCAL PARA LA DIFUSION DE CONTENIDOS Y ACTIVIDADES DE LA ENTIDAD. | I182: Inversión | J182: Un nuevo contrato social y ambiental para la Bogotá del Siglo XXI | K182: 57 | L182: =IF(ISERROR(VLOOKUP(K182,#REF!,2,FALSE))," ",VLOOKUP(K182,#REF!,2,FALSE)) ->  | M182: =IF(ISERROR(VLOOKUP(K182,#REF!,3,FALSE))," ",VLOOKUP(K182,#REF!,3,FALSE)) ->  | N182: 1873 | O182: 0 | P182: 1023894240 | Q182: GIOVANNY ALBERTO ALFONSO MARIN | R182: Persona Natural | T182: N/A | U182: N/A | W182: 36112000 | X182: 0 | Y182: 1 | Z182: 13090600 | AA182: =+W182+X182+Z182 -> 49202600 | AB182: 42582066 | AC182: 2022-01-27 | AD182: 2022-02-04 | AE182: 2022-12-30 | AF182: 240 | AG182: 1 | AH182: 87 | AI182: 1032504794 | AJ182: DANIEL SANTIAGO GONZALEZ MUÑOZ | AK182: 2022-06-15 | AL182: 17153200 | AM182: Terminado | AN182: =IF(ISERROR(AB182/AA182),"-",(AB182/AA182)) -> 0.8654434115
A183: FDLSC-CPS-245-2022 | B183: 2022 | C183: FDLSC-CD-127-2022 | D183: https://community.secop.gov.co/Public/Tendering/OpportunityDetail/Index?noticeUID=CO1.NTC.2740002&isFromPublicArea=True&isModal=true&asPopupView=true | E183: Contratos de prestación de servicios profesionales y de apoyo a la gestión | F183: Contratación directa | G183: Prestación de servicios profesionales y de apoyo a la gestión, o para la ejecución de trabajos artísticos que sólo puedan encomendarse a determinadas personas naturales | H183: PRESTAR SUS SERVICIOS PROFESIONALES AL FDLSC PARA APOYAR LA FORMULACIÓN,SEGUIMIENTO Y SUPERVISIÓN DE LOS PROCESOS CONTRACTUALES DERIVADOS DEL PROYECTO DE INVERSIÓN 1811 SAN CRISTÓBAL TE CUIDA, PARA LA ATENCIÓN A POBLACIÓN AFECTADA POR VIOLENCIA INTRAFAMILIAR Y/O SEXUAL EN SITUACIÓN DE VULNERABILIDAD | I183: Inversión | J183: Un nuevo contrato social y ambiental para la Bogotá del Siglo XXI | K183: 6 | L183: =IF(ISERROR(VLOOKUP(K183,#REF!,2,FALSE))," ",VLOOKUP(K183,#REF!,2,FALSE)) ->  | M183: =IF(ISERROR(VLOOKUP(K183,#REF!,3,FALSE))," ",VLOOKUP(K183,#REF!,3,FALSE)) ->  | N183: 1811 | O183: 0 | P183: 1023936015 | Q183: YENNY NATALIA VELANDIA CAÑON | R183: Persona Natural | T183: N/A | U183: N/A | W183: 36112000 | X183: 0 | Y183: 1 | Z183: 12940133 | AA183: =+W183+X183+Z183 -> 49052133 | AB183: 44538133 | AC183: 2022-01-28 | AD183: 2022-02-05 | AE183: 2022-12-30 | AF183: 240 | AG183: 1 | AH183: 86 | AM183: Terminado | AN183: =IF(ISERROR(AB183/AA183),"-",(AB183/AA183)) -> 0.9079754595
A184: FDLSC-CPS-300-2022 | B184: 2022 | C184: FDLSC-CD-154-2022 | D184: https://community.secop.gov.co/Public/Tendering/OpportunityDetail/Index?noticeUID=CO1.NTC.2771618&isFromPublicArea=True&isModal=true&asPopupView=true | E184: Contratos de prestación de servicios profesionales y de apoyo a la gestión | F184: Contratación directa | G184: Prestación de servicios profesionales y de apoyo a la gestión, o para la ejecución de trabajos artísticos que sólo puedan encomendarse a determinadas personas naturales | H184: PRESTAR SUS SERVICIOS PROFESIONALES AL FDLSC PARA APOYAR LA FORMULACIÓN, SEGUIMIENTO Y SUPERVISIÓN DE LOS PROCESOS CONTRACTUALES DERIVADOS DEL PROYECTO DE INVERSIÓN 1811 SAN CRISTÓBAL TE CUIDA, PARA LA ATENCIÓN A POBLACIÓN AFECTADA POR VIOLENCIA INTRAFAMILIAR Y/O SEXUAL EN SITUACIÓN DE VULNERABILIDAD | I184: Inversión | J184: Un nuevo contrato social y ambiental para la Bogotá del Siglo XXI | K184: 6 | L184: =IF(ISERROR(VLOOKUP(K184,#REF!,2,FALSE))," ",VLOOKUP(K184,#REF!,2,FALSE)) ->  | M184: =IF(ISERROR(VLOOKUP(K184,#REF!,3,FALSE))," ",VLOOKUP(K184,#REF!,3,FALSE)) ->  | N184: 1811 | O184: 0 | P184: 1065847255 | Q184: ANDREA CAROLINA OÑATE JALILIE | R184: Persona Natural | T184: N/A | U184: N/A | W184: 36112000 | X184: 0 | Y184: 1 | Z184: 12940113 | AA184: =+W184+X184+Z184 -> 49052113 | AB184: 44538133 | AC184: 2022-01-28 | AD184: 2022-02-05 | AE184: 2022-12-30 | AF184: 240 | AG184: 1 | AH184: 86 | AM184: Terminado | AN184: =IF(ISERROR(AB184/AA184),"-",(AB184/AA184)) -> 0.9079758297
A185: FDLSC-CPS-350-2022 | B185: 2022 | C185: FDLSC-CD-117-2022 | D185: https://community.secop.gov.co/Public/Tendering/OpportunityDetail/Index?noticeUID=CO1.NTC.2713421&isFromPublicArea=True&isModal=true&asPopupView=true | E185: Contratos de prestación de servicios profesionales y de apoyo a la gestión | F185: Contratación directa | G185: Prestación de servicios profesionales y de apoyo a la gestión, o para la ejecución de trabajos artísticos que sólo puedan encomendarse a determinadas personas naturales | H185: PRESTAR SUS SERVICIOS PROFESIONALES EN EL ÁREA DE GESTIÓN DE DESARROLLO LOCAL, REALIZANDO ACTIVIDADES ESTADÍSTICAS DE LOS PROYECTOS DE INVERSIÓN, DATOS ABIERTOS, ASÍ COMO DE IDENTIFICACIÓN, GEORREFERENCIACIÓN Y ADQUISICIÓN DE INFORMACIÓN PREDIAL PARA LOS DIFERENTES PROYECTOS DE LA ALCALDÍA LOCAL DE SAN CRISTÓBAL. | I185: Inversión | J185: Un nuevo contrato social y ambiental para la Bogotá del Siglo XXI | K185: 57 | L185: =IF(ISERROR(VLOOKUP(K185,#REF!,2,FALSE))," ",VLOOKUP(K185,#REF!,2,FALSE)) ->  | M185: =IF(ISERROR(VLOOKUP(K185,#REF!,3,FALSE))," ",VLOOKUP(K185,#REF!,3,FALSE)) ->  | N185: 1873 | O185: 0 | P185: 53039333 | Q185: GISEL ANDREA QUINCHANEGUA URQUIJO | R185: Persona Natural | T185: N/A | U185: N/A | W185: 33000000 | X185: 0 | Y185: 1 | Z185: 15950000 | AA185: =+W185+X185+Z185 -> 48950000 | AB185: 43450000 | AC185: 2022-01-28 | AD185: 2022-02-04 | AE185: 2022-12-30 | AF185: 180 | AG185: 1 | AH185: 87 | AM185: Terminado | AN185: =IF(ISERROR(AB185/AA185),"-",(AB185/AA185)) -> 0.8876404494
A186: FDLSC-CPS-029-2022 | B186: 2022 | C186: FDLSC-CD-018-2022 | D186: https://community.secop.gov.co/Public/Tendering/OpportunityDetail/Index?noticeUID=CO1.NTC.2604610&isFromPublicArea=True&isModal=true&asPopupView=true | E186: Contratos de prestación de servicios profesionales y de apoyo a la gestión | F186: Contratación directa | G186: Prestación de servicios profesionales y de apoyo a la gestión, o para la ejecución de trabajos artísticos que sólo puedan encomendarse a determinadas personas naturales | H186: PRESTAR LOS SERVICIOS PROFESIONALES PARA LA OPERACIÓN, SEGUIMIENTO Y CUMPLIMIENTO DE LOS PROCESOS Y PROCEDIMIENTOS DEL SERVICIO APOYO ECONÓMICO TIPO C, REQUERIDOS PARA EL OPORTUNO Y ADECUADO REGISTRO, CRUCE Y REPORTE DE LOS DATOS EN EL SISTEMA MISIONAL SIRBE, QUE CONTRIBUYAN A LA GARANTÍA DE LOS DERECHOS DE LA POBLACIÓN MAYOR EN EL MARCO DE LA POLÍTICA PÚBLICA SOCIAL PARA EL ENVEJECIMIENTO Y LA VEJEZ EN EL DISTRITO CAPITAL A CARGO DE LA ALCALDÍA LOCAL | I186: Inversión | J186: Un nuevo contrato social y ambiental para la Bogotá del Siglo XXI | K186: 1 | L186: =IF(ISERROR(VLOOKUP(K186,#REF!,2,FALSE))," ",VLOOKUP(K186,#REF!,2,FALSE)) ->  | M186: =IF(ISERROR(VLOOKUP(K186,#REF!,3,FALSE))," ",VLOOKUP(K186,#REF!,3,FALSE)) ->  | N186: 1852 | O186: 0 | P186: 51723412 | Q186: AURORA YARA MARTIN | R186: Persona Natural | T186: N/A | U186: N/A | W186: 36160000 | X186: 0 | Y186: 1 | Z186: 12656000 | AA186: =+W186+X186+Z186 -> 48816000 | AB186: 39474667 | AC186: 2022-01-27 | AD186: 2022-02-07 | AE186: 2023-01-30 | AF186: 240 | AG186: 1 | AH186: 84 | AI186: 1030614391 | AJ186: STEFFANY ESCOBAR FRANCO | AK186: 2022-09-19 | AL186: 17176000 | AM186: En ejecución | AN186: =IF(ISERROR(AB186/AA186),"-",(AB186/AA186)) -> 0.8086419821
A187: FDLSC-CPS-092-2022 | B187: 2022 | C187: FDLSC-CD-053-2022 | D187: https://community.secop.gov.co/Public/Tendering/OpportunityDetail/Index?noticeUID=CO1.NTC.2687388&isFromPublicArea=True&isModal=true&asPopupView=true | E187: Contratos de prestación de servicios profesionales y de apoyo a la gestión | F187: Contratación directa | G187: Prestación de servicios profesionales y de apoyo a la gestión, o para la ejecución de trabajos artísticos que sólo puedan encomendarse a determinadas personas naturales | H187: PRESTAR SUS SERVICIOS PROFESIONALES ESPECIALIZADOS PARA APOYAR A EL ALCALDE LOCAL EN LA GESTIÓN DE LOS ASUNTOS RELACIONADOS CON SEGURIDAD CIUDADANA, CONVIVENCIA, PREVENCIÓN DE CONFLICTIVIDADES, VIOLENCIAS Y DELITOS EN LA LOCALIDAD, DE CONFORMIDAD CON EL MARCO NORMATIVO APLICABLE EN LA MATERIA. | I187: Inversión | J187: Un nuevo contrato social y ambiental para la Bogotá del Siglo XXI | K187: 57 | L187: =IF(ISERROR(VLOOKUP(K187,#REF!,2,FALSE))," ",VLOOKUP(K187,#REF!,2,FALSE)) ->  | M187: =IF(ISERROR(VLOOKUP(K187,#REF!,3,FALSE))," ",VLOOKUP(K187,#REF!,3,FALSE)) ->  | N187: 1873 | O187: 0 | P187: 79740299 | Q187: FREDDY ARTURO CARDEÑO MEJÍA | R187: Persona Natural | T187: N/A | U187: N/A | W187: 84975000 | X187: -36565000 | Y187: 0 | Z187: 0 | AA187: =+W187+X187+Z187 -> 48410000 | AB187: 48410000 | AC187: 2022-01-27 | AD187: 2022-02-04 | AE187: 2022-08-11 | AF187: 330 | AG187: 0 | AH187: 0 | AM187: Liquidado | AN187: =IF(ISERROR(AB187/AA187),"-",(AB187/AA187)) -> 1
A188: FDLSC-CPS-192-2022 | B188: 2022 | C188: FDLSC-CD-092-2022 | D188: https://community.secop.gov.co/Public/Tendering/OpportunityDetail/Index?noticeUID=CO1.NTC.2691669&isFromPublicArea=True&isModal=true&asPopupView=true | E188: Contratos de prestación de servicios profesionales y de apoyo a la gestión | F188: Contratación directa | G188: Prestación de servicios profesionales y de apoyo a la gestión, o para la ejecución de trabajos artísticos que sólo puedan encomendarse a determinadas personas naturales | H188: PRESTAR SUS SERVICIOS PROFESIONALES PARA EL SEGUIMIENTO TÉCNICO Y OPERATIVO DEL PROYECTO DE INVERSIÓN 1835, ASÍ CÓMO LA FORMULACIÓN, PRESENTACIÓN EVALUACIÓN Y SEGUIMIENTO DEL MISMO, EN EL MARCO DE LAS NECESIDADES DE LA ALCALDÍA LOCAL DE SAN CRISTÓBAL | I188: Inversión | J188: Un nuevo contrato social y ambiental para la Bogotá del Siglo XXI | K188: 45 | L188: =IF(ISERROR(VLOOKUP(K188,#REF!,2,FALSE))," ",VLOOKUP(K188,#REF!,2,FALSE)) ->  | M188: =IF(ISERROR(VLOOKUP(K188,#REF!,3,FALSE))," ",VLOOKUP(K188,#REF!,3,FALSE)) ->  | N188: 1835 | O188: 0 | P188: 53117416 | Q188: ELIZABETH CARDENAS POVEDA | R188: Persona Natural | T188: N/A | U188: N/A | W188: 48000000 | X188: 0 | Y188: 0 | Z188: 0 | AA188: =+W188+X188+Z188 -> 48000000 | AB188: 40400000 | AC188: 2022-01-26 | AD188: 2022-02-01 | AE188: 2022-09-30 | AF188: 240 | AG188: 0 | AH188: 0 | AI188: 52870411 | AJ188: SARA DEL PILAR PEREZ GOMEZ | AK188: 2022-03-09 | AL188: 40400000 | AM188: Terminado | AN188: =IF(ISERROR(AB188/AA188),"-",(AB188/AA188)) -> 0.8416666667
A189: FDLSC-CPS-425-2022 | B189: 2022 | C189: FDLSC-CD-205-2022 | D189: https://community.secop.gov.co/Public/Tendering/OpportunityDetail/Index?noticeUID=CO1.NTC.3123349&isFromPublicArea=True&isModal=true&asPopupView=true | E189: Contratos de prestación de servicios profesionales y de apoyo a la gestión | F189: Contratación directa | G189: Prestación de servicios profesionales y de apoyo a la gestión, o para la ejecución de trabajos artísticos que sólo puedan encomendarse a determinadas personas naturales | H189: PRESTAR SERVICIOS PROFESIONALES ESPECIALIZADOS PARA TRAMITAR LAS ETAPAS PRECONTRACTUALES Y CONTRACTUALES DE ACUERDO CON EL PLAN DE ADQUISICIONES Y EL PLAN DE CONTRATACIÓN QUE ADELANTE EL FONDO DE DESARROLLO LOCAL DE SAN CRISTÓBAL EN EL MARCO DEL PLAN DE DESARROLLO 2021-2024 | I189: Inversión | J189: Un nuevo contrato social y ambiental para la Bogotá del Siglo XXI | K189: 57 | L189: =IF(ISERROR(VLOOKUP(K189,#REF!,2,FALSE))," ",VLOOKUP(K189,#REF!,2,FALSE)) ->  | M189: =IF(ISERROR(VLOOKUP(K189,#REF!,3,FALSE))," ",VLOOKUP(K189,#REF!,3,FALSE)) ->  | N189: 1873 | O189: 0 | P189: 1032451121 | Q189: NUBIA YULIETH SALAZAR PARDO | R189: Persona Natural | T189: N/A | U189: N/A | W189: 42642000 | X189: 0 | Y189: 1 | Z189: 4264200 | AA189: =+W189+X189+Z189 -> 46906200 | AB189: 30702240 | AC189: 2022-08-08 | AD189: 2022-08-10 | AE189: 2023-01-24 | AF189: 120 | AG189: 0 | AH189: 0 | AI189: 41636317 | AJ189: MARTHA ELIZABETH TRIANA LAVERDE | AK189: 2022-09-20 | AL189: 35535000 | AM189: En ejecución | AN189: =IF(ISERROR(AB189/AA189),"-",(AB189/AA189)) -> 0.6545454545
A190: FDLSC-CPS-138-2022 | B190: 2022 | C190: FDLSC-CD-068-2022 | D190: https://community.secop.gov.co/Public/Tendering/OpportunityDetail/Index?noticeUID=CO1.NTC.2713299&isFromPublicArea=True&isModal=true&asPopupView=true | E190: Contratos de prestación de servicios profesionales y de apoyo a la gestión | F190: Contratación directa | G190: Prestación de servicios profesionales y de apoyo a la gestión, o para la ejecución de trabajos artísticos que sólo puedan encomendarse a determinadas personas naturales | H190: PRESTAR LOS SERVICIOS DE APOYO TECNICO A LA GESTIÓN DE LA ALCALDÍA LOCAL DE SAN CRISTOBAL EN EL DESARROLLO DE ACTIVIDADES DE REACTIVACIÓN ECONOMICA, ACOMPAÑAMIENTO EN CAMPO Y PARTICIPACIÓN EN LOS PROCESOS NECESARIOS PARA LA CORRECTA EJECUCIÓN DE LOS EVENTOS RELACIONADOS Y DE LAS NECESIDADES DE LA ALCALDIA LOCAL. | I190: Inversión | J190: Un nuevo contrato social y ambiental para la Bogotá del Siglo XXI | K190: 6 | L190: =IF(ISERROR(VLOOKUP(K190,#REF!,2,FALSE))," ",VLOOKUP(K190,#REF!,2,FALSE)) ->  | M190: =IF(ISERROR(VLOOKUP(K190,#REF!,3,FALSE))," ",VLOOKUP(K190,#REF!,3,FALSE)) ->  | N190: 1865 | O190: 0 | P190: 1049615846 | Q190: WILLIAM ALEXANDER SUAREZ HURTADO | R190: Persona Natural | T190: N/A | U190: N/A | W190: 34400000 | X190: 0 | Y190: 1 | Z190: 12470000 | AA190: =+W190+X190+Z190 -> 46870000 | AB190: 42570000 | AC190: 2022-01-27 | AD190: 2022-02-04 | AE190: 2022-12-30 | AF190: 240 | AG190: 1 | AH190: 87 | AM190: Terminado | AN190: =IF(ISERROR(AB190/AA190),"-",(AB190/AA190)) -> 0.9082568807
A191: FDLSC-CPS-035-2022 | B191: 2022 | C191: FDLSC-CD-020-2022 | D191: https://community.secop.gov.co/Public/Tendering/OpportunityDetail/Index?noticeUID=CO1.NTC.2605736&isFromPublicArea=True&isModal=true&asPopupView=true | E191: Contratos de prestación de servicios profesionales y de apoyo a la gestión | F191: Contratación directa | G191: Prestación de servicios profesionales y de apoyo a la gestión, o para la ejecución de trabajos artísticos que sólo puedan encomendarse a determinadas personas naturales | H191: PRESTAR SUS SERVICIOS DE APOYO TÉCNICO A LA GESTIÓN ADMINISTRATIVA, AL ÁREA DE GESTIÓN DEL DESARROLLO LOCAL EN ACTIVIDADES DE CONTRATACIÓN, PARA FORTALECER LAS ETAPAS PRECONTRACTUALES Y CONTRACTUALES DE ACUERDO AL PLAN ANUAL DE ADQUISICIONES DE LA ALCALDÍA LOCAL DE SAN CRISTÓBAL. | I191: Inversión | J191: Un nuevo contrato social y ambiental para la Bogotá del Siglo XXI | K191: 57 | L191: =IF(ISERROR(VLOOKUP(K191,#REF!,2,FALSE))," ",VLOOKUP(K191,#REF!,2,FALSE)) ->  | M191: =IF(ISERROR(VLOOKUP(K191,#REF!,3,FALSE))," ",VLOOKUP(K191,#REF!,3,FALSE)) ->  | N191: 1873 | O191: 0 | P191: 1010236542 | Q191: OLGA DANITZA MARINOVICH PARADA | R191: Persona Natural | T191: N/A | U191: N/A | W191: 31200000 | X191: 0 | Y191: 2 | Z191: 15600000 | AA191: =+W191+X191+Z191 -> 46800000 | AB191: 39000000 | AC191: 2022-01-21 | AD191: 2022-01-24 | AE191: 2023-01-23 | AF191: 240 | AG191: 1 | AH191: 97 | AI191: 52278102 | AJ191: DIANA CONSUELO BELTRAN HUERTAS | AK191: 2022-08-08 | AL191: 21580000 | AM191: En ejecución | AN191: =IF(ISERROR(AB191/AA191),"-",(AB191/AA191)) -> 0.8333333333
A192: FDLSC-CPS-034-2022 | B192: 2022 | C192: FDLSC-CD-020-2022 | D192: https://community.secop.gov.co/Public/Tendering/OpportunityDetail/Index?noticeUID=CO1.NTC.2605736&isFromPublicArea=True&isModal=true&asPopupView=true | E192: Contratos de prestación de servicios profesionales y de apoyo a la gestión | F192: Contratación directa | G192: Prestación de servicios profesionales y de apoyo a la gestión, o para la ejecución de trabajos artísticos que sólo puedan encomendarse a determinadas personas naturales | H192: PRESTAR SUS SERVICIOS DE APOYO TÉCNICO A LA GESTIÓN ADMINISTRATIVA, AL ÁREA DE GESTIÓN DEL DESARROLLO LOCAL EN ACTIVIDADES DE CONTRATACIÓN, PARA FORTALECER LAS ETAPAS PRECONTRACTUALES Y CONTRACTUALES DE ACUERDO AL PLAN ANUAL DE ADQUISICIONES DE LA ALCALDÍA LOCAL DE SAN CRISTÓBAL. | I192: Inversión | J192: Un nuevo contrato social y ambiental para la Bogotá del Siglo XXI | K192: 57 | L192: =IF(ISERROR(VLOOKUP(K192,#REF!,2,FALSE))," ",VLOOKUP(K192,#REF!,2,FALSE)) ->  | M192: =IF(ISERROR(VLOOKUP(K192,#REF!,3,FALSE))," ",VLOOKUP(K192,#REF!,3,FALSE)) ->  | N192: 1873 | O192: 0 | P192: 1023878943 | Q192: YURI MASSIEL CRISTANCHO MORALES | R192: Persona Natural | T192: N/A | U192: N/A | W192: 31200000 | X192: 0 | Y192: 2 | Z192: 15600000 | AA192: =+W192+X192+Z192 -> 46800000 | AB192: 40300000 | AC192: 2022-01-19 | AD192: 2022-01-21 | AE192: 2023-01-20 | AF192: 240 | AG192: 2 | AH192: 120 | AM192: En ejecución | AN192: =IF(ISERROR(AB192/AA192),"-",(AB192/AA192)) -> 0.8611111111
A193: FDLSC-CPS-168-2022 | B193: 2022 | C193: FDLSC-CD-081-2022 | D193: https://community.secop.gov.co/Public/Tendering/OpportunityDetail/Index?noticeUID=CO1.NTC.2681054&isFromPublicArea=True&isModal=true&asPopupView=true | E193: Contratos de prestación de servicios profesionales y de apoyo a la gestión | F193: Contratación directa | G193: Prestación de servicios profesionales y de apoyo a la gestión, o para la ejecución de trabajos artísticos que sólo puedan encomendarse a determinadas personas naturales | H193: APOYAR JURÍDICAMENTE LA EJECUCIÓN DE LAS ACCIONES REQUERIDAS PARA EL TRÁMITE E IMPULSO PROCESAL DE LAS ACTUACIONES CONTRAVENCIONALES Y/O QUERELLAS QUE CURSEN EN LAS INSPECCIONES DE POLICÍA DE LA LOCALIDAD | I193: Inversión | J193: Un nuevo contrato social y ambiental para la Bogotá del Siglo XXI | K193: 57 | L193: =IF(ISERROR(VLOOKUP(K193,#REF!,2,FALSE))," ",VLOOKUP(K193,#REF!,2,FALSE)) ->  | M193: =IF(ISERROR(VLOOKUP(K193,#REF!,3,FALSE))," ",VLOOKUP(K193,#REF!,3,FALSE)) ->  | N193: 1873 | O193: 0 | P193: 1022408312 | Q193: JULY ANDREA LESMES PALACIOS | R193: Persona Natural | T193: N/A | U193: N/A | W193: 45320000 | X193: 0 | Y193: 0 | Z193: 0 | AA193: =+W193+X193+Z193 -> 45320000 | AB193: 45319999 | AC193: 2022-01-28 | AD193: 2022-02-03 | AE193: 2022-12-30 | AF193: 240 | AG193: 0 | AH193: 0 | AM193: Terminado | AN193: =IF(ISERROR(AB193/AA193),"-",(AB193/AA193)) -> 0.9999999779
A194: FDLSC-CV-573-2022 | B194: 2022 | C194: FDLSC-SASI-006-2022 LOTE 6 ELEMENTOS DE ACTIVIDAD FÍSICA Y DEPORTIVA | D194: https://community.secop.gov.co/Public/Tendering/OpportunityDetail/Index?noticeUID=CO1.NTC.3304278&isFromPublicArea=True&isModal=true&asPopupView=true | E194: Compraventa de bienes muebles | F194: Selección abreviada | G194: Subasta inversa | H194: CONTRATAR A MONTO AGOTABLE LA ADQUISICIÓN Y DISTRIBUCIÓN DE ELEMENTOS PARA EL CENTRO DE DESARROLLO COMUNITARIO SAN BLAS DE LA LOCALIDAD DE SAN CRISTÓBAL, EN EL MARCO DEL PROYECTO 1811 SAN CRISTÓBAL TE CUIDA. | I194: Inversión | J194: Un nuevo contrato social y ambiental para la Bogotá del Siglo XXI | K194: 6 | L194: =IF(ISERROR(VLOOKUP(K194,#REF!,2,FALSE))," ",VLOOKUP(K194,#REF!,2,FALSE)) ->  | M194: =IF(ISERROR(VLOOKUP(K194,#REF!,3,FALSE))," ",VLOOKUP(K194,#REF!,3,FALSE)) ->  | N194: 1811 | O194: 11 | P194: 901142692 | Q194: COMERCIALIZADORA E & T SAS | R194: Persona Jurídica | T194: N/A | U194: N/A | W194: 45181980 | X194: 0 | Y194: 0 | Z194: 0 | AA194: =+W194+X194+Z194 -> 45181980 | AB194: 0 | AC194: 2022-11-11 | AD194: 2022-11-16 | AE194: 2023-03-15 | AF194: 120 | AG194: 0 | AH194: 0 | AM194: En ejecución | AN194: =IF(ISERROR(AB194/AA194),"-",(AB194/AA194)) -> 0
A195: FDLSC-CVNI-374-2022 | B195: 2022 | C195: FDLSC-CD-176-2022 | D195: https://www.contratos.gov.co/consultas/detalleProceso.do?numConstancia=22-22-36865&g-recaptcha-response=03ANYolqsJE-6O_vQJOChod67mHaono8UeqgyLP06RRKI7UWEmia8gTw1SkaVLKV1FyGEgNd1WGDZQnZiF6IBBsI0-95z7Pug6CJSJTkQzZV1h5A2r60_zH5LhM0lEOopHSmdSEgiuLhpXYIh3VJWYM2S8rWC1mgXNC59KAByJqiOpr0vlAj1Uhc1RNHLZVp9u_WtKnj9F_nwqbwF9pOA9--EXJoZbXZ4wRg6WWWlvnyupHcqupx5oiB0YSdAnm64DGZ6p84ssrqxJ0ezoBQ3mNwOI44Pg5Tv4zl_q_IwkF7VkGCkjYF63-oWUwxvD14VabG_Wx6MbF24SDDN1koecTtQGHbp9axeGEc5YQRbUop5SQCzEIms1wiUiN8jccflKD2bssezzosviXac9_yhYWBC4NdpWsJNl7oueK-AVepNPvMJSGLbkmAtvhc8sx-mhy4Y9ffpH0FejhkPh9-l0jR9O9wJJC55e0A | E195: Convenios/Contratos interadministrativos | F195: Contratación directa | G195: Contratos interadministrativos | H195: AUNAR ESFUERZOS TÉCNICOS, ADMINISTRATIVOS Y FINANCIEROS CON EL FIN DE DESARROLLAR ACCIONES ARTICULADAS ENTRE LA SCRD, EL IDARTES Y LOS FONDOS DE DESARROLLO LOCAL, ORIENTADAS A FOMENTAR PROCESOS DE FORMACIÓN, CUALIFICACIÓN, FORTALECIMIENTO DE LOS AGENTES CULTURALES TERRITORIALES DEL DISTRITO CAPITAL, EN EL MARCO DE LA GENERACIÓN Y CIRCULACIÓN DE BIENES Y SERVICIOS CULTURALES, ARTISTICOS Y PATRIMONIALES DE CONFORMIDAD CON LAS INICIATIVAS PRIORIZADAS Y CONCERTADAS EN LA ESTRATEGIA DISTRITAL "PRESUPUESTOS PARTICIPATIVOS" Y/O DE LAS CONCERTACIONES CON LOS GRUPOS DE INTERÉS DE LAS LOCALIDADES Y A LAS ACCIONES ADELANTADAS EN EL "PROCESO MISIONAL DE FOMENTO", DE ACUERDO CON LOS PROYECTOS A EJECUTAR ASOCIADOS A LAS METAS DE CADA LOCALIDAD EN EL PROGRAMA "ES CULTURA LOCAL 2022". | I195: Inversión | J195: Un nuevo contrato social y ambiental para la Bogotá del Siglo XXI | K195: 21 | L195: Creación y vida cotidiana: Apropiación ciudadana del arte, la cultura y el patrimonio, para la democracia cultural | M195: Propósito 1: Hacer un nuevo contrato social para incrementar la inclusión social, productiva y política | N195: 1803 | O195: 0 | P195: 900413030 | Q195: INSTITUTO DISTRITAL DE LAS ARTES | R195: Persona Jurídica | T195: N/A | U195: N/A | W195: 45000000 | X195: 0 | Y195: 0 | Z195: 0 | AA195: =+W195+X195+Z195 -> 45000000 | AB195: =+X195+Y195+AA195 -> 45000000 | AC195: 2022-07-08 | AD195: 2022-07-19 | AE195: 2023-08-31 | AF195: 395 | AG195: 0 | AH195: 0 | AM195: En ejecución | AN195: =IF(ISERROR(AB195/AA195),"-",(AB195/AA195)) -> 1
A196: FDLSC-CPS-666-2022 | B196: 2022 | C196: FDLSC-SAMC-005-2022 | D196: https://community.secop.gov.co/Public/Tendering/OpportunityDetail/Index?noticeUID=CO1.NTC.3601213&isFromPublicArea=True&isModal=true&asPopupView=true | E196: Contratos de prestación de servicios | F196: Selección abreviada | G196: Selección abreviada por menor cuantía | H196: CONTRATAR LOS SERVICIOS DE APOYO LOGÍSTICOS, TRANSPORTE, PUBLICITARIOS, ELEMENTOS DE MERCHANDISING Y CATERING REQUERIDOS PARA EL DESARROLLO OPERATIVO DE LOS EVENTOS LIDERADOS POR LA ALCALDIA LOCAL DE SAN CRISTÓBAL | I196: Inversión | J196: Un nuevo contrato social y ambiental para la Bogotá del Siglo XXI | K196: 30 | L196: =IF(ISERROR(VLOOKUP(K196,#REF!,2,FALSE))," ",VLOOKUP(K196,#REF!,2,FALSE)) ->  | M196: =IF(ISERROR(VLOOKUP(K196,#REF!,3,FALSE))," ",VLOOKUP(K196,#REF!,3,FALSE)) ->  | N196: 1866 | O196: 1 | P196: 900521780 | Q196: B2 NETWORKS S A S | R196: Persona Jurídica | T196: N/A | U196: N/A | W196: 44773595 | X196: 0 | Y196: 0 | Z196: 0 | AA196: =+W196+X196+Z196 -> 44773595 | AB196: 0 | AC196: 2022-12-28 | AF196: 180 | AM196: Celebrado o por iniciar | AN196: =IF(ISERROR(AB196/AA196),"-",(AB196/AA196)) -> 0
A197: FDLSC-CPS-099-2022 | B197: 2022 | C197: FDLSC-CD-059-2022 | D197: https://community.secop.gov.co/Public/Tendering/OpportunityDetail/Index?noticeUID=CO1.NTC.2654057&isFromPublicArea=True&isModal=true&asPopupView=true | E197: Contratos de prestación de servicios profesionales y de apoyo a la gestión | F197: Contratación directa | G197: Prestación de servicios profesionales y de apoyo a la gestión, o para la ejecución de trabajos artísticos que sólo puedan encomendarse a determinadas personas naturales | H197: PRESTAR SUS SERVICIOS TÉCNICOS PARA ADELANTAR EL PROCESO DE COBROS PERSUASIVOS DE LAS MULTAS IMPUESTAS POR LA ALCALDÍA LOCAL. | I197: Inversión | J197: Un nuevo contrato social y ambiental para la Bogotá del Siglo XXI | K197: 57 | L197: =IF(ISERROR(VLOOKUP(K197,#REF!,2,FALSE))," ",VLOOKUP(K197,#REF!,2,FALSE)) ->  | M197: =IF(ISERROR(VLOOKUP(K197,#REF!,3,FALSE))," ",VLOOKUP(K197,#REF!,3,FALSE)) ->  | N197: 1873 | O197: 0 | P197: 52959797 | Q197: LILIA YOBANA ESPINAL ESPINAL | R197: Persona Natural | T197: N/A | U197: N/A | W197: 40700000 | X197: 0 | Y197: 1 | Z197: 3700000 | AA197: =+W197+X197+Z197 -> 44400000 | AB197: 37616667 | AC197: 2022-01-24 | AD197: 2022-01-26 | AE197: 2023-01-25 | AF197: 330 | AG197: 1 | AH197: 30 | AM197: En ejecución | AN197: =IF(ISERROR(AB197/AA197),"-",(AB197/AA197)) -> 0.8472222297
A198: FDLSC-CPS-050-2022 | B198: 2022 | C198: FDLSC-CD-031-2022 | D198: https://community.secop.gov.co/Public/Tendering/OpportunityDetail/Index?noticeUID=CO1.NTC.2605191&isFromPublicArea=True&isModal=true&asPopupView=true | E198: Contratos de prestación de servicios profesionales y de apoyo a la gestión | F198: Contratación directa | G198: Prestación de servicios profesionales y de apoyo a la gestión, o para la ejecución de trabajos artísticos que sólo puedan encomendarse a determinadas personas naturales | H198: PRESTAR SERVICIOS DE APOYO TÉCNICO EN EL ÁREA DE GESTIÓN POLICIVA CON LOS DIFERENTES PROCESOS Y ACTUACIONES ADMINISTRATIVAS EXISTENTES, INCLUIDA LA IMPLEMENTACIÓN DE TRAMITES DE VERIFICACIÓN, SOPORTE Y ACOMPAÑAMIENTO. | I198: Inversión | J198: Un nuevo contrato social y ambiental para la Bogotá del Siglo XXI | K198: 57 | L198: =IF(ISERROR(VLOOKUP(K198,#REF!,2,FALSE))," ",VLOOKUP(K198,#REF!,2,FALSE)) ->  | M198: =IF(ISERROR(VLOOKUP(K198,#REF!,3,FALSE))," ",VLOOKUP(K198,#REF!,3,FALSE)) ->  | N198: 1873 | O198: 0 | P198: 52161441 | Q198: DIANA ISABEL BRAVO CORDOBA | R198: Persona Natural | T198: N/A | U198: N/A | W198: 40700000 | X198: 0 | Y198: 1 | Z198: 3700000 | AA198: =+W198+X198+Z198 -> 44400000 | AB198: 38233333 | AC198: 2022-01-19 | AD198: 2022-01-21 | AE198: 2023-01-20 | AF198: 330 | AG198: 1 | AH198: 30 | AM198: En ejecución | AN198: =IF(ISERROR(AB198/AA198),"-",(AB198/AA198)) -> 0.8611111036
A199: FDLSC-CPS-046-2022 | B199: 2022 | C199: FDLSC-CD-003-2022 | D199: https://community.secop.gov.co/Public/Tendering/OpportunityDetail/Index?noticeUID=CO1.NTC.2590234&isFromPublicArea=True&isModal=true&asPopupView=true | E199: Contratos de prestación de servicios profesionales y de apoyo a la gestión | F199: Contratación directa | G199: Prestación de servicios profesionales y de apoyo a la gestión, o para la ejecución de trabajos artísticos que sólo puedan encomendarse a determinadas personas naturales | H199: APOYAR JURÍDICAMENTE LA EJECUCIÓN DE LAS ACCIONES REQUERIDAS PARA LA DEPURACIÓN DE LAS ACTUACIONES ADMINISTRATIVAS QUE CURSAN EN LA ALCALDÍA LOCAL. | I199: Inversión | J199: Un nuevo contrato social y ambiental para la Bogotá del Siglo XXI | K199: 57 | L199: =IF(ISERROR(VLOOKUP(K199,#REF!,2,FALSE))," ",VLOOKUP(K199,#REF!,2,FALSE)) ->  | M199: =IF(ISERROR(VLOOKUP(K199,#REF!,3,FALSE))," ",VLOOKUP(K199,#REF!,3,FALSE)) ->  | N199: 1873 | O199: 0 | P199: 1018406237 | Q199: HELDER GERMAN PARDO BUITRAGO | R199: Persona Natural | T199: N/A | U199: N/A | W199: 44000000 | X199: 0 | Y199: 0 | Z199: 0 | AA199: =+W199+X199+Z199 -> 44000000 | AB199: 39233333 | AC199: 2022-01-27 | AD199: 2022-01-27 | AE199: 2022-09-26 | AF199: 240 | AG199: 0 | AH199: 0 | AM199: Terminado | AN199: =IF(ISERROR(AB199/AA199),"-",(AB199/AA199)) -> 0.8916666591
A200: FDLSC-CPS-005-2022 | B200: 2022 | C200: FDLSC-CD-003-2022 | D200: https://community.secop.gov.co/Public/Tendering/OpportunityDetail/Index?noticeUID=CO1.NTC.2590234&isFromPublicArea=True&isModal=true&asPopupView=true | E200: Contratos de prestación de servicios profesionales y de apoyo a la gestión | F200: Contratación directa | G200: Prestación de servicios profesionales y de apoyo a la gestión, o para la ejecución de trabajos artísticos que sólo puedan encomendarse a determinadas personas naturales | H200: APOYAR JURÍDICAMENTE LA EJECUCIÓN DE LAS ACCIONES REQUERIDAS PARA LA DEPURACIÓN DE LAS ACTUACIONES ADMINISTRATIVAS QUE CURSAN EN LA ALCALDÍA LOCAL. | I200: Inversión | J200: Un nuevo contrato social y ambiental para la Bogotá del Siglo XXI | K200: 57 | L200: =IF(ISERROR(VLOOKUP(K200,#REF!,2,FALSE))," ",VLOOKUP(K200,#REF!,2,FALSE)) ->  | M200: =IF(ISERROR(VLOOKUP(K200,#REF!,3,FALSE))," ",VLOOKUP(K200,#REF!,3,FALSE)) ->  | N200: 1873 | O200: 0 | P200: 65776970 | Q200: LUZ MARLEN BULA GUZMAN | R200: Persona Natural | T200: N/A | U200: N/A | W200: 44000000 | X200: 0 | Y200: 0 | Z200: 0 | AA200: =+W200+X200+Z200 -> 44000000 | AB200: 40333333 | AC200: 2022-01-18 | AD200: 2022-01-21 | AE200: 2022-09-20 | AF200: 240 | AG200: 0 | AH200: 0 | AM200: Terminado | AN200: =IF(ISERROR(AB200/AA200),"-",(AB200/AA200)) -> 0.9166666591
... 543 more rows

Sheet Tipo (hidden)
C1: Modalidad de Selección | D1: afectacion | E1: Naturaleza Jurídica
A2: 1 | C2: Concurso de méritos | D2: Funcionamiento | E2: Persona Natural
A3: 2 | C3: Contratación directa | D3: Inversión | E3: Persona Jurídica
A4: 3 | C4: Contratación mínima cuantia | D4: Operación | E4: Unión Temporal
A5: 4 | C5: Selección abreviada | E5: Consorcio
A6: 5 | C6: Licitación pública | E6: Sociedad con objeto único
A7: 6 | C7: Otros | E7: Persona jurídica extranjera
A8: 7 | C8: Régimen especial | E8: Sin ánimo de lucro
A9: 8 | E9: Cabildo indígena
A10: 9 | E10: Consejo comunitario de las comunidades negras
A11: 10 | C11: Selección abreviada | E11: Organizaciones de segundo nivel
A12: 11 | C12: Subasta inversa | E12: Formas o expresiones organizativas, afrocolombianas, raizales y palenqueras
A13: 12 | C13: Bolsas de productos | E13: Organizaciones de base de comunidades negras
A14: 13 | C14: Acuerdo marco de precios | E14: Asociaciones de autoridades tradicionales indígenas
A15: 14 | C15: Selección abreviada por menor cuantía
A16: 15
A17: 16 | C17: contratacion directa
A18: 17 | C18: Urgencia manifiesta
A19: 18 | C19: Contratación de empréstitos
A20: 19 | C20: Contratos interadministrativos
A21: 20 | C21: Contratación de bienes y servicios en el sector Defensa
B22: SECTOR | C22: Contratos para el desarrollo de actividades científicas y tecnológicas
A23: 1 | B23: Gestión Pública | C23: Contratos de encargo fiduciario que celebren las entidades territoriales cuando inician el Acuerdo de Reestructuración de Pasivos
A24: =+A23+1 -> 2 | B24: Gobierno | C24: Cuando no exista pluralidad de oferentes en el mercado
A25: =+A24+1 -> 3 | B25: Hacienda | C25: Prestación de servicios profesionales y de apoyo a la gestión, o para la ejecución de trabajos artísticos que sólo puedan encomendarse a determinadas personas naturales
A26: 4 | B26: Planeación | C26: El arrendamiento o adquisición de inmuebles
A27: 5 | B27: Desarrollo Económico, Industria y Turismo | C27: Contratación de bienes y servicios de la Dirección Nacional de Inteligencia (DNI)
A28: 6 | B28: Educación
A29: 7 | B29: Salud
A30: 8 | B30: Integración Social | C30: Decreto 92 de 2017
A31: 9 | B31: Cultura, Recreación y Deporte | C31: No aplica
A32: 10 | B32: Ambiente
A33: 11 | B33: Movilidad | C33: SECOP I
A34: 12 | B34: Hábitat | C34: SECOP II
A35: 13 | B35: Mujeres
A36: 14 | B36: Seguridad, Convivencia y Justicia | C36: Bogotá Mejor para Todos
A37: 15 | B37: Gestión Juridíca | C37: Un Nuevo Contrato Social y Ambiental para la Bogotá del Siglo XXI
A38: 16 | B38: descentralizado territorialmente
B40: 16 - AL | C40: Estado
C41: Celebrado o por iniciar
B42: Plan de desarrollo distrital | C42: En ejecución
B43: Un nuevo contrato social y ambiental para la Bogotá del Siglo XXI | C43: Terminado
C44: Liquidado
B46: Tipo
B47: Obra pública
B48: Consultoría
B49: Interventoría
B50: Contratos de prestación de servicios
B51: Contratos de prestación de servicios profesionales y de apoyo a la gestión
B52: Compraventa de bienes muebles
B53: Compraventa de bienes inmuebles
B54: Arrendamiento de bienes muebles
B55: Arrendamiento de bienes inmuebles
B56: Seguro
B57: Suministro
B58: Empréstitos
B59: Fiducia mercantil o encargo fiduciario
B60: Concesión
B61: Convenios de cooperacion
B62: Convenios/Contratos interadministrativos
B63: Convenios de apoyo o convenios de asociación
B64: Convenios solidarios
B65: Asociaciones Público Privadas
B66: Otros
B67: Otros gastos
